Body,Body Name,Date,TransNo,Amount � (Excl VAT),Supplier name,Supplier ID,Expense Area,Expense Type,Expense Code
http://opendatacommunities.org/id/london-borough-council/sutton,London Borough of Sutton,01/11/2020,40477286,"6,300.00 ",A Wilderness Way Ltd,35014,Peoples Services Directorate,Residential Care-Children,G330
http://opendatacommunities.org/id/london-borough-council/sutton,London Borough of Sutton,01/11/2020,40477316,"32,550.00 ",A Wilderness Way Ltd,35014,Peoples Services Directorate,Residential Care-Children,G330
http://opendatacommunities.org/id/london-borough-council/sutton,London Borough of Sutton,30/11/2020,40477328,"2,240.00 ",A Wilderness Way Ltd,35014,Peoples Services Directorate,Residential Care-Children,G330
http://opendatacommunities.org/id/london-borough-council/sutton,London Borough of Sutton,06/11/2020,40477401,"26,009.04 ",A Wilderness Way Ltd,35014,Peoples Services Directorate,Residential Care-Children,G330
http://opendatacommunities.org/id/london-borough-council/sutton,London Borough of Sutton,03/12/2020,1302941,"13,689.00 ",A&M Senior Care Services Ltd T/A Home Instead Senior Care,35384,Peoples Services Directorate,Contract Cleaning,D806
http://opendatacommunities.org/id/london-borough-council/sutton,London Borough of Sutton,17/12/2020,1303915,537.70 ,REDACTED - PERSONAL DATA,34764,Peoples Services Directorate,Approved Lodgings,H323
http://opendatacommunities.org/id/london-borough-council/sutton,London Borough of Sutton,03/11/2020,6982546,"1,014.00 ",Abdul Ismail,99898,"Environment, Housing & Regeneration Directorate",Depositors,X460
http://opendatacommunities.org/id/london-borough-council/sutton,London Borough of Sutton,03/11/2020,6982546,"3,700.00 ",Abdul Ismail,99898,"Environment, Housing & Regeneration Directorate",Depositors,X460
http://opendatacommunities.org/id/london-borough-council/sutton,London Borough of Sutton,15/12/2020,6983165,"1,676.32 ",Ability Housing Association,23287,Peoples Services Directorate,Rent - General,D650
http://opendatacommunities.org/id/london-borough-council/sutton,London Borough of Sutton,23/11/2020,6981805,"5,589.89 ",Absolute Care Services Ltd,10021,Peoples Services Directorate,Homecare Core Services,G336
http://opendatacommunities.org/id/london-borough-council/sutton,London Borough of Sutton,23/11/2020,6981806,"5,348.23 ",Absolute Care Services Ltd,10021,Peoples Services Directorate,Homecare Core Services,G336
http://opendatacommunities.org/id/london-borough-council/sutton,London Borough of Sutton,30/11/2020,6982508,"5,348.23 ",Absolute Care Services Ltd,10021,Peoples Services Directorate,Homecare Core Services,G336
http://opendatacommunities.org/id/london-borough-council/sutton,London Borough of Sutton,30/11/2020,6982510,"6,357.91 ",Absolute Care Services Ltd,10021,Peoples Services Directorate,Homecare Core Services,G336
http://opendatacommunities.org/id/london-borough-council/sutton,London Borough of Sutton,01/12/2020,6982511,"1,467.76 ",Absolute Care Services Ltd,10021,Peoples Services Directorate,Rent - General,D650
http://opendatacommunities.org/id/london-borough-council/sutton,London Borough of Sutton,30/11/2020,6982512,"5,589.89 ",Absolute Care Services Ltd,10021,Peoples Services Directorate,Homecare Core Services,G336
http://opendatacommunities.org/id/london-borough-council/sutton,London Borough of Sutton,07/12/2020,6982806,"6,357.91 ",Absolute Care Services Ltd,10021,Peoples Services Directorate,Homecare Core Services,G336
http://opendatacommunities.org/id/london-borough-council/sutton,London Borough of Sutton,07/12/2020,6982808,"5,589.89 ",Absolute Care Services Ltd,10021,Peoples Services Directorate,Homecare Core Services,G336
http://opendatacommunities.org/id/london-borough-council/sutton,London Borough of Sutton,07/12/2020,6982809,"5,348.23 ",Absolute Care Services Ltd,10021,Peoples Services Directorate,Homecare Core Services,G336
http://opendatacommunities.org/id/london-borough-council/sutton,London Borough of Sutton,14/12/2020,6983108,"6,357.91 ",Absolute Care Services Ltd,10021,Peoples Services Directorate,Homecare Core Services,G336
http://opendatacommunities.org/id/london-borough-council/sutton,London Borough of Sutton,14/12/2020,6983109,"5,348.23 ",Absolute Care Services Ltd,10021,Peoples Services Directorate,Homecare Core Services,G336
http://opendatacommunities.org/id/london-borough-council/sutton,London Borough of Sutton,14/12/2020,6983111,"5,589.89 ",Absolute Care Services Ltd,10021,Peoples Services Directorate,Homecare Core Services,G336
http://opendatacommunities.org/id/london-borough-council/sutton,London Borough of Sutton,19/10/2020,6983340,"5,589.89 ",Absolute Care Services Ltd,10021,Peoples Services Directorate,Homecare Core Services,G336
http://opendatacommunities.org/id/london-borough-council/sutton,London Borough of Sutton,12/10/2020,6983341,"6,357.91 ",Absolute Care Services Ltd,10021,Peoples Services Directorate,Homecare Core Services,G336
http://opendatacommunities.org/id/london-borough-council/sutton,London Borough of Sutton,21/12/2020,6983485,"5,348.23 ",Absolute Care Services Ltd,10021,Peoples Services Directorate,Homecare Core Services,G336
http://opendatacommunities.org/id/london-borough-council/sutton,London Borough of Sutton,21/12/2020,6983486,"6,357.91 ",Absolute Care Services Ltd,10021,Peoples Services Directorate,Homecare Core Services,G336
http://opendatacommunities.org/id/london-borough-council/sutton,London Borough of Sutton,18/10/2020,40474929,428.51 ,Absolute Care Services Ltd,10021,Peoples Services Directorate,Home Care,G334
http://opendatacommunities.org/id/london-borough-council/sutton,London Borough of Sutton,25/10/2020,40474930,428.51 ,Absolute Care Services Ltd,10021,Peoples Services Directorate,Home Care,G334
http://opendatacommunities.org/id/london-borough-council/sutton,London Borough of Sutton,01/11/2020,40474931,428.51 ,Absolute Care Services Ltd,10021,Peoples Services Directorate,Home Care,G334
http://opendatacommunities.org/id/london-borough-council/sutton,London Borough of Sutton,18/10/2020,40475006,726.14 ,Absolute Care Services Ltd,10021,Peoples Services Directorate,Home Care,G334
http://opendatacommunities.org/id/london-borough-council/sutton,London Borough of Sutton,18/10/2020,40475041,708.35 ,Absolute Care Services Ltd,10021,Peoples Services Directorate,Home Care,G334
http://opendatacommunities.org/id/london-borough-council/sutton,London Borough of Sutton,25/10/2020,40475042,734.58 ,Absolute Care Services Ltd,10021,Peoples Services Directorate,Home Care,G334
http://opendatacommunities.org/id/london-borough-council/sutton,London Borough of Sutton,01/11/2020,40475043,708.35 ,Absolute Care Services Ltd,10021,Peoples Services Directorate,Home Care,G334
http://opendatacommunities.org/id/london-borough-council/sutton,London Borough of Sutton,18/10/2020,40475064,629.64 ,Absolute Care Services Ltd,10021,Peoples Services Directorate,Home Care,G334
http://opendatacommunities.org/id/london-borough-council/sutton,London Borough of Sutton,25/10/2020,40475065,664.62 ,Absolute Care Services Ltd,10021,Peoples Services Directorate,Home Care,G334
http://opendatacommunities.org/id/london-borough-council/sutton,London Borough of Sutton,01/11/2020,40475066,664.62 ,Absolute Care Services Ltd,10021,Peoples Services Directorate,Home Care,G334
http://opendatacommunities.org/id/london-borough-council/sutton,London Borough of Sutton,25/10/2020,40475229,529.07 ,Absolute Care Services Ltd,10021,Peoples Services Directorate,Home Care,G334
http://opendatacommunities.org/id/london-borough-council/sutton,London Borough of Sutton,01/11/2020,40475230,550.94 ,Absolute Care Services Ltd,10021,Peoples Services Directorate,Home Care,G334
http://opendatacommunities.org/id/london-borough-council/sutton,London Borough of Sutton,18/12/2020,6983392,474.00 ,Access Independent Ltd,24086,Health and Wellbeing Directorate,Mobility Scheme for the Disabled,H401
http://opendatacommunities.org/id/london-borough-council/sutton,London Borough of Sutton,16/10/2020,1302859,"1,950.00 ",Achieving For Children Limited,28009,Peoples Services Directorate,Special Educational Needs,G331
http://opendatacommunities.org/id/london-borough-council/sutton,London Borough of Sutton,27/11/2020,6982866,925.00 ,Achilles Information Ltd,23642,Resources Directorate,Other Services,F340
http://opendatacommunities.org/id/london-borough-council/sutton,London Borough of Sutton,22/12/2020,40481020,"2,903.20 ",Acorn Lodge,15804,Peoples Services Directorate,Residential Care - Ext Provider,G310
http://opendatacommunities.org/id/london-borough-council/sutton,London Borough of Sutton,22/12/2020,40481088,"3,115.36 ",Acorn Residential Home,15828,Peoples Services Directorate,Residential Care - Ext Provider,G310
http://opendatacommunities.org/id/london-borough-council/sutton,London Borough of Sutton,02/12/2020,6982426,"176,770.07 ",ADAM HTT LTD,34364,Peoples Services Directorate,Hired Peoples Transport (Children),E072
http://opendatacommunities.org/id/london-borough-council/sutton,London Borough of Sutton,09/12/2020,6982882,"180,753.50 ",ADAM HTT LTD,34364,Peoples Services Directorate,Hired Peoples Transport (Children),E072
http://opendatacommunities.org/id/london-borough-council/sutton,London Borough of Sutton,16/12/2020,6983246,"165,610.87 ",ADAM HTT LTD,34364,Peoples Services Directorate,Hired Peoples Transport (Children),E072
http://opendatacommunities.org/id/london-borough-council/sutton,London Borough of Sutton,23/12/2020,6983679,"133,981.95 ",ADAM HTT LTD,34364,Peoples Services Directorate,Hired Peoples Transport (Children),E072
http://opendatacommunities.org/id/london-borough-council/sutton,London Borough of Sutton,02/12/2020,1302968,"238,486.40 ",Adecco Uk Ltd,10059,Resources Directorate,Suspense/Holding Accounts,X550
http://opendatacommunities.org/id/london-borough-council/sutton,London Borough of Sutton,02/12/2020,1302968,"(6,050,000.00)",Adecco Uk Ltd,10059,Resources Directorate,Suspense/Holding Accounts,X550
http://opendatacommunities.org/id/london-borough-council/sutton,London Borough of Sutton,09/12/2020,1303419,"242,867.85 ",Adecco Uk Ltd,10059,Resources Directorate,Suspense/Holding Accounts,X550
http://opendatacommunities.org/id/london-borough-council/sutton,London Borough of Sutton,15/12/2020,1303627,"269,121.49 ",Adecco Uk Ltd,10059,Resources Directorate,Suspense/Holding Accounts,X550
http://opendatacommunities.org/id/london-borough-council/sutton,London Borough of Sutton,21/12/2020,1303934,"257,879.87 ",Adecco Uk Ltd,10059,Resources Directorate,Suspense/Holding Accounts,X550
http://opendatacommunities.org/id/london-borough-council/sutton,London Borough of Sutton,01/11/2020,40482000,519.52 ,Adelfi Homecare Ltd,33284,Peoples Services Directorate,Home Care,G334
http://opendatacommunities.org/id/london-borough-council/sutton,London Borough of Sutton,01/12/2020,40482016,496.88 ,Adelfi Homecare Ltd,33284,Peoples Services Directorate,Home Care,G334
http://opendatacommunities.org/id/london-borough-council/sutton,London Borough of Sutton,01/11/2020,6982782,"1,257.93 ",Adt Fire & Security Plc,10063,Peoples Services Directorate,Security Systems - SCH,D880
http://opendatacommunities.org/id/london-borough-council/sutton,London Borough of Sutton,10/12/2020,6982978,"23,137.65 ",Advanced Demand Side Management Ltd,26989,Resources Directorate,Water - Metered,D690
http://opendatacommunities.org/id/london-borough-council/sutton,London Borough of Sutton,30/11/2020,6982407,"2,916.67 ",Advocacy For All,24795,Peoples Services Directorate,Provider Contract Payments,F470
http://opendatacommunities.org/id/london-borough-council/sutton,London Borough of Sutton,30/11/2020,6982408,"12,916.67 ",Advocacy For All,24795,Peoples Services Directorate,Provider Contract Payments,F470
http://opendatacommunities.org/id/london-borough-council/sutton,London Borough of Sutton,30/10/2020,6980416,"7,876.00 ",AECOM Ltd,22196,"Environment, Housing & Regeneration Directorate",Other Services,F340
http://opendatacommunities.org/id/london-borough-council/sutton,London Borough of Sutton,25/11/2020,40477238,"3,253.20 ",Affinity Fostering Services Ltd,26535,Peoples Services Directorate,Foster Parents,G326
http://opendatacommunities.org/id/london-borough-council/sutton,London Borough of Sutton,25/11/2020,40477239,"3,253.20 ",Affinity Fostering Services Ltd,26535,Peoples Services Directorate,Foster Parents,G326
http://opendatacommunities.org/id/london-borough-council/sutton,London Borough of Sutton,25/11/2020,40477314,"3,424.20 ",Affinity Fostering Services Ltd,26535,Peoples Services Directorate,Foster Parents,G326
http://opendatacommunities.org/id/london-borough-council/sutton,London Borough of Sutton,25/11/2020,40477356,"3,424.20 ",Affinity Fostering Services Ltd,26535,Peoples Services Directorate,Foster Parents,G326
http://opendatacommunities.org/id/london-borough-council/sutton,London Borough of Sutton,06/11/2020,6980887,"6,600.00 ",Age UK Sutton,10092,Resources Directorate,Fees - Other,F299
http://opendatacommunities.org/id/london-borough-council/sutton,London Borough of Sutton,08/12/2020,6982854,600.00 ,Ahad Group,35210,Resources Directorate,Materials - General,F100
http://opendatacommunities.org/id/london-borough-council/sutton,London Borough of Sutton,22/12/2020,40481104,"7,511.00 ",Aims Care Partnership (Leighton House Ltd),12628,Peoples Services Directorate,Residential Care - Ext Provider,G310
http://opendatacommunities.org/id/london-borough-council/sutton,London Borough of Sutton,22/12/2020,40481372,"8,400.16 ",Aitch Care Homes,20446,Peoples Services Directorate,Residential Care - Ext Provider,G310
http://opendatacommunities.org/id/london-borough-council/sutton,London Borough of Sutton,30/11/2020,6982491,"1,155.00 ",AKSWard Ltd,35270,Resources Directorate,External Fees  - Engineers,Y110
http://opendatacommunities.org/id/london-borough-council/sutton,London Borough of Sutton,07/12/2020,6982688,"3,600.00 ",Alan Deegan,99898,"Environment, Housing & Regeneration Directorate",Depositors,X460
http://opendatacommunities.org/id/london-borough-council/sutton,London Borough of Sutton,15/11/2020,6981328,"1,750.00 ",ALKINT SERVICES LTD,34352,Peoples Services Directorate,Fees - Other,F299
http://opendatacommunities.org/id/london-borough-council/sutton,London Borough of Sutton,15/11/2020,6981329,"1,750.00 ",ALKINT SERVICES LTD,34352,Peoples Services Directorate,Fees - Other,F299
http://opendatacommunities.org/id/london-borough-council/sutton,London Borough of Sutton,15/11/2020,6981330,"1,750.00 ",ALKINT SERVICES LTD,34352,Peoples Services Directorate,Fees - Other,F299
http://opendatacommunities.org/id/london-borough-council/sutton,London Borough of Sutton,16/11/2020,1302858,"1,567.00 ",All Saints Carshalton Primary School,16772,Peoples Services Directorate,Education Equipment,F009
http://opendatacommunities.org/id/london-borough-council/sutton,London Borough of Sutton,30/11/2020,40477339,"4,414.20 ",All4U Fostering Ltd,30193,Peoples Services Directorate,Foster Parents,G326
http://opendatacommunities.org/id/london-borough-council/sutton,London Borough of Sutton,30/11/2020,6982256,"50,000.00 ",ALLEN & OVERY LLP,99827,Resources Directorate,Fees - Other,F299
http://opendatacommunities.org/id/london-borough-council/sutton,London Borough of Sutton,01/12/2020,6982326,"3,450.00 ",Allen Lane Ltd,18334,Resources Directorate,Agency Staff - Other,A301
http://opendatacommunities.org/id/london-borough-council/sutton,London Borough of Sutton,01/12/2020,6982327,"1,850.00 ",Allen Lane Ltd,18334,Resources Directorate,Agency Staff - Other,A301
http://opendatacommunities.org/id/london-borough-council/sutton,London Borough of Sutton,01/12/2020,6982328,"1,868.75 ",Allen Lane Ltd,18334,Resources Directorate,Agency Staff - Other,A301
http://opendatacommunities.org/id/london-borough-council/sutton,London Borough of Sutton,01/12/2020,6982329,"2,198.80 ",Allen Lane Ltd,18334,Resources Directorate,Agency Staff - Other,A301
http://opendatacommunities.org/id/london-borough-council/sutton,London Borough of Sutton,01/12/2020,6982330,"1,868.75 ",Allen Lane Ltd,18334,Resources Directorate,Agency Staff - Other,A301
http://opendatacommunities.org/id/london-borough-council/sutton,London Borough of Sutton,08/12/2020,6982811,"1,850.00 ",Allen Lane Ltd,18334,Resources Directorate,Agency Staff - Other,A301
http://opendatacommunities.org/id/london-borough-council/sutton,London Borough of Sutton,08/12/2020,6982812,"3,450.00 ",Allen Lane Ltd,18334,Resources Directorate,Agency Staff - Other,A301
http://opendatacommunities.org/id/london-borough-council/sutton,London Borough of Sutton,08/12/2020,6982813,"2,198.80 ",Allen Lane Ltd,18334,Resources Directorate,Agency Staff - Other,A301
http://opendatacommunities.org/id/london-borough-council/sutton,London Borough of Sutton,08/12/2020,6982814,"1,868.75 ",Allen Lane Ltd,18334,Resources Directorate,Agency Staff - Other,A301
http://opendatacommunities.org/id/london-borough-council/sutton,London Borough of Sutton,08/12/2020,6982815,"1,868.75 ",Allen Lane Ltd,18334,Resources Directorate,Agency Staff - Other,A301
http://opendatacommunities.org/id/london-borough-council/sutton,London Borough of Sutton,15/12/2020,6983173,"1,868.75 ",Allen Lane Ltd,18334,Resources Directorate,Agency Staff - Other,A301
http://opendatacommunities.org/id/london-borough-council/sutton,London Borough of Sutton,15/12/2020,6983174,"1,649.10 ",Allen Lane Ltd,18334,Resources Directorate,Agency Staff - Other,A301
http://opendatacommunities.org/id/london-borough-council/sutton,London Borough of Sutton,15/12/2020,6983175,"1,868.75 ",Allen Lane Ltd,18334,Resources Directorate,Agency Staff - Other,A301
http://opendatacommunities.org/id/london-borough-council/sutton,London Borough of Sutton,15/12/2020,6983176,"3,450.00 ",Allen Lane Ltd,18334,Resources Directorate,Agency Staff - Other,A301
http://opendatacommunities.org/id/london-borough-council/sutton,London Borough of Sutton,15/12/2020,6983177,"1,850.00 ",Allen Lane Ltd,18334,Resources Directorate,Agency Staff - Other,A301
http://opendatacommunities.org/id/london-borough-council/sutton,London Borough of Sutton,21/12/2020,6983504,"1,868.75 ",Allen Lane Ltd,18334,Resources Directorate,Agency Staff - Other,A301
http://opendatacommunities.org/id/london-borough-council/sutton,London Borough of Sutton,21/12/2020,6983506,"2,198.80 ",Allen Lane Ltd,18334,Resources Directorate,Agency Staff - Other,A301
http://opendatacommunities.org/id/london-borough-council/sutton,London Borough of Sutton,21/12/2020,6983507,"3,450.00 ",Allen Lane Ltd,18334,Resources Directorate,Agency Staff - Other,A301
http://opendatacommunities.org/id/london-borough-council/sutton,London Borough of Sutton,22/12/2020,40481267,"3,625.00 ",Alliance Care (Dale Homes) Ltd T/A Uplands Care Home,26835,Peoples Services Directorate,Nursing Care - Ext Provider,G311
http://opendatacommunities.org/id/london-borough-council/sutton,London Borough of Sutton,22/12/2020,40481039,"4,454.16 ",Allied Care (Mhs) Ltd,10145,Peoples Services Directorate,Residential Care - Ext Provider,G310
http://opendatacommunities.org/id/london-borough-council/sutton,London Borough of Sutton,30/11/2020,6982483,567.15 ,Allied Publicity Services (Manchester) Ltd,34039,Health and Wellbeing Directorate,Mobility Scheme for the Disabled,H401
http://opendatacommunities.org/id/london-borough-council/sutton,London Borough of Sutton,12/10/2020,6979348,440.00 ,Alljos Services Ltd,28300,Peoples Services Directorate,Personal Requisites,F106
http://opendatacommunities.org/id/london-borough-council/sutton,London Borough of Sutton,01/12/2020,6982490,"1,238.95 ",Allstar Business Solutions,24482,"Environment, Housing & Regeneration Directorate",Fuel Etc,E030
http://opendatacommunities.org/id/london-borough-council/sutton,London Borough of Sutton,22/12/2020,40481046,"4,505.60 ",Allswell Care Services Ltd,20761,Peoples Services Directorate,Residential Care - Ext Provider,G310
http://opendatacommunities.org/id/london-borough-council/sutton,London Borough of Sutton,22/12/2020,40481117,"6,370.00 ",Allswell Care Services Ltd,20761,Peoples Services Directorate,Residential Care - Ext Provider,G310
http://opendatacommunities.org/id/london-borough-council/sutton,London Borough of Sutton,22/12/2020,40481140,"3,563.52 ",Allswell Care Services Ltd,20761,Peoples Services Directorate,Residential Care - Ext Provider,G310
http://opendatacommunities.org/id/london-borough-council/sutton,London Borough of Sutton,22/12/2020,40481136,"1,482.45 ",ANA Treatment Centres Ltd,10196,Peoples Services Directorate,Interim Placements - Ext Provider,G317
http://opendatacommunities.org/id/london-borough-council/sutton,London Borough of Sutton,01/11/2020,40477380,"3,252.90 ",Anchor Foster Care Services Ltd,10179,Peoples Services Directorate,Foster Parents,G326
http://opendatacommunities.org/id/london-borough-council/sutton,London Borough of Sutton,22/12/2020,40481232,"2,662.40 ",Anchor Trust,17878,Peoples Services Directorate,Residential Care - Ext Provider,G310
http://opendatacommunities.org/id/london-borough-council/sutton,London Borough of Sutton,04/12/2020,6982598,"1,000.00 ",Andrew Coppin T/A Andy Copps,35791,Health and Wellbeing Directorate,Arts Programme,F306
http://opendatacommunities.org/id/london-borough-council/sutton,London Borough of Sutton,24/12/2020,6983779,950.00 ,Andy Stewart,26808,"Environment, Housing & Regeneration Directorate",Temporary Protection - Homeless Persons,H300
http://opendatacommunities.org/id/london-borough-council/sutton,London Borough of Sutton,30/11/2020,6982816,"8,938.15 ",Apetito Ltd,10206,Health and Wellbeing Directorate,Provisions - General,F150
http://opendatacommunities.org/id/london-borough-council/sutton,London Borough of Sutton,30/11/2020,6982540,"1,080.00 ",APL Properties,26226,"Environment, Housing & Regeneration Directorate",Bed and Breakfast Accommodation,G400
http://opendatacommunities.org/id/london-borough-council/sutton,London Borough of Sutton,05/10/2020,6983203,600.00 ,AR & QS Holdings Limited T/A Andrew Scott Robertson,35416,HRA,Fees - Consultants (Ad Hoc),F283
http://opendatacommunities.org/id/london-borough-council/sutton,London Borough of Sutton,22/12/2020,6983868,"1,200.00 ",AR & QS Holdings Limited T/A Andrew Scott Robertson,35416,"Environment, Housing & Regeneration Directorate",Other Acquisition Costs,Y080
http://opendatacommunities.org/id/london-borough-council/sutton,London Borough of Sutton,18/12/2020,6983413,989.00 ,Arbtech Consulting Ltd,35513,"Environment, Housing & Regeneration Directorate",External Fees  - Other,Y130
http://opendatacommunities.org/id/london-borough-council/sutton,London Borough of Sutton,18/12/2020,6983414,839.00 ,Arbtech Consulting Ltd,35513,"Environment, Housing & Regeneration Directorate",External Fees  - Other,Y130
http://opendatacommunities.org/id/london-borough-council/sutton,London Borough of Sutton,18/12/2020,6983415,839.00 ,Arbtech Consulting Ltd,35513,"Environment, Housing & Regeneration Directorate",External Fees  - Other,Y130
http://opendatacommunities.org/id/london-borough-council/sutton,London Borough of Sutton,14/10/2020,40477248,"16,164.29 ",Area Camden Ltd,29908,Peoples Services Directorate,Residential Care-Children,G330
http://opendatacommunities.org/id/london-borough-council/sutton,London Borough of Sutton,10/11/2020,40477312,"15,642.86 ",Area Camden Ltd,29908,Peoples Services Directorate,Residential Care-Children,G330
http://opendatacommunities.org/id/london-borough-council/sutton,London Borough of Sutton,12/11/2020,6982646,"6,551.36 ",Arnold & Self,16110,"Environment, Housing & Regeneration Directorate",Bed and Breakfast Accommodation,G400
http://opendatacommunities.org/id/london-borough-council/sutton,London Borough of Sutton,12/08/2020,6982678,"6,771.34 ",Arnold & Self,16110,"Environment, Housing & Regeneration Directorate",Bed and Breakfast Accommodation,G400
http://opendatacommunities.org/id/london-borough-council/sutton,London Borough of Sutton,25/11/2020,6982518,"1,206.72 ",Arthur Rai Medical Services Ltd,35084,Health and Wellbeing Directorate,Agency Staff - Other,A301
http://opendatacommunities.org/id/london-borough-council/sutton,London Borough of Sutton,25/11/2020,6982519,653.64 ,Arthur Rai Medical Services Ltd,35084,Health and Wellbeing Directorate,Agency Staff - Other,A301
http://opendatacommunities.org/id/london-borough-council/sutton,London Borough of Sutton,02/12/2020,6982759,"1,005.60 ",Arthur Rai Medical Services Ltd,35084,Health and Wellbeing Directorate,Agency Staff - Other,A301
http://opendatacommunities.org/id/london-borough-council/sutton,London Borough of Sutton,01/01/2021,6982760,"1,298.90 ",Arthur Rai Medical Services Ltd,35084,Health and Wellbeing Directorate,Agency Staff - Other,A301
http://opendatacommunities.org/id/london-borough-council/sutton,London Borough of Sutton,02/12/2020,6982762,"1,257.00 ",Arthur Rai Medical Services Ltd,35084,Health and Wellbeing Directorate,Agency Staff - Other,A301
http://opendatacommunities.org/id/london-borough-council/sutton,London Borough of Sutton,09/12/2020,6983205,"1,307.28 ",Arthur Rai Medical Services Ltd,35084,Health and Wellbeing Directorate,Agency Staff - Other,A301
http://opendatacommunities.org/id/london-borough-council/sutton,London Borough of Sutton,16/12/2020,6983724,"1,257.00 ",Arthur Rai Medical Services Ltd,35084,Health and Wellbeing Directorate,Agency Staff - Other,A301
http://opendatacommunities.org/id/london-borough-council/sutton,London Borough of Sutton,16/12/2020,6983725,"1,273.76 ",Arthur Rai Medical Services Ltd,35084,Health and Wellbeing Directorate,Agency Staff - Other,A301
http://opendatacommunities.org/id/london-borough-council/sutton,London Borough of Sutton,01/11/2020,40475312,"1,845.60 ",Ashlong House Ltd,23101,Peoples Services Directorate,Supported Living - Ext Provider,G306
http://opendatacommunities.org/id/london-borough-council/sutton,London Borough of Sutton,01/11/2020,40475317,"1,264.80 ",Ashlong House Ltd,23101,Peoples Services Directorate,Supported Living - Ext Provider,G306
http://opendatacommunities.org/id/london-borough-council/sutton,London Borough of Sutton,22/12/2020,40481007,"3,920.00 ",Aspen Place,35583,Peoples Services Directorate,Nursing Care - Ext Provider,G311
http://opendatacommunities.org/id/london-borough-council/sutton,London Borough of Sutton,22/12/2020,40481146,"5,492.48 ",Aspens Charities,30002,Peoples Services Directorate,Residential Care - Ext Provider,G310
http://opendatacommunities.org/id/london-borough-council/sutton,London Borough of Sutton,30/12/2020,40482425,800.00 ,Aspirations Care Ltd,25173,Peoples Services Directorate,Home Care,G334
http://opendatacommunities.org/id/london-borough-council/sutton,London Borough of Sutton,30/12/2020,40482425,"2,373.00 ",Aspirations Care Ltd,25173,Peoples Services Directorate,Home Care,G334
http://opendatacommunities.org/id/london-borough-council/sutton,London Borough of Sutton,30/12/2020,40482428,"2,480.00 ",Aspirations Care Ltd,25173,Peoples Services Directorate,Home Care,G334
http://opendatacommunities.org/id/london-borough-council/sutton,London Borough of Sutton,30/12/2020,40482428,"7,356.30 ",Aspirations Care Ltd,25173,Peoples Services Directorate,Home Care,G334
http://opendatacommunities.org/id/london-borough-council/sutton,London Borough of Sutton,30/12/2020,40482429,"2,400.00 ",Aspirations Care Ltd,25173,Peoples Services Directorate,Home Care,G334
http://opendatacommunities.org/id/london-borough-council/sutton,London Borough of Sutton,30/12/2020,40482429,"7,119.00 ",Aspirations Care Ltd,25173,Peoples Services Directorate,Home Care,G334
http://opendatacommunities.org/id/london-borough-council/sutton,London Borough of Sutton,01/11/2020,40477365,"3,584.40 ",Aspirations Fostering Limited,35293,Peoples Services Directorate,Foster Parents,G326
http://opendatacommunities.org/id/london-borough-council/sutton,London Borough of Sutton,30/11/2020,6982543,"10,488.30 ",Assetgrove Lettings Ltd,28820,"Environment, Housing & Regeneration Directorate",Bed and Breakfast Accommodation,G400
http://opendatacommunities.org/id/london-borough-council/sutton,London Borough of Sutton,11/12/2020,6983020,"1,394.00 ",ASSOCIATON OF ACCOUNTING TECHNICIANS,34474,Peoples Services Directorate,Fees - Exams,F285
http://opendatacommunities.org/id/london-borough-council/sutton,London Borough of Sutton,18/12/2020,6983500,820.00 ,ASSOCIATON OF ACCOUNTING TECHNICIANS,34474,Peoples Services Directorate,Fees - Exams,F285
http://opendatacommunities.org/id/london-borough-council/sutton,London Borough of Sutton,11/12/2020,6983267,"72,035.45 ",Atalian Servest Limited,23051,Resources Directorate,FM - Building Cleaning Contract - Servest,G611
http://opendatacommunities.org/id/london-borough-council/sutton,London Borough of Sutton,04/11/2020,6981844,"1,380.00 ",Athona Ltd,35649,Peoples Services Directorate,Agency Staff - Other,A301
http://opendatacommunities.org/id/london-borough-council/sutton,London Borough of Sutton,28/10/2020,6981845,"1,380.00 ",Athona Ltd,35649,Peoples Services Directorate,Agency Staff - Other,A301
http://opendatacommunities.org/id/london-borough-council/sutton,London Borough of Sutton,18/11/2020,6981846,"1,380.00 ",Athona Ltd,35649,Peoples Services Directorate,Agency Staff - Other,A301
http://opendatacommunities.org/id/london-borough-council/sutton,London Borough of Sutton,18/09/2020,6981847,"1,380.00 ",Athona Ltd,35649,Peoples Services Directorate,Agency Staff - Other,A301
http://opendatacommunities.org/id/london-borough-council/sutton,London Borough of Sutton,11/11/2020,6981848,"1,334.00 ",Athona Ltd,35649,Peoples Services Directorate,Agency Staff - Other,A301
http://opendatacommunities.org/id/london-borough-council/sutton,London Borough of Sutton,27/11/2020,6982146,"1,380.00 ",Athona Ltd,35649,Peoples Services Directorate,Agency Staff - Other,A301
http://opendatacommunities.org/id/london-borough-council/sutton,London Borough of Sutton,02/12/2020,6982485,"1,380.00 ",Athona Ltd,35649,Peoples Services Directorate,Agency Staff - Other,A301
http://opendatacommunities.org/id/london-borough-council/sutton,London Borough of Sutton,09/12/2020,6982905,"1,380.00 ",Athona Ltd,35649,Peoples Services Directorate,Agency Staff - Other,A301
http://opendatacommunities.org/id/london-borough-council/sutton,London Borough of Sutton,16/12/2020,6983312,"1,380.00 ",Athona Ltd,35649,Peoples Services Directorate,Agency Staff - Other,A301
http://opendatacommunities.org/id/london-borough-council/sutton,London Borough of Sutton,02/11/2020,40477262,"4,484.65 ",Audax Supported Living CIC,35769,Peoples Services Directorate,Approved Lodgings,H323
http://opendatacommunities.org/id/london-borough-council/sutton,London Borough of Sutton,22/12/2020,40481010,"4,580.72 ",Autism & Aspergers Care Services,10327,Peoples Services Directorate,Residential Care - Ext Provider,G310
http://opendatacommunities.org/id/london-borough-council/sutton,London Borough of Sutton,22/12/2020,40481207,"6,637.40 ",Avens Ltd,35899,Peoples Services Directorate,Residential Care - Ext Provider,G310
http://opendatacommunities.org/id/london-borough-council/sutton,London Borough of Sutton,02/12/2020,6982998,528.00 ,Axcis Education Recruitment,21583,Peoples Services Directorate,One to One Care,G335
http://opendatacommunities.org/id/london-borough-council/sutton,London Borough of Sutton,02/12/2020,6982999,"1,320.00 ",Axcis Education Recruitment,21583,Peoples Services Directorate,One to One Care,G335
http://opendatacommunities.org/id/london-borough-council/sutton,London Borough of Sutton,02/12/2020,6983000,792.00 ,Axcis Education Recruitment,21583,Peoples Services Directorate,One to One Care,G335
http://opendatacommunities.org/id/london-borough-council/sutton,London Borough of Sutton,02/12/2020,6983001,"1,320.00 ",Axcis Education Recruitment,21583,Peoples Services Directorate,One to One Care,G335
http://opendatacommunities.org/id/london-borough-council/sutton,London Borough of Sutton,02/12/2020,6983003,528.00 ,Axcis Education Recruitment,21583,Peoples Services Directorate,One to One Care,G335
http://opendatacommunities.org/id/london-borough-council/sutton,London Borough of Sutton,02/12/2020,6983004,528.00 ,Axcis Education Recruitment,21583,Peoples Services Directorate,One to One Care,G335
http://opendatacommunities.org/id/london-borough-council/sutton,London Borough of Sutton,02/12/2020,6983006,"1,584.00 ",Axcis Education Recruitment,21583,Peoples Services Directorate,One to One Care,G335
http://opendatacommunities.org/id/london-borough-council/sutton,London Borough of Sutton,02/12/2020,6983007,792.00 ,Axcis Education Recruitment,21583,Peoples Services Directorate,One to One Care,G335
http://opendatacommunities.org/id/london-borough-council/sutton,London Borough of Sutton,09/12/2020,6983102,891.00 ,Axcis Education Recruitment,21583,Peoples Services Directorate,One to One Care,G335
http://opendatacommunities.org/id/london-borough-council/sutton,London Borough of Sutton,09/12/2020,6983103,814.00 ,Axcis Education Recruitment,21583,Peoples Services Directorate,One to One Care,G335
http://opendatacommunities.org/id/london-borough-council/sutton,London Borough of Sutton,09/12/2020,6983104,528.00 ,Axcis Education Recruitment,21583,Peoples Services Directorate,One to One Care,G335
http://opendatacommunities.org/id/london-borough-council/sutton,London Borough of Sutton,09/12/2020,6983107,506.00 ,Axcis Education Recruitment,21583,Peoples Services Directorate,One to One Care,G335
http://opendatacommunities.org/id/london-borough-council/sutton,London Borough of Sutton,21/10/2020,6983319,704.00 ,Axcis Education Recruitment,21583,Peoples Services Directorate,One to One Care,G335
http://opendatacommunities.org/id/london-borough-council/sutton,London Borough of Sutton,22/12/2020,6983726,931.95 ,Badger Office Supplies Ltd T/A Talking Turtle,35946,Health and Wellbeing Directorate,Provisions - General,F150
http://opendatacommunities.org/id/london-borough-council/sutton,London Borough of Sutton,10/08/2020,6983036,"1,852.00 ",Baily Garner (Health & Safety) Ltd,35418,"Environment, Housing & Regeneration Directorate",External Fees  - Other,Y130
http://opendatacommunities.org/id/london-borough-council/sutton,London Borough of Sutton,30/01/2020,6982832,"13,875.45 ",Baily Garner LLP,21501,"Environment, Housing & Regeneration Directorate",Building Works -Main Contractor,Y350
http://opendatacommunities.org/id/london-borough-council/sutton,London Borough of Sutton,25/09/2020,6982833,"1,316.00 ",Baily Garner LLP,21501,"Environment, Housing & Regeneration Directorate",Building Works -Main Contractor,Y350
http://opendatacommunities.org/id/london-borough-council/sutton,London Borough of Sutton,23/09/2020,6982834,"8,125.77 ",Baily Garner LLP,21501,"Environment, Housing & Regeneration Directorate",Building Works -Main Contractor,Y350
http://opendatacommunities.org/id/london-borough-council/sutton,London Borough of Sutton,28/07/2020,6983722,"1,500.00 ",Baily Garner LLP,21501,"Environment, Housing & Regeneration Directorate",External Fees  - Other,Y130
http://opendatacommunities.org/id/london-borough-council/sutton,London Borough of Sutton,24/11/2020,6981863,"2,750.00 ",Baltimore Consulting Ltd,35386,Peoples Services Directorate,Agency Staff - Other,A301
http://opendatacommunities.org/id/london-borough-council/sutton,London Borough of Sutton,01/12/2020,6982342,"2,200.00 ",Baltimore Consulting Ltd,35386,Peoples Services Directorate,Agency Staff - Other,A301
http://opendatacommunities.org/id/london-borough-council/sutton,London Borough of Sutton,01/12/2020,6982343,"2,750.00 ",Baltimore Consulting Ltd,35386,Peoples Services Directorate,Agency Staff - Other,A301
http://opendatacommunities.org/id/london-borough-council/sutton,London Borough of Sutton,08/12/2020,6982837,"2,200.00 ",Baltimore Consulting Ltd,35386,Peoples Services Directorate,Agency Staff - Other,A301
http://opendatacommunities.org/id/london-borough-council/sutton,London Borough of Sutton,15/10/2020,6982944,"2,200.00 ",Baltimore Consulting Ltd,35386,Peoples Services Directorate,Agency Staff - Other,A301
http://opendatacommunities.org/id/london-borough-council/sutton,London Borough of Sutton,29/10/2020,6982945,"2,200.00 ",Baltimore Consulting Ltd,35386,Peoples Services Directorate,Agency Staff - Other,A301
http://opendatacommunities.org/id/london-borough-council/sutton,London Borough of Sutton,16/12/2020,6983198,"6,875.00 ",Baltimore Consulting Ltd,35386,Peoples Services Directorate,Agency Staff - Other,A301
http://opendatacommunities.org/id/london-borough-council/sutton,London Borough of Sutton,16/12/2020,6983199,"2,200.00 ",Baltimore Consulting Ltd,35386,Peoples Services Directorate,Agency Staff - Other,A301
http://opendatacommunities.org/id/london-borough-council/sutton,London Borough of Sutton,16/12/2020,1304002,(708.33),Bandon Hill Primary,10372,Peoples Services Directorate,Top-up Funding,G064
http://opendatacommunities.org/id/london-borough-council/sutton,London Borough of Sutton,10/11/2020,6982572,"5,793.28 ",Bandon Hill Primary,10372,Peoples Services Directorate,Building Works -Main Contractor,Y350
http://opendatacommunities.org/id/london-borough-council/sutton,London Borough of Sutton,30/11/2020,40477254,"3,491.10 ",Banya,10375,Peoples Services Directorate,Foster Parents,G326
http://opendatacommunities.org/id/london-borough-council/sutton,London Borough of Sutton,22/12/2020,40481180,"5,200.00 ",Barchester Healthcare Homes Ltd,34661,Peoples Services Directorate,Nursing Care - Ext Provider,G311
http://opendatacommunities.org/id/london-borough-council/sutton,London Borough of Sutton,30/11/2020,6982487,824.34 ,Barnardo's,10370,Peoples Services Directorate,Play Groups,G322
http://opendatacommunities.org/id/london-borough-council/sutton,London Borough of Sutton,30/11/2020,6982488,"2,511.00 ",Barnardo's,10370,Peoples Services Directorate,Play Groups,G322
http://opendatacommunities.org/id/london-borough-council/sutton,London Borough of Sutton,15/12/2020,40480171,784.00 ,Barnardo's,10370,Peoples Services Directorate,Provider Contract Payments,F470
http://opendatacommunities.org/id/london-borough-council/sutton,London Borough of Sutton,15/12/2020,40480183,583.00 ,Barnardo's,10370,Peoples Services Directorate,Provider Contract Payments,F470
http://opendatacommunities.org/id/london-borough-council/sutton,London Borough of Sutton,15/12/2020,40480186,612.50 ,Barnardo's,10370,Peoples Services Directorate,Provider Contract Payments,F470
http://opendatacommunities.org/id/london-borough-council/sutton,London Borough of Sutton,15/12/2020,40480193,477.75 ,Barnardo's,10370,Peoples Services Directorate,Provider Contract Payments,F470
http://opendatacommunities.org/id/london-borough-council/sutton,London Borough of Sutton,15/12/2020,40480199,514.50 ,Barnardo's,10370,Peoples Services Directorate,Provider Contract Payments,F470
http://opendatacommunities.org/id/london-borough-council/sutton,London Borough of Sutton,04/12/2020,6982750,"2,775.00 ",Barnett Waddingham LLP,28449,Non-Service Cost Centres,Investment Expenses,A931
http://opendatacommunities.org/id/london-borough-council/sutton,London Borough of Sutton,21/09/2020,6982557,"2,723.00 ",BDC Brickwork and Property Developments,99815,"Environment, Housing & Regeneration Directorate",Grants -Made,Y610
http://opendatacommunities.org/id/london-borough-council/sutton,London Borough of Sutton,06/11/2020,6983015,"82,927.14 ",Beddington Bid Ltd,26888,"Environment, Housing & Regeneration Directorate",Other Services,F340
http://opendatacommunities.org/id/london-borough-council/sutton,London Borough of Sutton,06/11/2020,6983016,"82,927.14 ",Beddington Bid Ltd,26888,"Environment, Housing & Regeneration Directorate",Other Services,F340
http://opendatacommunities.org/id/london-borough-council/sutton,London Borough of Sutton,30/09/2020,6982570,590.19 ,Beddington Infants School,10445,Peoples Services Directorate,Building Works -Main Contractor,Y350
http://opendatacommunities.org/id/london-borough-council/sutton,London Borough of Sutton,17/11/2020,6982908,"1,547.00 ",Beddington Infants School,10445,Peoples Services Directorate,Building Works -Main Contractor,Y350
http://opendatacommunities.org/id/london-borough-council/sutton,London Borough of Sutton,02/12/2020,6982499,464.00 ,Beeches Tree Care,10451,"Environment, Housing & Regeneration Directorate",Highway Trees - Maintenance,D560
http://opendatacommunities.org/id/london-borough-council/sutton,London Borough of Sutton,02/12/2020,6982500,"1,642.00 ",Beeches Tree Care,10451,"Environment, Housing & Regeneration Directorate",Trees - SCH,D875
http://opendatacommunities.org/id/london-borough-council/sutton,London Borough of Sutton,02/12/2020,6982501,"4,666.00 ",Beeches Tree Care,10451,"Environment, Housing & Regeneration Directorate",Trees - SCH,D875
http://opendatacommunities.org/id/london-borough-council/sutton,London Borough of Sutton,11/12/2020,6983055,"9,881.00 ",Beeches Tree Care,10451,"Environment, Housing & Regeneration Directorate",Highway Trees - Maintenance,D560
http://opendatacommunities.org/id/london-borough-council/sutton,London Borough of Sutton,11/12/2020,6983057,"2,616.00 ",Beeches Tree Care,10451,"Environment, Housing & Regeneration Directorate",Building Works -Main Contractor,Y350
http://opendatacommunities.org/id/london-borough-council/sutton,London Borough of Sutton,11/12/2020,6983058,"7,120.00 ",Beeches Tree Care,10451,"Environment, Housing & Regeneration Directorate",Emergency Repairs,D540
http://opendatacommunities.org/id/london-borough-council/sutton,London Borough of Sutton,22/12/2020,6983629,"13,840.00 ",Beeches Tree Care,10451,"Environment, Housing & Regeneration Directorate",Emergency Repairs,D540
http://opendatacommunities.org/id/london-borough-council/sutton,London Borough of Sutton,22/12/2020,6983630,"10,782.50 ",Beeches Tree Care,10451,"Environment, Housing & Regeneration Directorate",Emergency Repairs,D540
http://opendatacommunities.org/id/london-borough-council/sutton,London Borough of Sutton,15/12/2020,6983139,"1,024.83 ",Bellville-Homes Ltd,26490,"Environment, Housing & Regeneration Directorate",Temporary Protection - Homeless Persons,H300
http://opendatacommunities.org/id/london-borough-council/sutton,London Borough of Sutton,30/11/2020,6982856,"1,470.00 ",Benhill & Belmont GP Centre,15665,Health and Wellbeing Directorate,Provider Contract Payments,F470
http://opendatacommunities.org/id/london-borough-council/sutton,London Borough of Sutton,09/11/2020,40475233,800.00 ,Best at Home Domiciliary Care Services Ltd,30159,Peoples Services Directorate,Home Care,G334
http://opendatacommunities.org/id/london-borough-council/sutton,London Borough of Sutton,09/11/2020,40475236,772.00 ,Best at Home Domiciliary Care Services Ltd,30159,Peoples Services Directorate,Home Care,G334
http://opendatacommunities.org/id/london-borough-council/sutton,London Borough of Sutton,09/11/2020,40475239,772.00 ,Best at Home Domiciliary Care Services Ltd,30159,Peoples Services Directorate,Home Care,G334
http://opendatacommunities.org/id/london-borough-council/sutton,London Borough of Sutton,09/11/2020,40475243,656.00 ,Best at Home Domiciliary Care Services Ltd,30159,Peoples Services Directorate,Home Care,G334
http://opendatacommunities.org/id/london-borough-council/sutton,London Borough of Sutton,09/11/2020,40475258,912.00 ,Best at Home Domiciliary Care Services Ltd,30159,Peoples Services Directorate,Home Care,G334
http://opendatacommunities.org/id/london-borough-council/sutton,London Borough of Sutton,09/11/2020,40475268,656.00 ,Best at Home Domiciliary Care Services Ltd,30159,Peoples Services Directorate,Home Care,G334
http://opendatacommunities.org/id/london-borough-council/sutton,London Borough of Sutton,16/11/2020,40476880,656.00 ,Best at Home Domiciliary Care Services Ltd,30159,Peoples Services Directorate,Home Care,G334
http://opendatacommunities.org/id/london-borough-council/sutton,London Borough of Sutton,16/11/2020,40476902,656.00 ,Best at Home Domiciliary Care Services Ltd,30159,Peoples Services Directorate,Home Care,G334
http://opendatacommunities.org/id/london-borough-council/sutton,London Borough of Sutton,16/11/2020,40476906,772.00 ,Best at Home Domiciliary Care Services Ltd,30159,Peoples Services Directorate,Home Care,G334
http://opendatacommunities.org/id/london-borough-council/sutton,London Borough of Sutton,16/11/2020,40476922,772.00 ,Best at Home Domiciliary Care Services Ltd,30159,Peoples Services Directorate,Home Care,G334
http://opendatacommunities.org/id/london-borough-council/sutton,London Borough of Sutton,16/11/2020,40476935,800.00 ,Best at Home Domiciliary Care Services Ltd,30159,Peoples Services Directorate,Home Care,G334
http://opendatacommunities.org/id/london-borough-council/sutton,London Borough of Sutton,16/11/2020,40476950,912.00 ,Best at Home Domiciliary Care Services Ltd,30159,Peoples Services Directorate,Home Care,G334
http://opendatacommunities.org/id/london-borough-council/sutton,London Borough of Sutton,09/11/2020,40478513,977.00 ,Best at Home Domiciliary Care Services Ltd,30159,Peoples Services Directorate,Home Care,G334
http://opendatacommunities.org/id/london-borough-council/sutton,London Borough of Sutton,16/11/2020,40478516,977.00 ,Best at Home Domiciliary Care Services Ltd,30159,Peoples Services Directorate,Home Care,G334
http://opendatacommunities.org/id/london-borough-council/sutton,London Borough of Sutton,28/09/2020,40478527,977.00 ,Best at Home Domiciliary Care Services Ltd,30159,Peoples Services Directorate,Home Care,G334
http://opendatacommunities.org/id/london-borough-council/sutton,London Borough of Sutton,19/10/2020,40478528,977.00 ,Best at Home Domiciliary Care Services Ltd,30159,Peoples Services Directorate,Home Care,G334
http://opendatacommunities.org/id/london-borough-council/sutton,London Borough of Sutton,05/10/2020,40478529,977.00 ,Best at Home Domiciliary Care Services Ltd,30159,Peoples Services Directorate,Home Care,G334
http://opendatacommunities.org/id/london-borough-council/sutton,London Borough of Sutton,05/10/2020,40478531,772.00 ,Best at Home Domiciliary Care Services Ltd,30159,Peoples Services Directorate,Home Care,G334
http://opendatacommunities.org/id/london-borough-council/sutton,London Borough of Sutton,26/10/2020,40478538,977.00 ,Best at Home Domiciliary Care Services Ltd,30159,Peoples Services Directorate,Home Care,G334
http://opendatacommunities.org/id/london-borough-council/sutton,London Borough of Sutton,02/11/2020,40478539,977.00 ,Best at Home Domiciliary Care Services Ltd,30159,Peoples Services Directorate,Home Care,G334
http://opendatacommunities.org/id/london-borough-council/sutton,London Borough of Sutton,12/10/2020,40478550,977.00 ,Best at Home Domiciliary Care Services Ltd,30159,Peoples Services Directorate,Home Care,G334
http://opendatacommunities.org/id/london-borough-council/sutton,London Borough of Sutton,23/11/2020,40480582,912.00 ,Best at Home Domiciliary Care Services Ltd,30159,Peoples Services Directorate,Home Care,G334
http://opendatacommunities.org/id/london-borough-council/sutton,London Borough of Sutton,23/11/2020,40480584,800.00 ,Best at Home Domiciliary Care Services Ltd,30159,Peoples Services Directorate,Home Care,G334
http://opendatacommunities.org/id/london-borough-council/sutton,London Borough of Sutton,23/11/2020,40480628,656.00 ,Best at Home Domiciliary Care Services Ltd,30159,Peoples Services Directorate,Home Care,G334
http://opendatacommunities.org/id/london-borough-council/sutton,London Borough of Sutton,23/11/2020,40480638,772.00 ,Best at Home Domiciliary Care Services Ltd,30159,Peoples Services Directorate,Home Care,G334
http://opendatacommunities.org/id/london-borough-council/sutton,London Borough of Sutton,23/11/2020,40480641,772.00 ,Best at Home Domiciliary Care Services Ltd,30159,Peoples Services Directorate,Home Care,G334
http://opendatacommunities.org/id/london-borough-council/sutton,London Borough of Sutton,23/11/2020,40480642,656.00 ,Best at Home Domiciliary Care Services Ltd,30159,Peoples Services Directorate,Home Care,G334
http://opendatacommunities.org/id/london-borough-council/sutton,London Borough of Sutton,03/12/2020,40482272,772.00 ,Best at Home Domiciliary Care Services Ltd,30159,Peoples Services Directorate,Home Care,G334
http://opendatacommunities.org/id/london-borough-council/sutton,London Borough of Sutton,03/12/2020,40482277,800.00 ,Best at Home Domiciliary Care Services Ltd,30159,Peoples Services Directorate,Home Care,G334
http://opendatacommunities.org/id/london-borough-council/sutton,London Borough of Sutton,03/12/2020,40482279,656.00 ,Best at Home Domiciliary Care Services Ltd,30159,Peoples Services Directorate,Home Care,G334
http://opendatacommunities.org/id/london-borough-council/sutton,London Borough of Sutton,03/12/2020,40482334,586.00 ,Best at Home Domiciliary Care Services Ltd,30159,Peoples Services Directorate,Home Care,G334
http://opendatacommunities.org/id/london-borough-council/sutton,London Borough of Sutton,03/12/2020,40482342,772.00 ,Best at Home Domiciliary Care Services Ltd,30159,Peoples Services Directorate,Home Care,G334
http://opendatacommunities.org/id/london-borough-council/sutton,London Borough of Sutton,03/12/2020,40482346,912.00 ,Best at Home Domiciliary Care Services Ltd,30159,Peoples Services Directorate,Home Care,G334
http://opendatacommunities.org/id/london-borough-council/sutton,London Borough of Sutton,26/11/2020,6982593,"1,189.50 ",Bevan Brittan LLP,28285,Peoples Services Directorate,Legal Fees,Y040
http://opendatacommunities.org/id/london-borough-council/sutton,London Borough of Sutton,10/12/2020,6983068,447.17 ,BFS Group T/A Bidfood,14589,Health and Wellbeing Directorate,Refreshments,F155
http://opendatacommunities.org/id/london-borough-council/sutton,London Borough of Sutton,30/07/2020,6983224,422.20 ,BFS Group T/A Bidfood,14589,Health and Wellbeing Directorate,Refreshments,F155
http://opendatacommunities.org/id/london-borough-council/sutton,London Borough of Sutton,01/10/2020,6983226,559.53 ,BFS Group T/A Bidfood,14589,Health and Wellbeing Directorate,Refreshments,F155
http://opendatacommunities.org/id/london-borough-council/sutton,London Borough of Sutton,10/12/2020,6983228,467.13 ,BFS Group T/A Bidfood,14589,Health and Wellbeing Directorate,Refreshments,F155
http://opendatacommunities.org/id/london-borough-council/sutton,London Borough of Sutton,16/07/2020,6983231,554.24 ,BFS Group T/A Bidfood,14589,Health and Wellbeing Directorate,Refreshments,F155
http://opendatacommunities.org/id/london-borough-council/sutton,London Borough of Sutton,16/04/2020,6983232,517.19 ,BFS Group T/A Bidfood,14589,Health and Wellbeing Directorate,Refreshments,F155
http://opendatacommunities.org/id/london-borough-council/sutton,London Borough of Sutton,01/12/2020,1302868,"15,250.00 ",Blossom House Lower School,10507,Peoples Services Directorate,Independent Schools,G325
http://opendatacommunities.org/id/london-borough-council/sutton,London Borough of Sutton,01/12/2020,1302869,"15,950.00 ",Blossom House Lower School,10507,Peoples Services Directorate,Independent Schools,G325
http://opendatacommunities.org/id/london-borough-council/sutton,London Borough of Sutton,01/12/2020,1302870,"11,008.80 ",Blossom House Lower School,10507,Peoples Services Directorate,Independent Schools,G325
http://opendatacommunities.org/id/london-borough-council/sutton,London Borough of Sutton,01/12/2020,1302871,"14,850.00 ",Blossom House Lower School,10507,Peoples Services Directorate,Independent Schools,G325
http://opendatacommunities.org/id/london-borough-council/sutton,London Borough of Sutton,01/12/2020,1302872,"11,008.80 ",Blossom House Lower School,10507,Peoples Services Directorate,Independent Schools,G325
http://opendatacommunities.org/id/london-borough-council/sutton,London Borough of Sutton,01/12/2020,1302873,"19,516.67 ",Blossom House Lower School,10507,Peoples Services Directorate,Independent Schools,G325
http://opendatacommunities.org/id/london-borough-council/sutton,London Borough of Sutton,01/12/2020,1302874,"14,850.00 ",Blossom House Lower School,10507,Peoples Services Directorate,Independent Schools,G325
http://opendatacommunities.org/id/london-borough-council/sutton,London Borough of Sutton,01/12/2020,1302875,"15,250.00 ",Blossom House Lower School,10507,Peoples Services Directorate,Independent Schools,G325
http://opendatacommunities.org/id/london-borough-council/sutton,London Borough of Sutton,01/12/2020,1302876,"15,250.00 ",Blossom House Lower School,10507,Peoples Services Directorate,Independent Schools,G325
http://opendatacommunities.org/id/london-borough-council/sutton,London Borough of Sutton,01/12/2020,1302877,"13,150.00 ",Blossom House Lower School,10507,Peoples Services Directorate,Independent Schools,G325
http://opendatacommunities.org/id/london-borough-council/sutton,London Borough of Sutton,01/12/2020,1302878,"13,950.00 ",Blossom House Lower School,10507,Peoples Services Directorate,Independent Schools,G325
http://opendatacommunities.org/id/london-borough-council/sutton,London Borough of Sutton,01/12/2020,1302879,"13,150.00 ",Blossom House Lower School,10507,Peoples Services Directorate,Independent Schools,G325
http://opendatacommunities.org/id/london-borough-council/sutton,London Borough of Sutton,01/12/2020,1302880,"15,950.00 ",Blossom House Lower School,10507,Peoples Services Directorate,Independent Schools,G325
http://opendatacommunities.org/id/london-borough-council/sutton,London Borough of Sutton,01/12/2020,1302881,"12,750.00 ",Blossom House Lower School,10507,Peoples Services Directorate,Independent Schools,G325
http://opendatacommunities.org/id/london-borough-council/sutton,London Borough of Sutton,01/12/2020,1302882,"15,950.00 ",Blossom House Lower School,10507,Peoples Services Directorate,Independent Schools,G325
http://opendatacommunities.org/id/london-borough-council/sutton,London Borough of Sutton,01/12/2020,1302883,"9,416.66 ",Blossom House Lower School,10507,Peoples Services Directorate,Independent Schools,G325
http://opendatacommunities.org/id/london-borough-council/sutton,London Borough of Sutton,01/12/2020,1302884,"15,250.00 ",Blossom House Lower School,10507,Peoples Services Directorate,Independent Schools,G325
http://opendatacommunities.org/id/london-borough-council/sutton,London Borough of Sutton,02/11/2020,1303653,"6,500.00 ",Blossom House Lower School,10507,Peoples Services Directorate,Independent Schools,G325
http://opendatacommunities.org/id/london-borough-council/sutton,London Borough of Sutton,01/12/2020,1303654,"6,500.00 ",Blossom House Lower School,10507,Peoples Services Directorate,Independent Schools,G325
http://opendatacommunities.org/id/london-borough-council/sutton,London Borough of Sutton,04/12/2020,6983402,"113,482.04 ",Breyer Group Plc,97044,"Environment, Housing & Regeneration Directorate",Building Works -Main Contractor,Y350
http://opendatacommunities.org/id/london-borough-council/sutton,London Borough of Sutton,29/10/2020,6983563,"303,066.33 ",Breyer Group Plc,97044,"Environment, Housing & Regeneration Directorate",Building Works -Main Contractor,Y350
http://opendatacommunities.org/id/london-borough-council/sutton,London Borough of Sutton,18/12/2020,6983564,"41,340.63 ",Breyer Group Plc,97044,"Environment, Housing & Regeneration Directorate",Building Works -Main Contractor,Y350
http://opendatacommunities.org/id/london-borough-council/sutton,London Borough of Sutton,21/12/2020,6983565,"105,213.75 ",Breyer Group Plc,97044,"Environment, Housing & Regeneration Directorate",Building Works -Main Contractor,Y350
http://opendatacommunities.org/id/london-borough-council/sutton,London Borough of Sutton,22/12/2020,40481078,"3,611.68 ",Bridge House Care Centre,10620,Peoples Services Directorate,Nursing Care - Ext Provider,G311
http://opendatacommunities.org/id/london-borough-council/sutton,London Borough of Sutton,22/12/2020,40481097,"3,502.24 ",Bridge House Care Centre,10620,Peoples Services Directorate,Nursing Care - Ext Provider,G311
http://opendatacommunities.org/id/london-borough-council/sutton,London Borough of Sutton,22/12/2020,40481098,"3,586.28 ",Bridge House Care Centre,10620,Peoples Services Directorate,Nursing Care - Ext Provider,G311
http://opendatacommunities.org/id/london-borough-council/sutton,London Borough of Sutton,22/12/2020,40481144,"3,612.00 ",Bridge House Care Centre,10620,Peoples Services Directorate,Nursing Care - Ext Provider,G311
http://opendatacommunities.org/id/london-borough-council/sutton,London Borough of Sutton,22/12/2020,40481160,"2,908.16 ",Bridge House Care Centre,10620,Peoples Services Directorate,Nursing Care - Ext Provider,G311
http://opendatacommunities.org/id/london-borough-council/sutton,London Borough of Sutton,22/12/2020,40481162,"3,611.68 ",Bridge House Care Centre,10620,Peoples Services Directorate,Nursing Care - Ext Provider,G311
http://opendatacommunities.org/id/london-borough-council/sutton,London Borough of Sutton,22/12/2020,40481178,"3,555.32 ",Bridge House Care Centre,10620,Peoples Services Directorate,Nursing Care - Ext Provider,G311
http://opendatacommunities.org/id/london-borough-council/sutton,London Borough of Sutton,22/12/2020,40481193,"3,575.68 ",Bridge House Care Centre,10620,Peoples Services Directorate,Nursing Care - Ext Provider,G311
http://opendatacommunities.org/id/london-borough-council/sutton,London Borough of Sutton,22/12/2020,40481225,"2,075.08 ",Bridge House Care Centre,10620,Peoples Services Directorate,Nursing Care - Ext Provider,G311
http://opendatacommunities.org/id/london-borough-council/sutton,London Borough of Sutton,22/12/2020,40481245,"3,555.32 ",Bridge House Care Centre,10620,Peoples Services Directorate,Nursing Care - Ext Provider,G311
http://opendatacommunities.org/id/london-borough-council/sutton,London Borough of Sutton,22/12/2020,40481280,"3,586.28 ",Bridge House Care Centre,10620,Peoples Services Directorate,Nursing Care - Ext Provider,G311
http://opendatacommunities.org/id/london-borough-council/sutton,London Borough of Sutton,22/12/2020,40481362,"3,612.00 ",Bridge House Care Centre,10620,Peoples Services Directorate,Nursing Care - Ext Provider,G311
http://opendatacommunities.org/id/london-borough-council/sutton,London Borough of Sutton,22/12/2020,40481398,"3,472.64 ",Bridge House Care Centre,10620,Peoples Services Directorate,Nursing Care - Ext Provider,G311
http://opendatacommunities.org/id/london-borough-council/sutton,London Borough of Sutton,01/11/2020,40477307,"2,700.00 ",Brighter Futures Foster Care Ltd,27648,Peoples Services Directorate,Foster Parents,G326
http://opendatacommunities.org/id/london-borough-council/sutton,London Borough of Sutton,01/11/2020,40477344,"3,257.10 ",Brighter Futures Foster Care Ltd,27648,Peoples Services Directorate,Foster Parents,G326
http://opendatacommunities.org/id/london-borough-council/sutton,London Borough of Sutton,01/11/2020,40477384,"3,257.14 ",Brighter Futures Foster Care Ltd,27648,Peoples Services Directorate,Foster Parents,G326
http://opendatacommunities.org/id/london-borough-council/sutton,London Borough of Sutton,27/10/2020,6983070,"(1,252.35)",British Gas,10641,HRA,Electricity - Anti Hypothermia Heating,D622
http://opendatacommunities.org/id/london-borough-council/sutton,London Borough of Sutton,27/10/2020,6983070,491.83 ,British Gas,10641,HRA,Electricity - Anti Hypothermia Heating,D622
http://opendatacommunities.org/id/london-borough-council/sutton,London Borough of Sutton,15/12/2020,6983898,453.61 ,British Gas,10641,Resources Directorate,Electricity - General,D620
http://opendatacommunities.org/id/london-borough-council/sutton,London Borough of Sutton,07/12/2020,6982764,417.60 ,British Hardwood Tree Nursery Ltd,22789,"Environment, Housing & Regeneration Directorate","Trees, Plants and Shrubs",F101
http://opendatacommunities.org/id/london-borough-council/sutton,London Borough of Sutton,22/12/2020,40481055,"3,511.12 ",British Home & Hospital For Incurables,10589,Peoples Services Directorate,Nursing Care - Ext Provider,G311
http://opendatacommunities.org/id/london-borough-council/sutton,London Borough of Sutton,22/12/2020,40481360,"2,497.88 ",British Home & Hospital For Incurables,10589,Peoples Services Directorate,Nursing Care - Ext Provider,G311
http://opendatacommunities.org/id/london-borough-council/sutton,London Borough of Sutton,22/12/2020,40481054,"3,543.04 ",Broadlands Nursing Home,10586,Peoples Services Directorate,Nursing Care - Ext Provider,G311
http://opendatacommunities.org/id/london-borough-council/sutton,London Borough of Sutton,22/12/2020,40481313,"3,752.64 ",Broadlands Nursing Home,10586,Peoples Services Directorate,Nursing Care - Ext Provider,G311
http://opendatacommunities.org/id/london-borough-council/sutton,London Borough of Sutton,22/12/2020,40481346,"3,586.28 ",Broadlands Nursing Home,10586,Peoples Services Directorate,Nursing Care - Ext Provider,G311
http://opendatacommunities.org/id/london-borough-council/sutton,London Borough of Sutton,19/08/2020,6981611,615.00 ,BS Burner Services Ltd,34749,Peoples Services Directorate,General Maintenance,D500
http://opendatacommunities.org/id/london-borough-council/sutton,London Borough of Sutton,09/12/2020,6983356,"5,705.00 ",Buller Hotel,23493,"Environment, Housing & Regeneration Directorate",Bed and Breakfast Accommodation,G400
http://opendatacommunities.org/id/london-borough-council/sutton,London Borough of Sutton,22/12/2020,40481325,"7,824.28 ",Butterfly's Care Homes Ltd,28860,Peoples Services Directorate,Residential Care - Ext Provider,G310
http://opendatacommunities.org/id/london-borough-council/sutton,London Borough of Sutton,01/12/2020,40477324,"4,559.40 ",By The Bridge Ltd,25655,Peoples Services Directorate,Foster Parents,G326
http://opendatacommunities.org/id/london-borough-council/sutton,London Borough of Sutton,01/12/2020,40477325,"3,404.53 ",By The Bridge Ltd,25655,Peoples Services Directorate,Foster Parents,G326
http://opendatacommunities.org/id/london-borough-council/sutton,London Borough of Sutton,01/12/2020,40477326,"5,745.26 ",By The Bridge Ltd,25655,Peoples Services Directorate,Foster Parents,G326
http://opendatacommunities.org/id/london-borough-council/sutton,London Borough of Sutton,01/12/2020,40477357,"2,922.51 ",By The Bridge Ltd,25655,Peoples Services Directorate,Foster Parents,G326
http://opendatacommunities.org/id/london-borough-council/sutton,London Borough of Sutton,01/12/2020,40477376,"2,922.51 ",By The Bridge Ltd,25655,Peoples Services Directorate,Foster Parents,G326
http://opendatacommunities.org/id/london-borough-council/sutton,London Borough of Sutton,10/07/2020,6982631,837.62 ,Cablesheer (Asbestos) Ltd,97730,"Environment, Housing & Regeneration Directorate",Building Works -Main Contractor,Y350
http://opendatacommunities.org/id/london-borough-council/sutton,London Borough of Sutton,27/10/2020,40477285,"15,000.00 ",Calcot Services for Children Ltd,34806,Peoples Services Directorate,Residential Care-Children,G330
http://opendatacommunities.org/id/london-borough-council/sutton,London Borough of Sutton,22/12/2020,40481385,"4,118.48 ",Cambian Asperger Syndrome Services Ltd,12082,Peoples Services Directorate,Interim Placements - Ext Provider,G317
http://opendatacommunities.org/id/london-borough-council/sutton,London Borough of Sutton,03/12/2020,6982594,"6,422.40 ",Candy Pampering & Aesthetics Ltd (Robyn Raye Academy),35706,Peoples Services Directorate,Fees - Consultants (Ad Hoc),F283
http://opendatacommunities.org/id/london-borough-council/sutton,London Borough of Sutton,08/12/2020,6982965,"18,511.88 ",Canon (UK) Ltd,13275,Resources Directorate,Printing - General,F215
http://opendatacommunities.org/id/london-borough-council/sutton,London Borough of Sutton,08/12/2020,6982986,"1,447.10 ",Canon (UK) Ltd,13275,Resources Directorate,Printing - General,F215
http://opendatacommunities.org/id/london-borough-council/sutton,London Borough of Sutton,09/09/2020,6982987,"18,511.88 ",Canon (UK) Ltd,13275,Resources Directorate,Printing - General,F215
http://opendatacommunities.org/id/london-borough-council/sutton,London Borough of Sutton,29/09/2020,6982992,"7,247.15 ",Canon (UK) Ltd,13275,Resources Directorate,Printing - General,F215
http://opendatacommunities.org/id/london-borough-council/sutton,London Borough of Sutton,09/09/2020,6982993,"1,447.10 ",Canon (UK) Ltd,13275,Resources Directorate,Printing - General,F215
http://opendatacommunities.org/id/london-borough-council/sutton,London Borough of Sutton,22/12/2020,40481285,"3,913.56 ",Canterbury Oast Trust,10755,Peoples Services Directorate,Residential Care - Ext Provider,G310
http://opendatacommunities.org/id/london-borough-council/sutton,London Borough of Sutton,08/12/2020,6983283,"13,290.00 ",Capita Business Services Ltd,10780,Peoples Services Directorate,IT Licences,F385
http://opendatacommunities.org/id/london-borough-council/sutton,London Borough of Sutton,30/11/2020,40477265,"3,321.60 ",Capstone Foster Care (South East) Ltd,16360,Peoples Services Directorate,Foster Parents,G326
http://opendatacommunities.org/id/london-borough-council/sutton,London Borough of Sutton,30/11/2020,40477320,"5,554.20 ",Capstone Foster Care (South East) Ltd,16360,Peoples Services Directorate,Foster Parents,G326
http://opendatacommunities.org/id/london-borough-council/sutton,London Borough of Sutton,30/11/2020,40477364,"3,552.90 ",Capstone Foster Care (South East) Ltd,16360,Peoples Services Directorate,Foster Parents,G326
http://opendatacommunities.org/id/london-borough-council/sutton,London Borough of Sutton,02/11/2020,40477398,"19,242.90 ",Care 4 Children Residential Services Ltd,29992,Peoples Services Directorate,Residential Care-Children,G330
http://opendatacommunities.org/id/london-borough-council/sutton,London Borough of Sutton,27/11/2020,40481998,"9,857.14 ",Care Advocates Ltd,34664,Peoples Services Directorate,Supported Living - Ext Provider,G306
http://opendatacommunities.org/id/london-borough-council/sutton,London Borough of Sutton,22/12/2020,40481033,"3,631.80 ",Care Direct Uk Ltd  (David House),27080,Peoples Services Directorate,Residential Care - Ext Provider,G310
http://opendatacommunities.org/id/london-borough-council/sutton,London Borough of Sutton,02/11/2020,40474540,784.00 ,Care More Ltd,33872,Peoples Services Directorate,Home Care,G334
http://opendatacommunities.org/id/london-borough-council/sutton,London Borough of Sutton,02/11/2020,40474548,625.50 ,Care More Ltd,33872,Peoples Services Directorate,Home Care,G334
http://opendatacommunities.org/id/london-borough-council/sutton,London Borough of Sutton,02/11/2020,40474555,450.00 ,Care More Ltd,33872,Peoples Services Directorate,Home Care,G334
http://opendatacommunities.org/id/london-borough-council/sutton,London Borough of Sutton,02/11/2020,40474556,441.00 ,Care More Ltd,33872,Peoples Services Directorate,Home Care,G334
http://opendatacommunities.org/id/london-borough-council/sutton,London Borough of Sutton,02/11/2020,40474556,539.00 ,Care More Ltd,33872,Peoples Services Directorate,Home Care,G334
http://opendatacommunities.org/id/london-borough-council/sutton,London Borough of Sutton,02/11/2020,40474557,475.00 ,Care More Ltd,33872,Peoples Services Directorate,Home Care,G334
http://opendatacommunities.org/id/london-borough-council/sutton,London Borough of Sutton,02/11/2020,40474561,566.00 ,Care More Ltd,33872,Peoples Services Directorate,Home Care,G334
http://opendatacommunities.org/id/london-borough-council/sutton,London Borough of Sutton,02/11/2020,40474571,826.00 ,Care More Ltd,33872,Peoples Services Directorate,Home Care,G334
http://opendatacommunities.org/id/london-borough-council/sutton,London Borough of Sutton,02/11/2020,40474572,798.00 ,Care More Ltd,33872,Peoples Services Directorate,Home Care,G334
http://opendatacommunities.org/id/london-borough-council/sutton,London Borough of Sutton,02/11/2020,40474579,594.00 ,Care More Ltd,33872,Peoples Services Directorate,Home Care,G334
http://opendatacommunities.org/id/london-borough-council/sutton,London Borough of Sutton,02/11/2020,40474582,506.00 ,Care More Ltd,33872,Peoples Services Directorate,Home Care,G334
http://opendatacommunities.org/id/london-borough-council/sutton,London Borough of Sutton,02/11/2020,40474583,966.50 ,Care More Ltd,33872,Peoples Services Directorate,Home Care,G334
http://opendatacommunities.org/id/london-borough-council/sutton,London Borough of Sutton,02/11/2020,40474587,742.00 ,Care More Ltd,33872,Peoples Services Directorate,Home Care,G334
http://opendatacommunities.org/id/london-borough-council/sutton,London Borough of Sutton,02/11/2020,40474588,489.50 ,Care More Ltd,33872,Peoples Services Directorate,Home Care,G334
http://opendatacommunities.org/id/london-borough-council/sutton,London Borough of Sutton,02/11/2020,40474591,551.50 ,Care More Ltd,33872,Peoples Services Directorate,Home Care,G334
http://opendatacommunities.org/id/london-borough-council/sutton,London Borough of Sutton,16/11/2020,40478521,742.00 ,Care More Ltd,33872,Peoples Services Directorate,Home Care,G334
http://opendatacommunities.org/id/london-borough-council/sutton,London Borough of Sutton,16/11/2020,40478522,826.00 ,Care More Ltd,33872,Peoples Services Directorate,Home Care,G334
http://opendatacommunities.org/id/london-borough-council/sutton,London Borough of Sutton,16/11/2020,40478524,798.00 ,Care More Ltd,33872,Peoples Services Directorate,Home Care,G334
http://opendatacommunities.org/id/london-borough-council/sutton,London Borough of Sutton,16/11/2020,40478541,554.50 ,Care More Ltd,33872,Peoples Services Directorate,Home Care,G334
http://opendatacommunities.org/id/london-borough-council/sutton,London Borough of Sutton,16/11/2020,40478542,784.00 ,Care More Ltd,33872,Peoples Services Directorate,Home Care,G334
http://opendatacommunities.org/id/london-borough-council/sutton,London Borough of Sutton,16/11/2020,40478545,625.50 ,Care More Ltd,33872,Peoples Services Directorate,Home Care,G334
http://opendatacommunities.org/id/london-borough-council/sutton,London Borough of Sutton,16/11/2020,40478546,475.00 ,Care More Ltd,33872,Peoples Services Directorate,Home Care,G334
http://opendatacommunities.org/id/london-borough-council/sutton,London Borough of Sutton,16/11/2020,40478548,489.50 ,Care More Ltd,33872,Peoples Services Directorate,Home Care,G334
http://opendatacommunities.org/id/london-borough-council/sutton,London Borough of Sutton,16/11/2020,40478549,506.00 ,Care More Ltd,33872,Peoples Services Directorate,Home Care,G334
http://opendatacommunities.org/id/london-borough-council/sutton,London Borough of Sutton,16/11/2020,40478554,692.00 ,Care More Ltd,33872,Peoples Services Directorate,Home Care,G334
http://opendatacommunities.org/id/london-borough-council/sutton,London Borough of Sutton,16/11/2020,40478555,819.50 ,Care More Ltd,33872,Peoples Services Directorate,Home Care,G334
http://opendatacommunities.org/id/london-borough-council/sutton,London Borough of Sutton,16/11/2020,40478556,441.00 ,Care More Ltd,33872,Peoples Services Directorate,Home Care,G334
http://opendatacommunities.org/id/london-borough-council/sutton,London Borough of Sutton,16/11/2020,40478556,539.00 ,Care More Ltd,33872,Peoples Services Directorate,Home Care,G334
http://opendatacommunities.org/id/london-borough-council/sutton,London Borough of Sutton,16/11/2020,40478557,567.00 ,Care More Ltd,33872,Peoples Services Directorate,Home Care,G334
http://opendatacommunities.org/id/london-borough-council/sutton,London Borough of Sutton,16/11/2020,40478558,768.50 ,Care More Ltd,33872,Peoples Services Directorate,Home Care,G334
http://opendatacommunities.org/id/london-borough-council/sutton,London Borough of Sutton,16/11/2020,40478559,450.00 ,Care More Ltd,33872,Peoples Services Directorate,Home Care,G334
http://opendatacommunities.org/id/london-borough-council/sutton,London Borough of Sutton,16/11/2020,40480117,"1,484.00 ",Care More Ltd,33872,Peoples Services Directorate,Home Care,G334
http://opendatacommunities.org/id/london-borough-council/sutton,London Borough of Sutton,16/11/2020,40480118,"1,302.00 ",Care More Ltd,33872,Peoples Services Directorate,Home Care,G334
http://opendatacommunities.org/id/london-borough-council/sutton,London Borough of Sutton,16/11/2020,40480119,"1,764.00 ",Care More Ltd,33872,Peoples Services Directorate,Home Care,G334
http://opendatacommunities.org/id/london-borough-council/sutton,London Borough of Sutton,16/11/2020,40480120,"1,134.00 ",Care More Ltd,33872,Peoples Services Directorate,Home Care,G334
http://opendatacommunities.org/id/london-borough-council/sutton,London Borough of Sutton,16/11/2020,40480126,"1,400.00 ",Care More Ltd,33872,Peoples Services Directorate,Home Care,G334
http://opendatacommunities.org/id/london-borough-council/sutton,London Borough of Sutton,16/11/2020,40480132,"1,400.00 ",Care More Ltd,33872,Peoples Services Directorate,Home Care,G334
http://opendatacommunities.org/id/london-borough-council/sutton,London Borough of Sutton,16/11/2020,40480133,"1,542.50 ",Care More Ltd,33872,Peoples Services Directorate,Home Care,G334
http://opendatacommunities.org/id/london-borough-council/sutton,London Borough of Sutton,16/11/2020,40480134,"1,134.00 ",Care More Ltd,33872,Peoples Services Directorate,Home Care,G334
http://opendatacommunities.org/id/london-borough-council/sutton,London Borough of Sutton,16/11/2020,40480135,"1,484.00 ",Care More Ltd,33872,Peoples Services Directorate,Home Care,G334
http://opendatacommunities.org/id/london-borough-council/sutton,London Borough of Sutton,16/11/2020,40480136,669.50 ,Care More Ltd,33872,Peoples Services Directorate,Home Care,G334
http://opendatacommunities.org/id/london-borough-council/sutton,London Borough of Sutton,16/11/2020,40480137,"1,134.00 ",Care More Ltd,33872,Peoples Services Directorate,Home Care,G334
http://opendatacommunities.org/id/london-borough-council/sutton,London Borough of Sutton,16/11/2020,40480141,700.00 ,Care More Ltd,33872,Peoples Services Directorate,Home Care,G334
http://opendatacommunities.org/id/london-borough-council/sutton,London Borough of Sutton,16/11/2020,40480142,"1,400.00 ",Care More Ltd,33872,Peoples Services Directorate,Home Care,G334
http://opendatacommunities.org/id/london-borough-council/sutton,London Borough of Sutton,30/11/2020,40482018,742.00 ,Care More Ltd,33872,Peoples Services Directorate,Home Care,G334
http://opendatacommunities.org/id/london-borough-council/sutton,London Borough of Sutton,30/11/2020,40482019,"1,400.00 ",Care More Ltd,33872,Peoples Services Directorate,Home Care,G334
http://opendatacommunities.org/id/london-borough-council/sutton,London Borough of Sutton,30/11/2020,40482020,"1,134.00 ",Care More Ltd,33872,Peoples Services Directorate,Home Care,G334
http://opendatacommunities.org/id/london-borough-council/sutton,London Borough of Sutton,30/11/2020,40482021,"1,400.00 ",Care More Ltd,33872,Peoples Services Directorate,Home Care,G334
http://opendatacommunities.org/id/london-borough-council/sutton,London Borough of Sutton,30/11/2020,40482022,475.00 ,Care More Ltd,33872,Peoples Services Directorate,Home Care,G334
http://opendatacommunities.org/id/london-borough-council/sutton,London Borough of Sutton,30/11/2020,40482024,"1,302.00 ",Care More Ltd,33872,Peoples Services Directorate,Home Care,G334
http://opendatacommunities.org/id/london-borough-council/sutton,London Borough of Sutton,30/11/2020,40482027,506.00 ,Care More Ltd,33872,Peoples Services Directorate,Home Care,G334
http://opendatacommunities.org/id/london-borough-council/sutton,London Borough of Sutton,30/11/2020,40482028,567.00 ,Care More Ltd,33872,Peoples Services Directorate,Home Care,G334
http://opendatacommunities.org/id/london-borough-council/sutton,London Borough of Sutton,30/11/2020,40482029,692.00 ,Care More Ltd,33872,Peoples Services Directorate,Home Care,G334
http://opendatacommunities.org/id/london-borough-council/sutton,London Borough of Sutton,30/11/2020,40482034,700.00 ,Care More Ltd,33872,Peoples Services Directorate,Home Care,G334
http://opendatacommunities.org/id/london-borough-council/sutton,London Borough of Sutton,30/11/2020,40482038,450.00 ,Care More Ltd,33872,Peoples Services Directorate,Home Care,G334
http://opendatacommunities.org/id/london-borough-council/sutton,London Borough of Sutton,30/11/2020,40482039,"1,764.00 ",Care More Ltd,33872,Peoples Services Directorate,Home Care,G334
http://opendatacommunities.org/id/london-borough-council/sutton,London Borough of Sutton,30/11/2020,40482042,441.00 ,Care More Ltd,33872,Peoples Services Directorate,Home Care,G334
http://opendatacommunities.org/id/london-borough-council/sutton,London Borough of Sutton,30/11/2020,40482042,539.00 ,Care More Ltd,33872,Peoples Services Directorate,Home Care,G334
http://opendatacommunities.org/id/london-borough-council/sutton,London Borough of Sutton,30/11/2020,40482045,625.50 ,Care More Ltd,33872,Peoples Services Directorate,Home Care,G334
http://opendatacommunities.org/id/london-borough-council/sutton,London Borough of Sutton,30/11/2020,40482051,"1,400.00 ",Care More Ltd,33872,Peoples Services Directorate,Home Care,G334
http://opendatacommunities.org/id/london-borough-council/sutton,London Borough of Sutton,30/11/2020,40482060,"1,134.00 ",Care More Ltd,33872,Peoples Services Directorate,Home Care,G334
http://opendatacommunities.org/id/london-borough-council/sutton,London Borough of Sutton,30/11/2020,40482062,"1,134.00 ",Care More Ltd,33872,Peoples Services Directorate,Home Care,G334
http://opendatacommunities.org/id/london-borough-council/sutton,London Borough of Sutton,30/11/2020,40482063,798.00 ,Care More Ltd,33872,Peoples Services Directorate,Home Care,G334
http://opendatacommunities.org/id/london-borough-council/sutton,London Borough of Sutton,30/11/2020,40482067,854.50 ,Care More Ltd,33872,Peoples Services Directorate,Home Care,G334
http://opendatacommunities.org/id/london-borough-council/sutton,London Borough of Sutton,30/11/2020,40482070,"1,484.00 ",Care More Ltd,33872,Peoples Services Directorate,Home Care,G334
http://opendatacommunities.org/id/london-borough-council/sutton,London Borough of Sutton,30/11/2020,40482074,742.00 ,Care More Ltd,33872,Peoples Services Directorate,Home Care,G334
http://opendatacommunities.org/id/london-borough-council/sutton,London Borough of Sutton,30/11/2020,40482077,465.00 ,Care More Ltd,33872,Peoples Services Directorate,Home Care,G334
http://opendatacommunities.org/id/london-borough-council/sutton,London Borough of Sutton,30/11/2020,40482080,685.00 ,Care More Ltd,33872,Peoples Services Directorate,Home Care,G334
http://opendatacommunities.org/id/london-borough-council/sutton,London Borough of Sutton,30/11/2020,40482081,826.00 ,Care More Ltd,33872,Peoples Services Directorate,Home Care,G334
http://opendatacommunities.org/id/london-borough-council/sutton,London Borough of Sutton,30/11/2020,40482083,489.50 ,Care More Ltd,33872,Peoples Services Directorate,Home Care,G334
http://opendatacommunities.org/id/london-borough-council/sutton,London Borough of Sutton,30/11/2020,40482084,420.50 ,Care More Ltd,33872,Peoples Services Directorate,Home Care,G334
http://opendatacommunities.org/id/london-borough-council/sutton,London Borough of Sutton,30/11/2020,40482085,"1,484.00 ",Care More Ltd,33872,Peoples Services Directorate,Home Care,G334
http://opendatacommunities.org/id/london-borough-council/sutton,London Borough of Sutton,05/10/2020,40482434,420.00 ,Care More Ltd,33872,Peoples Services Directorate,Home Care,G334
http://opendatacommunities.org/id/london-borough-council/sutton,London Borough of Sutton,22/12/2020,40481217,"4,600.00 ",Care UK Homecare Ltd,10853,Peoples Services Directorate,Residential Care - Ext Provider,G310
http://opendatacommunities.org/id/london-borough-council/sutton,London Borough of Sutton,22/12/2020,40481253,"3,555.32 ",Care UK Homecare Ltd,10853,Peoples Services Directorate,Nursing Care - Ext Provider,G311
http://opendatacommunities.org/id/london-borough-council/sutton,London Borough of Sutton,22/12/2020,40481351,"3,586.28 ",Care UK Homecare Ltd,10853,Peoples Services Directorate,Nursing Care - Ext Provider,G311
http://opendatacommunities.org/id/london-borough-council/sutton,London Borough of Sutton,01/11/2020,40474878,"4,732.00 ",Care Unlimited Domcare Ltd,28906,Peoples Services Directorate,Supported Living - Ext Provider,G306
http://opendatacommunities.org/id/london-borough-council/sutton,London Borough of Sutton,01/11/2020,40474879,"4,060.00 ",Care Unlimited Domcare Ltd,28906,Peoples Services Directorate,Supported Living - Ext Provider,G306
http://opendatacommunities.org/id/london-borough-council/sutton,London Borough of Sutton,01/11/2020,40474880,"4,060.00 ",Care Unlimited Domcare Ltd,28906,Peoples Services Directorate,Supported Living - Ext Provider,G306
http://opendatacommunities.org/id/london-borough-council/sutton,London Borough of Sutton,01/11/2020,40474881,"4,060.00 ",Care Unlimited Domcare Ltd,28906,Peoples Services Directorate,Supported Living - Ext Provider,G306
http://opendatacommunities.org/id/london-borough-council/sutton,London Borough of Sutton,01/11/2020,40474882,"4,060.00 ",Care Unlimited Domcare Ltd,28906,Peoples Services Directorate,Supported Living - Ext Provider,G306
http://opendatacommunities.org/id/london-borough-council/sutton,London Borough of Sutton,22/12/2020,40481014,"3,612.00 ",Care Unlimited Group Ltd,10774,Peoples Services Directorate,Nursing Care - Ext Provider,G311
http://opendatacommunities.org/id/london-borough-council/sutton,London Borough of Sutton,01/12/2020,6982465,720.00 ,Caremark (Sutton),25541,Peoples Services Directorate,Home Care,G334
http://opendatacommunities.org/id/london-borough-council/sutton,London Borough of Sutton,01/12/2020,6982477,500.00 ,Caremark (Sutton),25541,Peoples Services Directorate,Home Care,G334
http://opendatacommunities.org/id/london-borough-council/sutton,London Borough of Sutton,02/12/2020,6983093,"1,732.50 ",Caremark (Sutton),25541,Peoples Services Directorate,Home Care,G334
http://opendatacommunities.org/id/london-borough-council/sutton,London Borough of Sutton,14/12/2020,6983332,770.00 ,Caremark (Sutton),25541,Peoples Services Directorate,Home Care,G334
http://opendatacommunities.org/id/london-borough-council/sutton,London Borough of Sutton,01/11/2020,40481509,442.50 ,Caremark (Sutton),25541,Peoples Services Directorate,Home Care,G334
http://opendatacommunities.org/id/london-borough-council/sutton,London Borough of Sutton,08/11/2020,40481510,442.50 ,Caremark (Sutton),25541,Peoples Services Directorate,Home Care,G334
http://opendatacommunities.org/id/london-borough-council/sutton,London Borough of Sutton,15/11/2020,40481511,442.50 ,Caremark (Sutton),25541,Peoples Services Directorate,Home Care,G334
http://opendatacommunities.org/id/london-borough-council/sutton,London Borough of Sutton,01/11/2020,40481559,998.47 ,Caremark (Sutton),25541,Peoples Services Directorate,Home Care,G334
http://opendatacommunities.org/id/london-borough-council/sutton,London Borough of Sutton,08/11/2020,40481561,998.47 ,Caremark (Sutton),25541,Peoples Services Directorate,Home Care,G334
http://opendatacommunities.org/id/london-borough-council/sutton,London Borough of Sutton,15/11/2020,40481562,998.47 ,Caremark (Sutton),25541,Peoples Services Directorate,Home Care,G334
http://opendatacommunities.org/id/london-borough-council/sutton,London Borough of Sutton,01/11/2020,40481563,767.03 ,Caremark (Sutton),25541,Peoples Services Directorate,Home Care,G334
http://opendatacommunities.org/id/london-borough-council/sutton,London Borough of Sutton,08/11/2020,40481564,767.03 ,Caremark (Sutton),25541,Peoples Services Directorate,Home Care,G334
http://opendatacommunities.org/id/london-borough-council/sutton,London Borough of Sutton,15/11/2020,40481565,767.03 ,Caremark (Sutton),25541,Peoples Services Directorate,Home Care,G334
http://opendatacommunities.org/id/london-borough-council/sutton,London Borough of Sutton,01/11/2020,40481566,767.03 ,Caremark (Sutton),25541,Peoples Services Directorate,Home Care,G334
http://opendatacommunities.org/id/london-borough-council/sutton,London Borough of Sutton,08/11/2020,40481567,767.03 ,Caremark (Sutton),25541,Peoples Services Directorate,Home Care,G334
http://opendatacommunities.org/id/london-borough-council/sutton,London Borough of Sutton,15/11/2020,40481568,767.03 ,Caremark (Sutton),25541,Peoples Services Directorate,Home Care,G334
http://opendatacommunities.org/id/london-borough-council/sutton,London Borough of Sutton,01/11/2020,40481586,"1,833.50 ",Caremark (Sutton),25541,Peoples Services Directorate,Home Care,G334
http://opendatacommunities.org/id/london-borough-council/sutton,London Borough of Sutton,08/11/2020,40481587,"1,839.13 ",Caremark (Sutton),25541,Peoples Services Directorate,Home Care,G334
http://opendatacommunities.org/id/london-borough-council/sutton,London Borough of Sutton,15/11/2020,40481588,"1,811.00 ",Caremark (Sutton),25541,Peoples Services Directorate,Home Care,G334
http://opendatacommunities.org/id/london-borough-council/sutton,London Borough of Sutton,01/11/2020,40481598,949.99 ,Caremark (Sutton),25541,Peoples Services Directorate,Home Care,G334
http://opendatacommunities.org/id/london-borough-council/sutton,London Borough of Sutton,08/11/2020,40481599,949.99 ,Caremark (Sutton),25541,Peoples Services Directorate,Home Care,G334
http://opendatacommunities.org/id/london-borough-council/sutton,London Borough of Sutton,15/11/2020,40481600,949.99 ,Caremark (Sutton),25541,Peoples Services Directorate,Home Care,G334
http://opendatacommunities.org/id/london-borough-council/sutton,London Borough of Sutton,29/06/2020,6981705,"1,022.89 ",Careoline Carers Services Ltd,23798,Peoples Services Directorate,Hired Peoples Transport (Children),E072
http://opendatacommunities.org/id/london-borough-council/sutton,London Borough of Sutton,25/08/2020,6982054,"1,271.30 ",Careoline Carers Services Ltd,23798,Peoples Services Directorate,C.C.A Travel & Subsistance,H212
http://opendatacommunities.org/id/london-borough-council/sutton,London Borough of Sutton,04/12/2020,6982982,"2,502.50 ",Careoline Carers Services Ltd,23798,Peoples Services Directorate,Home Care,G334
http://opendatacommunities.org/id/london-borough-council/sutton,London Borough of Sutton,04/12/2020,6982983,"2,502.50 ",Careoline Carers Services Ltd,23798,Peoples Services Directorate,Home Care,G334
http://opendatacommunities.org/id/london-borough-council/sutton,London Borough of Sutton,19/11/2020,6983112,"1,155.00 ",Careoline Carers Services Ltd,23798,Peoples Services Directorate,Home Care,G334
http://opendatacommunities.org/id/london-borough-council/sutton,London Borough of Sutton,14/12/2020,6983326,"2,502.50 ",Careoline Carers Services Ltd,23798,Peoples Services Directorate,Home Care,G334
http://opendatacommunities.org/id/london-borough-council/sutton,London Borough of Sutton,02/03/2020,6983432,457.19 ,Careoline Carers Services Ltd,23798,Peoples Services Directorate,Hired Peoples Transport (Children),E072
http://opendatacommunities.org/id/london-borough-council/sutton,London Borough of Sutton,01/11/2020,40475913,"2,025.00 ",Caretech Community Services Ltd,10791,Peoples Services Directorate,One to One Care,G335
http://opendatacommunities.org/id/london-borough-council/sutton,London Borough of Sutton,22/12/2020,40481064,"5,531.60 ",Caretech Community Services Ltd,10791,Peoples Services Directorate,Residential Care - Ext Provider,G310
http://opendatacommunities.org/id/london-borough-council/sutton,London Borough of Sutton,22/12/2020,40481107,"5,534.00 ",Caretech Community Services Ltd,10791,Peoples Services Directorate,Residential Care - Ext Provider,G310
http://opendatacommunities.org/id/london-borough-council/sutton,London Borough of Sutton,22/12/2020,40481118,"5,534.00 ",Caretech Community Services Ltd,10791,Peoples Services Directorate,Residential Care - Ext Provider,G310
http://opendatacommunities.org/id/london-borough-council/sutton,London Borough of Sutton,22/12/2020,40481404,"5,676.16 ",Caretech Community Services Ltd,10791,Peoples Services Directorate,Residential Care - Ext Provider,G310
http://opendatacommunities.org/id/london-borough-council/sutton,London Borough of Sutton,02/11/2020,1302863,"4,893.00 ",Carew Academy,25284,Peoples Services Directorate,Place Funding,G063
http://opendatacommunities.org/id/london-borough-council/sutton,London Borough of Sutton,02/11/2020,1302864,"4,893.00 ",Carew Academy,25284,Peoples Services Directorate,Place Funding,G063
http://opendatacommunities.org/id/london-borough-council/sutton,London Borough of Sutton,02/11/2020,1302864,"3,333.33 ",Carew Academy,25284,Peoples Services Directorate,Payments to Schools,G065
http://opendatacommunities.org/id/london-borough-council/sutton,London Borough of Sutton,02/11/2020,1302865,"3,430.67 ",Carew Academy,25284,Peoples Services Directorate,Place Funding,G063
http://opendatacommunities.org/id/london-borough-council/sutton,London Borough of Sutton,02/11/2020,1302865,"3,333.33 ",Carew Academy,25284,Peoples Services Directorate,Payments to Schools,G065
http://opendatacommunities.org/id/london-borough-council/sutton,London Borough of Sutton,02/11/2020,1302866,"4,893.00 ",Carew Academy,25284,Peoples Services Directorate,Place Funding,G063
http://opendatacommunities.org/id/london-borough-council/sutton,London Borough of Sutton,02/11/2020,1302866,"3,333.33 ",Carew Academy,25284,Peoples Services Directorate,Payments to Schools,G065
http://opendatacommunities.org/id/london-borough-council/sutton,London Borough of Sutton,02/11/2020,1302867,"8,569.67 ",Carew Academy,25284,Peoples Services Directorate,Place Funding,G063
http://opendatacommunities.org/id/london-borough-council/sutton,London Borough of Sutton,02/11/2020,1302867,"3,333.33 ",Carew Academy,25284,Peoples Services Directorate,Payments to Schools,G065
http://opendatacommunities.org/id/london-borough-council/sutton,London Borough of Sutton,30/11/2020,40477348,"1,575.72 ",Caridon Young Living Ltd,35469,Peoples Services Directorate,Approved Lodgings,H323
http://opendatacommunities.org/id/london-borough-council/sutton,London Borough of Sutton,30/11/2020,40477350,"10,889.28 ",Caridon Young Living Ltd,35469,Peoples Services Directorate,Approved Lodgings,H323
http://opendatacommunities.org/id/london-borough-council/sutton,London Borough of Sutton,30/11/2020,40477369,"4,530.12 ",Caridon Young Living Ltd,35469,Peoples Services Directorate,Approved Lodgings,H323
http://opendatacommunities.org/id/london-borough-council/sutton,London Borough of Sutton,30/11/2020,40480121,992.00 ,Carlene House,10763,Peoples Services Directorate,Supported Living - Ext Provider,G306
http://opendatacommunities.org/id/london-borough-council/sutton,London Borough of Sutton,23/11/2020,40480122,"1,071.30 ",Carlene House,10763,Peoples Services Directorate,Day Care,G337
http://opendatacommunities.org/id/london-borough-council/sutton,London Borough of Sutton,23/11/2020,40480123,"1,071.30 ",Carlene House,10763,Peoples Services Directorate,Day Care,G337
http://opendatacommunities.org/id/london-borough-council/sutton,London Borough of Sutton,23/11/2020,40480124,"1,071.30 ",Carlene House,10763,Peoples Services Directorate,Day Care,G337
http://opendatacommunities.org/id/london-borough-council/sutton,London Borough of Sutton,23/11/2020,40480125,"1,071.30 ",Carlene House,10763,Peoples Services Directorate,Day Care,G337
http://opendatacommunities.org/id/london-borough-council/sutton,London Borough of Sutton,30/11/2020,40480129,420.00 ,Carlene House,10763,Peoples Services Directorate,Supported Living - Ext Provider,G306
http://opendatacommunities.org/id/london-borough-council/sutton,London Borough of Sutton,23/11/2020,40480130,"1,071.30 ",Carlene House,10763,Peoples Services Directorate,Day Care,G337
http://opendatacommunities.org/id/london-borough-council/sutton,London Borough of Sutton,23/11/2020,40480131,"1,071.30 ",Carlene House,10763,Peoples Services Directorate,Day Care,G337
http://opendatacommunities.org/id/london-borough-council/sutton,London Borough of Sutton,30/11/2020,40480143,"2,397.56 ",Carlene House,10763,Peoples Services Directorate,Supported Living - Ext Provider,G306
http://opendatacommunities.org/id/london-borough-council/sutton,London Borough of Sutton,30/11/2020,40480144,"3,369.76 ",Carlene House,10763,Peoples Services Directorate,Supported Living - Ext Provider,G306
http://opendatacommunities.org/id/london-borough-council/sutton,London Borough of Sutton,30/11/2020,40480145,"2,528.56 ",Carlene House,10763,Peoples Services Directorate,Supported Living - Ext Provider,G306
http://opendatacommunities.org/id/london-borough-council/sutton,London Borough of Sutton,30/11/2020,40480146,"3,225.56 ",Carlene House,10763,Peoples Services Directorate,Supported Living - Ext Provider,G306
http://opendatacommunities.org/id/london-borough-council/sutton,London Borough of Sutton,17/12/2020,40480536,"1,107.01 ",Carlene House,10763,Peoples Services Directorate,Day Care,G337
http://opendatacommunities.org/id/london-borough-council/sutton,London Borough of Sutton,22/12/2020,40481029,"2,747.08 ",Carlene House,10763,Peoples Services Directorate,Residential Care - Ext Provider,G310
http://opendatacommunities.org/id/london-borough-council/sutton,London Borough of Sutton,22/12/2020,40481112,"2,688.28 ",Carlene House,10763,Peoples Services Directorate,Residential Care - Ext Provider,G310
http://opendatacommunities.org/id/london-borough-council/sutton,London Borough of Sutton,22/12/2020,40481252,"2,688.28 ",Carlene House,10763,Peoples Services Directorate,Residential Care - Ext Provider,G310
http://opendatacommunities.org/id/london-borough-council/sutton,London Borough of Sutton,22/12/2020,40481301,"2,806.40 ",Carlene House,10763,Peoples Services Directorate,Residential Care - Ext Provider,G310
http://opendatacommunities.org/id/london-borough-council/sutton,London Borough of Sutton,22/12/2020,40481304,"4,440.00 ",Carlene House,10763,Peoples Services Directorate,Residential Care - Ext Provider,G310
http://opendatacommunities.org/id/london-borough-council/sutton,London Borough of Sutton,22/12/2020,40481318,"2,718.40 ",Carlene House,10763,Peoples Services Directorate,Residential Care - Ext Provider,G310
http://opendatacommunities.org/id/london-borough-council/sutton,London Borough of Sutton,22/12/2020,40481321,"2,693.72 ",Carlene House,10763,Peoples Services Directorate,Residential Care - Ext Provider,G310
http://opendatacommunities.org/id/london-borough-council/sutton,London Borough of Sutton,02/12/2020,6982478,"1,000.00 ",Carshalton Lavender,99891,"Environment, Housing & Regeneration Directorate",Assistance to Voluntary Organisations,F471
http://opendatacommunities.org/id/london-borough-council/sutton,London Borough of Sutton,27/11/2020,6982053,515.00 ,Carter Jonas LLP,30103,"Environment, Housing & Regeneration Directorate",Surveyors Fees,Y030
http://opendatacommunities.org/id/london-borough-council/sutton,London Borough of Sutton,16/09/2020,6982291,"6,496.00 ",Castleton Technology Ltd,28711,HRA,IT Equipment - Repair and Maintenance,F382
http://opendatacommunities.org/id/london-borough-council/sutton,London Borough of Sutton,12/12/2020,6983086,909.85 ,Caysh Enterprise Cic,28016,Peoples Services Directorate,Approved Lodgings,H323
http://opendatacommunities.org/id/london-borough-council/sutton,London Borough of Sutton,04/11/2020,6980715,"2,406.82 ",CBRE Ltd,35887,Resources Directorate,Rent - General,D650
http://opendatacommunities.org/id/london-borough-council/sutton,London Borough of Sutton,26/06/2020,6982562,"1,350.48 ",Central & North West London Nhs Foundation Trust,28976,Health and Wellbeing Directorate,Provider Contract Payments,F470
http://opendatacommunities.org/id/london-borough-council/sutton,London Borough of Sutton,15/04/2020,6982563,"1,377.78 ",Central & North West London Nhs Foundation Trust,28976,Health and Wellbeing Directorate,Provider Contract Payments,F470
http://opendatacommunities.org/id/london-borough-council/sutton,London Borough of Sutton,12/07/2019,6982566,958.74 ,Central & North West London Nhs Foundation Trust,28976,Health and Wellbeing Directorate,Provider Contract Payments,F470
http://opendatacommunities.org/id/london-borough-council/sutton,London Borough of Sutton,12/07/2019,6982567,954.74 ,Central & North West London Nhs Foundation Trust,28976,Health and Wellbeing Directorate,Provider Contract Payments,F470
http://opendatacommunities.org/id/london-borough-council/sutton,London Borough of Sutton,08/07/2020,6982602,"1,372.59 ",Central & North West London Nhs Foundation Trust,28976,Health and Wellbeing Directorate,Provider Contract Payments,F470
http://opendatacommunities.org/id/london-borough-council/sutton,London Borough of Sutton,07/07/2020,6982603,"1,372.59 ",Central & North West London Nhs Foundation Trust,28976,Health and Wellbeing Directorate,Provider Contract Payments,F470
http://opendatacommunities.org/id/london-borough-council/sutton,London Borough of Sutton,26/06/2020,6982605,716.76 ,Central & North West London Nhs Foundation Trust,28976,Health and Wellbeing Directorate,Provider Contract Payments,F470
http://opendatacommunities.org/id/london-borough-council/sutton,London Borough of Sutton,08/07/2020,6982606,"1,372.59 ",Central & North West London Nhs Foundation Trust,28976,Health and Wellbeing Directorate,Provider Contract Payments,F470
http://opendatacommunities.org/id/london-borough-council/sutton,London Borough of Sutton,12/11/2020,6983714,"10,000.00 ",Centre for London,30223,Resources Directorate,Fees - Other,F299
http://opendatacommunities.org/id/london-borough-council/sutton,London Borough of Sutton,31/10/2020,6982452,"18,317.50 ",Certus Security LLP,33832,"Environment, Housing & Regeneration Directorate",Building Works -Main Contractor,Y350
http://opendatacommunities.org/id/london-borough-council/sutton,London Borough of Sutton,31/10/2020,6982453,"27,476.26 ",Certus Security LLP,33832,"Environment, Housing & Regeneration Directorate",Building Works -Main Contractor,Y350
http://opendatacommunities.org/id/london-borough-council/sutton,London Borough of Sutton,31/10/2020,6982454,"27,476.26 ",Certus Security LLP,33832,"Environment, Housing & Regeneration Directorate",Building Works -Main Contractor,Y350
http://opendatacommunities.org/id/london-borough-council/sutton,London Borough of Sutton,01/11/2020,40477306,"5,496.30 ",Channels & Choices Theraputic Fostering Ltd,25665,Peoples Services Directorate,Foster Parents,G326
http://opendatacommunities.org/id/london-borough-council/sutton,London Borough of Sutton,01/11/2020,40477362,"5,496.30 ",Channels & Choices Theraputic Fostering Ltd,25665,Peoples Services Directorate,Foster Parents,G326
http://opendatacommunities.org/id/london-borough-council/sutton,London Borough of Sutton,22/12/2020,40481401,"3,586.28 ",Charlton Park Care Home T/A Four Seasons (No 7) Ltd.,30290,Peoples Services Directorate,Nursing Care - Ext Provider,G311
http://opendatacommunities.org/id/london-borough-council/sutton,London Borough of Sutton,01/11/2020,40477351,"17,694.00 ",Chartwell Care Services Ltd,35398,Peoples Services Directorate,Residential Care-Children,G330
http://opendatacommunities.org/id/london-borough-council/sutton,London Borough of Sutton,16/12/2020,1304003,563.33 ,Cheam Common Infants School -ACADEMY,30167,Peoples Services Directorate,Top-up Funding,G064
http://opendatacommunities.org/id/london-borough-council/sutton,London Borough of Sutton,25/11/2020,1303362,"1,706.67 ",Cheam Common Junior Academy,28932,Peoples Services Directorate,Top-up Funding,G064
http://opendatacommunities.org/id/london-borough-council/sutton,London Borough of Sutton,21/11/2020,6983215,463.00 ,Cheam Common Junior Academy,28932,Peoples Services Directorate,Equipment -General,Y520
http://opendatacommunities.org/id/london-borough-council/sutton,London Borough of Sutton,14/12/2020,6983085,"33,070.00 ",Cheam High School (Academy),23996,Peoples Services Directorate,Other Services,F340
http://opendatacommunities.org/id/london-borough-council/sutton,London Borough of Sutton,25/11/2020,1303363,900.00 ,Cheam Park Farm Primary School (LEO Academy Trust),23882,Peoples Services Directorate,Top-up Funding,G064
http://opendatacommunities.org/id/london-borough-council/sutton,London Borough of Sutton,22/12/2020,40481034,"3,555.32 ",Chegworth Nursing Home Bayswift Ltd,10908,Peoples Services Directorate,Nursing Care - Ext Provider,G311
http://opendatacommunities.org/id/london-borough-council/sutton,London Borough of Sutton,22/12/2020,40481068,"4,000.00 ",Chegworth Nursing Home Bayswift Ltd,10908,Peoples Services Directorate,Nursing Care - Ext Provider,G311
http://opendatacommunities.org/id/london-borough-council/sutton,London Borough of Sutton,22/12/2020,40481082,"4,800.00 ",Chegworth Nursing Home Bayswift Ltd,10908,Peoples Services Directorate,Nursing Care - Short Term Placements,G328
http://opendatacommunities.org/id/london-borough-council/sutton,London Borough of Sutton,22/12/2020,40481101,"3,575.68 ",Chegworth Nursing Home Bayswift Ltd,10908,Peoples Services Directorate,Nursing Care - Ext Provider,G311
http://opendatacommunities.org/id/london-borough-council/sutton,London Borough of Sutton,22/12/2020,40481133,"3,643.84 ",Chegworth Nursing Home Bayswift Ltd,10908,Peoples Services Directorate,Nursing Care - Ext Provider,G311
http://opendatacommunities.org/id/london-borough-council/sutton,London Borough of Sutton,22/12/2020,40481229,"1,536.41 ",Chegworth Nursing Home Bayswift Ltd,10908,Peoples Services Directorate,Nursing Care - 3rd party top up payment,G360
http://opendatacommunities.org/id/london-borough-council/sutton,London Borough of Sutton,22/12/2020,40481241,709.54 ,Chegworth Nursing Home Bayswift Ltd,10908,Peoples Services Directorate,Nursing Care - 3rd party top up payment,G360
http://opendatacommunities.org/id/london-borough-council/sutton,London Borough of Sutton,22/12/2020,40481246,"3,555.32 ",Chegworth Nursing Home Bayswift Ltd,10908,Peoples Services Directorate,Nursing Care - Ext Provider,G311
http://opendatacommunities.org/id/london-borough-council/sutton,London Borough of Sutton,22/12/2020,40481261,"2,800.00 ",Chegworth Nursing Home Bayswift Ltd,10908,Peoples Services Directorate,Nursing Care - Short Term Placements,G328
http://opendatacommunities.org/id/london-borough-council/sutton,London Borough of Sutton,22/12/2020,40481271,"3,555.32 ",Chegworth Nursing Home Bayswift Ltd,10908,Peoples Services Directorate,Nursing Care - Ext Provider,G311
http://opendatacommunities.org/id/london-borough-council/sutton,London Borough of Sutton,22/12/2020,40481389,"3,800.00 ",Chegworth Nursing Home Bayswift Ltd,10908,Peoples Services Directorate,Nursing Care - Ext Provider,G311
http://opendatacommunities.org/id/london-borough-council/sutton,London Borough of Sutton,14/12/2020,6983132,"13,725.00 ",Chelsea Studios Ltd,32128,"Environment, Housing & Regeneration Directorate",Temporary Protection - Homeless Persons,H300
http://opendatacommunities.org/id/london-borough-council/sutton,London Borough of Sutton,22/12/2020,40481053,"2,790.40 ",Cherry Lodge,10934,Peoples Services Directorate,Residential Care - Ext Provider,G310
http://opendatacommunities.org/id/london-borough-council/sutton,London Borough of Sutton,22/12/2020,40481074,"3,360.00 ",Cherry Lodge,10934,Peoples Services Directorate,Residential Care - Ext Provider,G310
http://opendatacommunities.org/id/london-borough-council/sutton,London Borough of Sutton,22/12/2020,40481281,"4,800.00 ",CHHG Ltd T/A Belmont House,29991,Peoples Services Directorate,Nursing Care - Ext Provider,G311
http://opendatacommunities.org/id/london-borough-council/sutton,London Borough of Sutton,22/12/2020,40481233,"6,356.00 ",CHHG Ltd t/a Cranmer Court,22562,Peoples Services Directorate,Nursing Care - Ext Provider,G311
http://opendatacommunities.org/id/london-borough-council/sutton,London Borough of Sutton,02/11/2020,40477297,"3,360.00 ",Children of Colour,16870,Peoples Services Directorate,Foster Parents,G326
http://opendatacommunities.org/id/london-borough-council/sutton,London Borough of Sutton,02/11/2020,40477353,"3,276.00 ",Children of Colour,16870,Peoples Services Directorate,Foster Parents,G326
http://opendatacommunities.org/id/london-borough-council/sutton,London Borough of Sutton,09/10/2020,1303404,"12,948.94 ",Children's Trust,10927,Peoples Services Directorate,Independent Schools,G325
http://opendatacommunities.org/id/london-borough-council/sutton,London Borough of Sutton,05/11/2020,40477361,"15,747.60 ",Children's Trust,10927,Peoples Services Directorate,Residential Care-Children,G330
http://opendatacommunities.org/id/london-borough-council/sutton,London Borough of Sutton,22/12/2020,40481065,"7,878.28 ",Choice Care Group (Surrey) Ltd,22029,Peoples Services Directorate,Residential Care - Ext Provider,G310
http://opendatacommunities.org/id/london-borough-council/sutton,London Borough of Sutton,22/12/2020,40481190,"7,526.32 ",Choice Care Group (Surrey) Ltd,22029,Peoples Services Directorate,Residential Care - Ext Provider,G310
http://opendatacommunities.org/id/london-borough-council/sutton,London Borough of Sutton,22/12/2020,40481226,"7,240.00 ",Choice Care Group (Surrey) Ltd,22029,Peoples Services Directorate,Residential Care - Ext Provider,G310
http://opendatacommunities.org/id/london-borough-council/sutton,London Borough of Sutton,22/12/2020,40481230,"7,511.00 ",Choice Care Group (Surrey) Ltd,22029,Peoples Services Directorate,Residential Care - Ext Provider,G310
http://opendatacommunities.org/id/london-borough-council/sutton,London Borough of Sutton,30/09/2020,40480147,858.73 ,Choice Support,12929,Peoples Services Directorate,Supported Living - Ext Provider,G306
http://opendatacommunities.org/id/london-borough-council/sutton,London Borough of Sutton,30/11/2020,40480455,858.72 ,Choice Support,12929,Peoples Services Directorate,Supported Living - Ext Provider,G306
http://opendatacommunities.org/id/london-borough-council/sutton,London Borough of Sutton,30/11/2020,40480455,"6,423.78 ",Choice Support,12929,Peoples Services Directorate,Supported Living - Ext Provider,G306
http://opendatacommunities.org/id/london-borough-council/sutton,London Borough of Sutton,30/11/2020,40480457,"1,580.48 ",Choice Support,12929,Peoples Services Directorate,Supported Living - Ext Provider,G306
http://opendatacommunities.org/id/london-borough-council/sutton,London Borough of Sutton,30/11/2020,40480457,613.38 ,Choice Support,12929,Peoples Services Directorate,Supported Living - Ext Provider,G306
http://opendatacommunities.org/id/london-borough-council/sutton,London Borough of Sutton,30/11/2020,40480457,"1,650.90 ",Choice Support,12929,Peoples Services Directorate,Supported Living - Ext Provider,G306
http://opendatacommunities.org/id/london-borough-council/sutton,London Borough of Sutton,30/11/2020,40480461,858.72 ,Choice Support,12929,Peoples Services Directorate,Supported Living - Ext Provider,G306
http://opendatacommunities.org/id/london-borough-council/sutton,London Borough of Sutton,30/11/2020,40480461,"5,419.38 ",Choice Support,12929,Peoples Services Directorate,Supported Living - Ext Provider,G306
http://opendatacommunities.org/id/london-borough-council/sutton,London Borough of Sutton,30/11/2020,40480462,858.72 ,Choice Support,12929,Peoples Services Directorate,Supported Living - Ext Provider,G306
http://opendatacommunities.org/id/london-borough-council/sutton,London Borough of Sutton,30/11/2020,40480462,"5,440.38 ",Choice Support,12929,Peoples Services Directorate,Supported Living - Ext Provider,G306
http://opendatacommunities.org/id/london-borough-council/sutton,London Borough of Sutton,30/11/2020,40480463,"2,177.52 ",Choice Support,12929,Peoples Services Directorate,Supported Living - Ext Provider,G306
http://opendatacommunities.org/id/london-borough-council/sutton,London Borough of Sutton,30/11/2020,40480463,613.38 ,Choice Support,12929,Peoples Services Directorate,Supported Living - Ext Provider,G306
http://opendatacommunities.org/id/london-borough-council/sutton,London Borough of Sutton,30/11/2020,40480463,"1,404.86 ",Choice Support,12929,Peoples Services Directorate,Supported Living - Ext Provider,G306
http://opendatacommunities.org/id/london-borough-council/sutton,London Borough of Sutton,30/11/2020,40480465,613.38 ,Choice Support,12929,Peoples Services Directorate,Supported Living - Ext Provider,G306
http://opendatacommunities.org/id/london-borough-council/sutton,London Borough of Sutton,30/11/2020,40480465,"5,900.48 ",Choice Support,12929,Peoples Services Directorate,Supported Living - Ext Provider,G306
http://opendatacommunities.org/id/london-borough-council/sutton,London Borough of Sutton,30/11/2020,40480468,"2,622.86 ",Choice Support,12929,Peoples Services Directorate,Supported Living - Ext Provider,G306
http://opendatacommunities.org/id/london-borough-council/sutton,London Borough of Sutton,30/11/2020,40480468,613.38 ,Choice Support,12929,Peoples Services Directorate,Supported Living - Ext Provider,G306
http://opendatacommunities.org/id/london-borough-council/sutton,London Borough of Sutton,30/11/2020,40480468,"1,510.32 ",Choice Support,12929,Peoples Services Directorate,Supported Living - Ext Provider,G306
http://opendatacommunities.org/id/london-borough-council/sutton,London Borough of Sutton,30/11/2020,40480469,858.72 ,Choice Support,12929,Peoples Services Directorate,Supported Living - Ext Provider,G306
http://opendatacommunities.org/id/london-borough-council/sutton,London Borough of Sutton,30/11/2020,40480469,"4,646.58 ",Choice Support,12929,Peoples Services Directorate,Supported Living - Ext Provider,G306
http://opendatacommunities.org/id/london-borough-council/sutton,London Borough of Sutton,30/11/2020,40480470,"3,337.24 ",Choice Support,12929,Peoples Services Directorate,Supported Living - Ext Provider,G306
http://opendatacommunities.org/id/london-borough-council/sutton,London Borough of Sutton,30/11/2020,40480470,613.38 ,Choice Support,12929,Peoples Services Directorate,Supported Living - Ext Provider,G306
http://opendatacommunities.org/id/london-borough-council/sutton,London Borough of Sutton,30/11/2020,40480470,"2,922.34 ",Choice Support,12929,Peoples Services Directorate,Supported Living - Ext Provider,G306
http://opendatacommunities.org/id/london-borough-council/sutton,London Borough of Sutton,22/12/2020,40480953,"2,420.12 ",Choice Support,12929,Peoples Services Directorate,Supported Living - Ext Provider,G306
http://opendatacommunities.org/id/london-borough-council/sutton,London Borough of Sutton,22/12/2020,40480953,"1,688.52 ",Choice Support,12929,Peoples Services Directorate,Supported Living - Ext Provider,G306
http://opendatacommunities.org/id/london-borough-council/sutton,London Borough of Sutton,22/12/2020,40480956,"2,946.24 ",Choice Support,12929,Peoples Services Directorate,Supported Living - Ext Provider,G306
http://opendatacommunities.org/id/london-borough-council/sutton,London Borough of Sutton,22/12/2020,40480956,"1,192.52 ",Choice Support,12929,Peoples Services Directorate,Supported Living - Ext Provider,G306
http://opendatacommunities.org/id/london-borough-council/sutton,London Borough of Sutton,22/12/2020,40480957,"2,665.64 ",Choice Support,12929,Peoples Services Directorate,Supported Living - Ext Provider,G306
http://opendatacommunities.org/id/london-borough-council/sutton,London Borough of Sutton,22/12/2020,40480957,"1,697.82 ",Choice Support,12929,Peoples Services Directorate,Supported Living - Ext Provider,G306
http://opendatacommunities.org/id/london-borough-council/sutton,London Borough of Sutton,22/12/2020,40480958,"2,490.28 ",Choice Support,12929,Peoples Services Directorate,Supported Living - Ext Provider,G306
http://opendatacommunities.org/id/london-borough-council/sutton,London Borough of Sutton,22/12/2020,40480958,"1,697.82 ",Choice Support,12929,Peoples Services Directorate,Supported Living - Ext Provider,G306
http://opendatacommunities.org/id/london-borough-council/sutton,London Borough of Sutton,22/12/2020,40480959,"5,191.00 ",Choice Support,12929,Peoples Services Directorate,Supported Living - Ext Provider,G306
http://opendatacommunities.org/id/london-borough-council/sutton,London Borough of Sutton,22/12/2020,40480959,"1,697.82 ",Choice Support,12929,Peoples Services Directorate,Supported Living - Ext Provider,G306
http://opendatacommunities.org/id/london-borough-council/sutton,London Borough of Sutton,22/12/2020,40480960,"3,675.10 ",Choice Support,12929,Peoples Services Directorate,Supported Living - Ext Provider,G306
http://opendatacommunities.org/id/london-borough-council/sutton,London Borough of Sutton,22/12/2020,40480960,574.88 ,Choice Support,12929,Peoples Services Directorate,Supported Living - Ext Provider,G306
http://opendatacommunities.org/id/london-borough-council/sutton,London Borough of Sutton,22/12/2020,40480965,"2,490.28 ",Choice Support,12929,Peoples Services Directorate,Supported Living - Ext Provider,G306
http://opendatacommunities.org/id/london-borough-council/sutton,London Borough of Sutton,22/12/2020,40480965,"1,697.82 ",Choice Support,12929,Peoples Services Directorate,Supported Living - Ext Provider,G306
http://opendatacommunities.org/id/london-borough-council/sutton,London Borough of Sutton,22/12/2020,40480966,"2,735.80 ",Choice Support,12929,Peoples Services Directorate,Supported Living - Ext Provider,G306
http://opendatacommunities.org/id/london-borough-council/sutton,London Borough of Sutton,22/12/2020,40480966,"1,697.82 ",Choice Support,12929,Peoples Services Directorate,Supported Living - Ext Provider,G306
http://opendatacommunities.org/id/london-borough-council/sutton,London Borough of Sutton,22/12/2020,40480967,"2,349.97 ",Choice Support,12929,Peoples Services Directorate,Supported Living - Ext Provider,G306
http://opendatacommunities.org/id/london-borough-council/sutton,London Borough of Sutton,22/12/2020,40480967,484.53 ,Choice Support,12929,Peoples Services Directorate,Supported Living - Ext Provider,G306
http://opendatacommunities.org/id/london-borough-council/sutton,London Borough of Sutton,22/12/2020,40480967,"1,651.99 ",Choice Support,12929,Peoples Services Directorate,Supported Living - Ext Provider,G306
http://opendatacommunities.org/id/london-borough-council/sutton,London Borough of Sutton,22/12/2020,40480968,"2,285.46 ",Choice Support,12929,Peoples Services Directorate,Supported Living - Ext Provider,G306
http://opendatacommunities.org/id/london-borough-council/sutton,London Borough of Sutton,22/12/2020,40480968,484.53 ,Choice Support,12929,Peoples Services Directorate,Supported Living - Ext Provider,G306
http://opendatacommunities.org/id/london-borough-council/sutton,London Borough of Sutton,22/12/2020,40480968,"1,616.91 ",Choice Support,12929,Peoples Services Directorate,Supported Living - Ext Provider,G306
http://opendatacommunities.org/id/london-borough-council/sutton,London Borough of Sutton,22/12/2020,40480969,"5,165.05 ",Choice Support,12929,Peoples Services Directorate,Supported Living - Ext Provider,G306
http://opendatacommunities.org/id/london-borough-council/sutton,London Borough of Sutton,22/12/2020,40480969,446.14 ,Choice Support,12929,Peoples Services Directorate,Supported Living - Ext Provider,G306
http://opendatacommunities.org/id/london-borough-council/sutton,London Borough of Sutton,22/12/2020,40480970,"6,281.75 ",Choice Support,12929,Peoples Services Directorate,Supported Living - Ext Provider,G306
http://opendatacommunities.org/id/london-borough-council/sutton,London Borough of Sutton,22/12/2020,40480970,949.93 ,Choice Support,12929,Peoples Services Directorate,Supported Living - Ext Provider,G306
http://opendatacommunities.org/id/london-borough-council/sutton,London Borough of Sutton,22/12/2020,40480975,"1,999.24 ",Choice Support,12929,Peoples Services Directorate,Supported Living - Ext Provider,G306
http://opendatacommunities.org/id/london-borough-council/sutton,London Borough of Sutton,22/12/2020,40480975,"1,052.23 ",Choice Support,12929,Peoples Services Directorate,Supported Living - Ext Provider,G306
http://opendatacommunities.org/id/london-borough-council/sutton,London Borough of Sutton,22/12/2020,40480976,"4,068.61 ",Choice Support,12929,Peoples Services Directorate,Supported Living - Ext Provider,G306
http://opendatacommunities.org/id/london-borough-council/sutton,London Borough of Sutton,22/12/2020,40480976,"1,688.52 ",Choice Support,12929,Peoples Services Directorate,Supported Living - Ext Provider,G306
http://opendatacommunities.org/id/london-borough-council/sutton,London Borough of Sutton,22/12/2020,40480977,"4,068.61 ",Choice Support,12929,Peoples Services Directorate,Supported Living - Ext Provider,G306
http://opendatacommunities.org/id/london-borough-council/sutton,London Borough of Sutton,22/12/2020,40480977,872.48 ,Choice Support,12929,Peoples Services Directorate,Supported Living - Ext Provider,G306
http://opendatacommunities.org/id/london-borough-council/sutton,London Borough of Sutton,22/12/2020,40480979,"3,156.68 ",Choice Support,12929,Peoples Services Directorate,Supported Living - Ext Provider,G306
http://opendatacommunities.org/id/london-borough-council/sutton,London Borough of Sutton,22/12/2020,40480979,"1,697.82 ",Choice Support,12929,Peoples Services Directorate,Supported Living - Ext Provider,G306
http://opendatacommunities.org/id/london-borough-council/sutton,London Borough of Sutton,22/12/2020,40480980,"3,402.20 ",Choice Support,12929,Peoples Services Directorate,Supported Living - Ext Provider,G306
http://opendatacommunities.org/id/london-borough-council/sutton,London Borough of Sutton,22/12/2020,40480980,"1,688.52 ",Choice Support,12929,Peoples Services Directorate,Supported Living - Ext Provider,G306
http://opendatacommunities.org/id/london-borough-council/sutton,London Borough of Sutton,22/12/2020,40480986,"1,402.97 ",Choice Support,12929,Peoples Services Directorate,Supported Living - Ext Provider,G306
http://opendatacommunities.org/id/london-borough-council/sutton,London Borough of Sutton,22/12/2020,40480986,"2,400.47 ",Choice Support,12929,Peoples Services Directorate,Supported Living - Ext Provider,G306
http://opendatacommunities.org/id/london-borough-council/sutton,London Borough of Sutton,22/12/2020,40480986,484.53 ,Choice Support,12929,Peoples Services Directorate,Supported Living - Ext Provider,G306
http://opendatacommunities.org/id/london-borough-council/sutton,London Borough of Sutton,22/12/2020,40480987,"2,951.42 ",Choice Support,12929,Peoples Services Directorate,Supported Living - Ext Provider,G306
http://opendatacommunities.org/id/london-borough-council/sutton,London Borough of Sutton,22/12/2020,40480987,"1,688.52 ",Choice Support,12929,Peoples Services Directorate,Supported Living - Ext Provider,G306
http://opendatacommunities.org/id/london-borough-council/sutton,London Borough of Sutton,22/12/2020,40480988,"2,791.91 ",Choice Support,12929,Peoples Services Directorate,Supported Living - Ext Provider,G306
http://opendatacommunities.org/id/london-borough-council/sutton,London Borough of Sutton,22/12/2020,40480988,"1,431.05 ",Choice Support,12929,Peoples Services Directorate,Supported Living - Ext Provider,G306
http://opendatacommunities.org/id/london-borough-council/sutton,London Borough of Sutton,22/12/2020,40480988,872.48 ,Choice Support,12929,Peoples Services Directorate,Supported Living - Ext Provider,G306
http://opendatacommunities.org/id/london-borough-council/sutton,London Borough of Sutton,22/12/2020,40480989,"2,112.43 ",Choice Support,12929,Peoples Services Directorate,Supported Living - Ext Provider,G306
http://opendatacommunities.org/id/london-borough-council/sutton,London Borough of Sutton,22/12/2020,40480989,484.53 ,Choice Support,12929,Peoples Services Directorate,Supported Living - Ext Provider,G306
http://opendatacommunities.org/id/london-borough-council/sutton,London Borough of Sutton,22/12/2020,40480989,"1,881.44 ",Choice Support,12929,Peoples Services Directorate,Supported Living - Ext Provider,G306
http://opendatacommunities.org/id/london-borough-council/sutton,London Borough of Sutton,22/12/2020,40480990,"2,665.64 ",Choice Support,12929,Peoples Services Directorate,Supported Living - Ext Provider,G306
http://opendatacommunities.org/id/london-borough-council/sutton,London Borough of Sutton,22/12/2020,40480990,"1,697.82 ",Choice Support,12929,Peoples Services Directorate,Supported Living - Ext Provider,G306
http://opendatacommunities.org/id/london-borough-council/sutton,London Borough of Sutton,22/12/2020,40480996,"2,314.91 ",Choice Support,12929,Peoples Services Directorate,Supported Living - Ext Provider,G306
http://opendatacommunities.org/id/london-borough-council/sutton,London Borough of Sutton,22/12/2020,40480996,484.53 ,Choice Support,12929,Peoples Services Directorate,Supported Living - Ext Provider,G306
http://opendatacommunities.org/id/london-borough-council/sutton,London Borough of Sutton,22/12/2020,40480996,"1,626.04 ",Choice Support,12929,Peoples Services Directorate,Supported Living - Ext Provider,G306
http://opendatacommunities.org/id/london-borough-council/sutton,London Borough of Sutton,22/12/2020,40480997,"3,156.68 ",Choice Support,12929,Peoples Services Directorate,Supported Living - Ext Provider,G306
http://opendatacommunities.org/id/london-borough-council/sutton,London Borough of Sutton,22/12/2020,40480997,"1,697.82 ",Choice Support,12929,Peoples Services Directorate,Supported Living - Ext Provider,G306
http://opendatacommunities.org/id/london-borough-council/sutton,London Borough of Sutton,22/12/2020,40480998,"2,069.39 ",Choice Support,12929,Peoples Services Directorate,Supported Living - Ext Provider,G306
http://opendatacommunities.org/id/london-borough-council/sutton,London Borough of Sutton,22/12/2020,40480998,"1,599.38 ",Choice Support,12929,Peoples Services Directorate,Supported Living - Ext Provider,G306
http://opendatacommunities.org/id/london-borough-council/sutton,London Borough of Sutton,22/12/2020,40480998,484.53 ,Choice Support,12929,Peoples Services Directorate,Supported Living - Ext Provider,G306
http://opendatacommunities.org/id/london-borough-council/sutton,London Borough of Sutton,22/12/2020,40481195,"5,509.00 ",Choice Support,12929,Peoples Services Directorate,Residential Care - Ext Provider,G310
http://opendatacommunities.org/id/london-borough-council/sutton,London Borough of Sutton,08/12/2020,6983208,997.10 ,Christopher Millar,34823,"Environment, Housing & Regeneration Directorate",Temporary Protection - Homeless Persons,H300
http://opendatacommunities.org/id/london-borough-council/sutton,London Borough of Sutton,02/12/2020,6982466,"3,680.00 ",Chroma Vision Limited,20351,"Environment, Housing & Regeneration Directorate",IT Equipment - Repair and Maintenance,F382
http://opendatacommunities.org/id/london-borough-council/sutton,London Borough of Sutton,07/12/2020,6982687,"3,255.00 ",Chroma Vision Limited,20351,"Environment, Housing & Regeneration Directorate",Equipment -General,Y520
http://opendatacommunities.org/id/london-borough-council/sutton,London Borough of Sutton,15/12/2020,6983323,"14,792.28 ",Chroma Vision Limited,20351,"Environment, Housing & Regeneration Directorate",IT Equipment - Repair and Maintenance,F382
http://opendatacommunities.org/id/london-borough-council/sutton,London Borough of Sutton,21/12/2020,6983476,"1,895.00 ",Chroma Vision Limited,20351,"Environment, Housing & Regeneration Directorate",CCTV Rapid Deployment Cameras,F341
http://opendatacommunities.org/id/london-borough-council/sutton,London Borough of Sutton,04/12/2020,6982735,"1,775.44 ",City & Guilds,10967,Peoples Services Directorate,Fees - Exams,F285
http://opendatacommunities.org/id/london-borough-council/sutton,London Borough of Sutton,10/12/2020,6982981,"2,157.93 ",City & Guilds,10967,Peoples Services Directorate,Fees - Exams,F285
http://opendatacommunities.org/id/london-borough-council/sutton,London Borough of Sutton,30/11/2020,6982506,"1,259.61 ",City Sprint UK (Excel) Ltd,26267,Health and Wellbeing Directorate,Hired Vehicles,E070
http://opendatacommunities.org/id/london-borough-council/sutton,London Borough of Sutton,18/12/2020,6983419,"1,635.00 ",Civica UK Ltd,10978,Resources Directorate,IT Licences,F385
http://opendatacommunities.org/id/london-borough-council/sutton,London Borough of Sutton,08/12/2020,1303651,"9,950.04 ",Clapham Manor Primary School,34719,Peoples Services Directorate,Top-up Funding,G064
http://opendatacommunities.org/id/london-borough-council/sutton,London Borough of Sutton,22/12/2020,40481048,"3,515.04 ",Claremont Care Svs Ltd,18724,Peoples Services Directorate,Nursing Care - Ext Provider,G311
http://opendatacommunities.org/id/london-borough-council/sutton,London Borough of Sutton,22/12/2020,40481213,"5,200.00 ",Claremont Care Svs Ltd,18724,Peoples Services Directorate,Nursing Care - Ext Provider,G311
http://opendatacommunities.org/id/london-borough-council/sutton,London Borough of Sutton,22/12/2020,40481349,"5,600.00 ",Claremont Care Svs Ltd,18724,Peoples Services Directorate,Nursing Care - Ext Provider,G311
http://opendatacommunities.org/id/london-borough-council/sutton,London Borough of Sutton,22/12/2020,40481382,"4,374.00 ",Claremont Care Svs Ltd,18724,Peoples Services Directorate,Nursing Care - Ext Provider,G311
http://opendatacommunities.org/id/london-borough-council/sutton,London Borough of Sutton,03/12/2020,1303103,689.58 ,Clarion Housing Association Ltd,32192,Peoples Services Directorate,Approved Lodgings,H323
http://opendatacommunities.org/id/london-borough-council/sutton,London Borough of Sutton,31/12/2020,1304145,689.58 ,Clarion Housing Association Ltd,32192,Peoples Services Directorate,Approved Lodgings,H323
http://opendatacommunities.org/id/london-borough-council/sutton,London Borough of Sutton,18/12/2020,1304023,600.00 ,Clark SLT Of Clark Interventions Limited,35715,Peoples Services Directorate,Special Educational Needs,G331
http://opendatacommunities.org/id/london-borough-council/sutton,London Borough of Sutton,01/12/2020,6982308,"(8,861.76)",Clark SLT Of Clark Interventions Limited,35715,Peoples Services Directorate,Place Funding,G063
http://opendatacommunities.org/id/london-borough-council/sutton,London Borough of Sutton,01/12/2020,6982310,"(3,264.48)",Clark SLT Of Clark Interventions Limited,35715,Peoples Services Directorate,Place Funding,G063
http://opendatacommunities.org/id/london-borough-council/sutton,London Borough of Sutton,25/11/2020,1303649,"1,000.00 ",Classroom Teachers Ltd,32358,Peoples Services Directorate,Independent Schools,G325
http://opendatacommunities.org/id/london-borough-council/sutton,London Borough of Sutton,02/12/2020,1303650,750.00 ,Classroom Teachers Ltd,32358,Peoples Services Directorate,Independent Schools,G325
http://opendatacommunities.org/id/london-borough-council/sutton,London Borough of Sutton,09/12/2020,1303658,750.00 ,Classroom Teachers Ltd,32358,Peoples Services Directorate,Independent Schools,G325
http://opendatacommunities.org/id/london-borough-council/sutton,London Borough of Sutton,02/11/2020,40475228,419.00 ,Clovecare Ltd,33431,Peoples Services Directorate,Home Care,G334
http://opendatacommunities.org/id/london-borough-council/sutton,London Borough of Sutton,09/11/2020,40475882,460.25 ,Clovecare Ltd,33431,Peoples Services Directorate,Home Care,G334
http://opendatacommunities.org/id/london-borough-council/sutton,London Borough of Sutton,09/11/2020,40475901,803.00 ,Clovecare Ltd,33431,Peoples Services Directorate,Home Care,G334
http://opendatacommunities.org/id/london-borough-council/sutton,London Borough of Sutton,09/11/2020,40475902,419.00 ,Clovecare Ltd,33431,Peoples Services Directorate,Home Care,G334
http://opendatacommunities.org/id/london-borough-council/sutton,London Borough of Sutton,16/11/2020,40477957,803.00 ,Clovecare Ltd,33431,Peoples Services Directorate,Home Care,G334
http://opendatacommunities.org/id/london-borough-council/sutton,London Borough of Sutton,16/11/2020,40477963,419.00 ,Clovecare Ltd,33431,Peoples Services Directorate,Home Care,G334
http://opendatacommunities.org/id/london-borough-council/sutton,London Borough of Sutton,16/11/2020,40477983,460.25 ,Clovecare Ltd,33431,Peoples Services Directorate,Home Care,G334
http://opendatacommunities.org/id/london-borough-council/sutton,London Borough of Sutton,23/11/2020,40480475,460.25 ,Clovecare Ltd,33431,Peoples Services Directorate,Home Care,G334
http://opendatacommunities.org/id/london-borough-council/sutton,London Borough of Sutton,23/11/2020,40480495,419.00 ,Clovecare Ltd,33431,Peoples Services Directorate,Home Care,G334
http://opendatacommunities.org/id/london-borough-council/sutton,London Borough of Sutton,23/11/2020,40480501,803.00 ,Clovecare Ltd,33431,Peoples Services Directorate,Home Care,G334
http://opendatacommunities.org/id/london-borough-council/sutton,London Borough of Sutton,30/11/2020,40481964,803.00 ,Clovecare Ltd,33431,Peoples Services Directorate,Home Care,G334
http://opendatacommunities.org/id/london-borough-council/sutton,London Borough of Sutton,30/11/2020,40481967,460.25 ,Clovecare Ltd,33431,Peoples Services Directorate,Home Care,G334
http://opendatacommunities.org/id/london-borough-council/sutton,London Borough of Sutton,30/11/2020,40481973,419.00 ,Clovecare Ltd,33431,Peoples Services Directorate,Home Care,G334
http://opendatacommunities.org/id/london-borough-council/sutton,London Borough of Sutton,07/12/2020,40482162,803.00 ,Clovecare Ltd,33431,Peoples Services Directorate,Home Care,G334
http://opendatacommunities.org/id/london-borough-council/sutton,London Borough of Sutton,07/12/2020,40482178,460.25 ,Clovecare Ltd,33431,Peoples Services Directorate,Home Care,G334
http://opendatacommunities.org/id/london-borough-council/sutton,London Borough of Sutton,07/12/2020,40482184,419.00 ,Clovecare Ltd,33431,Peoples Services Directorate,Home Care,G334
http://opendatacommunities.org/id/london-borough-council/sutton,London Borough of Sutton,22/12/2020,40481108,"2,600.00 ",Cloyda Limited,20402,Peoples Services Directorate,Residential Care - Ext Provider,G310
http://opendatacommunities.org/id/london-borough-council/sutton,London Borough of Sutton,22/12/2020,40480961,"3,162.00 ",Cmg Homes Ltd,11026,Peoples Services Directorate,Supported Living - Ext Provider,G306
http://opendatacommunities.org/id/london-borough-council/sutton,London Borough of Sutton,22/12/2020,40480971,"3,662.43 ",Cmg Homes Ltd,11026,Peoples Services Directorate,Supported Living - Ext Provider,G306
http://opendatacommunities.org/id/london-borough-council/sutton,London Borough of Sutton,22/12/2020,40480972,"3,675.72 ",Cmg Homes Ltd,11026,Peoples Services Directorate,Supported Living - Ext Provider,G306
http://opendatacommunities.org/id/london-borough-council/sutton,London Borough of Sutton,22/12/2020,40480981,"4,592.43 ",Cmg Homes Ltd,11026,Peoples Services Directorate,Supported Living - Ext Provider,G306
http://opendatacommunities.org/id/london-borough-council/sutton,London Borough of Sutton,22/12/2020,40481049,"5,416.92 ",Cmg Homes Ltd,11026,Peoples Services Directorate,Residential Care - Ext Provider,G310
http://opendatacommunities.org/id/london-borough-council/sutton,London Borough of Sutton,22/12/2020,40481196,"7,036.00 ",Cmg Homes Ltd,11026,Peoples Services Directorate,Residential Care - Ext Provider,G310
http://opendatacommunities.org/id/london-borough-council/sutton,London Borough of Sutton,03/12/2020,1302939,"1,352.00 ",CN Healthcare Ltd,35818,Peoples Services Directorate,Contract Cleaning,D806
http://opendatacommunities.org/id/london-borough-council/sutton,London Borough of Sutton,02/10/2020,40474877,"3,555.69 ",Cognithan Ltd,29938,Peoples Services Directorate,Supported Living - Ext Provider,G306
http://opendatacommunities.org/id/london-borough-council/sutton,London Borough of Sutton,22/12/2020,40481130,"5,045.80 ",Cognithan Ltd,29938,Peoples Services Directorate,Residential Care - Ext Provider,G310
http://opendatacommunities.org/id/london-borough-council/sutton,London Borough of Sutton,30/11/2020,6982232,"147,500.01 ",Cognus Ltd,26829,Peoples Services Directorate,Contractual Consultant Fees,G430
http://opendatacommunities.org/id/london-borough-council/sutton,London Borough of Sutton,01/12/2020,6982304,"167,900.00 ",Cognus Ltd,26829,Peoples Services Directorate,Contractual Consultant Fees,G430
http://opendatacommunities.org/id/london-borough-council/sutton,London Borough of Sutton,01/12/2020,6982304,"198,600.00 ",Cognus Ltd,26829,Peoples Services Directorate,Contractual Consultant Fees,G430
http://opendatacommunities.org/id/london-borough-council/sutton,London Borough of Sutton,01/12/2020,6982305,"259,155.00 ",Cognus Ltd,26829,Peoples Services Directorate,Special Educational Needs,G331
http://opendatacommunities.org/id/london-borough-council/sutton,London Borough of Sutton,01/12/2020,6982306,"49,166.67 ",Cognus Ltd,26829,Peoples Services Directorate,Contractual Consultant Fees,G430
http://opendatacommunities.org/id/london-borough-council/sutton,London Borough of Sutton,18/12/2020,1304026,"12,035.33 ",Coleg Elidyr Camphill Communities,28764,Peoples Services Directorate,Independent Schools,G325
http://opendatacommunities.org/id/london-borough-council/sutton,London Borough of Sutton,22/12/2020,40481330,"37,303.43 ",Coleg Elidyr Camphill Communities,28764,Peoples Services Directorate,Interim Placements - Ext Provider,G317
http://opendatacommunities.org/id/london-borough-council/sutton,London Borough of Sutton,01/11/2020,40477354,"16,714.20 ",Compass Children's Homes Ltd,26810,Peoples Services Directorate,Residential Care-Children,G330
http://opendatacommunities.org/id/london-borough-council/sutton,London Borough of Sutton,01/11/2020,40477256,"3,367.85 ",Compass Fostering Eastern Ltd,32193,Peoples Services Directorate,Foster Parents,G326
http://opendatacommunities.org/id/london-borough-council/sutton,London Borough of Sutton,01/11/2020,40477299,"4,350.00 ",Compass Fostering Eastern Ltd,32193,Peoples Services Directorate,Foster Parents,G326
http://opendatacommunities.org/id/london-borough-council/sutton,London Borough of Sutton,01/11/2020,40477379,"3,145.50 ",Compass Fostering Eastern Ltd,32193,Peoples Services Directorate,Foster Parents,G326
http://opendatacommunities.org/id/london-borough-council/sutton,London Borough of Sutton,01/11/2020,40477301,"3,342.60 ",Compass Fostering London Ltd,25848,Peoples Services Directorate,Foster Parents,G326
http://opendatacommunities.org/id/london-borough-council/sutton,London Borough of Sutton,01/11/2020,40477302,"3,342.60 ",Compass Fostering London Ltd,25848,Peoples Services Directorate,Foster Parents,G326
http://opendatacommunities.org/id/london-borough-council/sutton,London Borough of Sutton,01/11/2020,40477303,"2,678.70 ",Compass Fostering London Ltd,25848,Peoples Services Directorate,Foster Parents,G326
http://opendatacommunities.org/id/london-borough-council/sutton,London Borough of Sutton,30/11/2020,40477355,557.10 ,Compass Fostering London Ltd,25848,Peoples Services Directorate,Foster Parents,G326
http://opendatacommunities.org/id/london-borough-council/sutton,London Borough of Sutton,01/11/2020,40477359,"3,257.10 ",Compass Fostering London Ltd,25848,Peoples Services Directorate,Foster Parents,G326
http://opendatacommunities.org/id/london-borough-council/sutton,London Borough of Sutton,01/11/2020,40477381,"3,342.60 ",Compass Fostering London Ltd,25848,Peoples Services Directorate,Foster Parents,G326
http://opendatacommunities.org/id/london-borough-council/sutton,London Borough of Sutton,01/11/2020,40477287,"3,923.70 ",Compass Fostering South Ltd,27957,Peoples Services Directorate,Foster Parents,G326
http://opendatacommunities.org/id/london-borough-council/sutton,London Borough of Sutton,01/11/2020,40477298,"3,342.60 ",Compass Fostering West Ltd,34686,Peoples Services Directorate,Foster Parents,G326
http://opendatacommunities.org/id/london-borough-council/sutton,London Borough of Sutton,02/12/2020,6982412,"10,000.00 ",Cornerstone Property Assets Limited,35046,Resources Directorate,Fees - Consultants (Ad Hoc),F283
http://opendatacommunities.org/id/london-borough-council/sutton,London Borough of Sutton,11/11/2020,6982868,"3,100.00 ",Cornerways Childrens Services Ltd,18435,Peoples Services Directorate,Personal Requisites,F106
http://opendatacommunities.org/id/london-borough-council/sutton,London Borough of Sutton,26/10/2020,40477319,"20,221.43 ",Cornerways Childrens Services Ltd,18435,Peoples Services Directorate,Residential Care-Children,G330
http://opendatacommunities.org/id/london-borough-council/sutton,London Borough of Sutton,09/11/2020,6982209,749.43 ,Corona Energy,11163,Resources Directorate,Gas - General,D610
http://opendatacommunities.org/id/london-borough-council/sutton,London Borough of Sutton,16/07/2018,6983216,"1,727.46 ",Corona Energy,11163,Resources Directorate,Gas - General,D610
http://opendatacommunities.org/id/london-borough-council/sutton,London Borough of Sutton,09/08/2018,6983244,"1,517.66 ",Corona Energy,11163,Resources Directorate,Gas - General,D610
http://opendatacommunities.org/id/london-borough-council/sutton,London Borough of Sutton,09/10/2018,6983262,"1,750.10 ",Corona Energy,11163,Resources Directorate,Gas - General,D610
http://opendatacommunities.org/id/london-borough-council/sutton,London Borough of Sutton,07/12/2020,6983487,"1,244.41 ",Corona Energy,11163,Resources Directorate,Gas - General,D610
http://opendatacommunities.org/id/london-borough-council/sutton,London Borough of Sutton,09/11/2018,6983566,"3,207.22 ",Corona Energy,11163,Resources Directorate,Gas - General,D610
http://opendatacommunities.org/id/london-borough-council/sutton,London Borough of Sutton,07/12/2018,6983567,"4,595.56 ",Corona Energy,11163,Resources Directorate,Gas - General,D610
http://opendatacommunities.org/id/london-borough-council/sutton,London Borough of Sutton,15/12/2020,6983681,"82,068.84 ",CPP FM & Projects Ltd,97611,Resources Directorate,Building Works -Main Contractor,Y350
http://opendatacommunities.org/id/london-borough-council/sutton,London Borough of Sutton,01/12/2020,6982503,"151,231.67 ",Cranstoun,11184,Health and Wellbeing Directorate,Provider Contract Payments,F470
http://opendatacommunities.org/id/london-borough-council/sutton,London Borough of Sutton,01/12/2020,6982509,"92,631.50 ",Cranstoun,11184,Resources Directorate,Provider Contract Payments,F470
http://opendatacommunities.org/id/london-borough-council/sutton,London Borough of Sutton,30/11/2020,6982607,"42,490.00 ",Cranstoun,11184,Peoples Services Directorate,Grant Contributions from other Services,T974
http://opendatacommunities.org/id/london-borough-council/sutton,London Borough of Sutton,20/11/2019,6982669,640.34 ,Creighton and Partners,16352,Peoples Services Directorate,Legal Expenses,G412
http://opendatacommunities.org/id/london-borough-council/sutton,London Borough of Sutton,15/11/2020,6982334,547.74 ,Crest Manor Ltd,25469,Peoples Services Directorate,Approved Lodgings,H323
http://opendatacommunities.org/id/london-borough-council/sutton,London Borough of Sutton,07/12/2020,1303402,650.00 ,Cricket Green School,24359,Peoples Services Directorate,Special Educational Needs,G331
http://opendatacommunities.org/id/london-borough-council/sutton,London Borough of Sutton,07/12/2020,1303403,"1,300.00 ",Cricket Green School,24359,Peoples Services Directorate,Special Educational Needs,G331
http://opendatacommunities.org/id/london-borough-council/sutton,London Borough of Sutton,22/12/2020,40481041,"9,546.00 ",CRNH Ltd T/A St Judes Nursing Home,14297,Peoples Services Directorate,Nursing Care - Ext Provider,G311
http://opendatacommunities.org/id/london-borough-council/sutton,London Borough of Sutton,22/12/2020,40481186,"3,612.00 ",CRNH Ltd T/A St Judes Nursing Home,14297,Peoples Services Directorate,Nursing Care - Ext Provider,G311
http://opendatacommunities.org/id/london-borough-council/sutton,London Borough of Sutton,22/12/2020,40481222,"3,612.00 ",CRNH Ltd T/A St Judes Nursing Home,14297,Peoples Services Directorate,Nursing Care - Ext Provider,G311
http://opendatacommunities.org/id/london-borough-council/sutton,London Borough of Sutton,22/12/2020,40481228,"3,545.44 ",CRNH Ltd T/A St Judes Nursing Home,14297,Peoples Services Directorate,Nursing Care - Ext Provider,G311
http://opendatacommunities.org/id/london-borough-council/sutton,London Borough of Sutton,22/12/2020,40481244,"3,502.08 ",CRNH Ltd T/A St Judes Nursing Home,14297,Peoples Services Directorate,Nursing Care - Ext Provider,G311
http://opendatacommunities.org/id/london-borough-council/sutton,London Borough of Sutton,22/12/2020,40481248,"3,555.32 ",CRNH Ltd T/A St Judes Nursing Home,14297,Peoples Services Directorate,Nursing Care - Ext Provider,G311
http://opendatacommunities.org/id/london-borough-council/sutton,London Borough of Sutton,22/12/2020,40481305,"3,556.00 ",CRNH Ltd T/A St Judes Nursing Home,14297,Peoples Services Directorate,Nursing Care - Ext Provider,G311
http://opendatacommunities.org/id/london-borough-council/sutton,London Borough of Sutton,22/12/2020,40481315,"4,070.40 ",CRNH Ltd T/A St Judes Nursing Home,14297,Peoples Services Directorate,Nursing Care - Ext Provider,G311
http://opendatacommunities.org/id/london-borough-council/sutton,London Borough of Sutton,22/12/2020,40481348,"3,612.00 ",CRNH Ltd T/A St Judes Nursing Home,14297,Peoples Services Directorate,Nursing Care - Ext Provider,G311
http://opendatacommunities.org/id/london-borough-council/sutton,London Borough of Sutton,22/12/2020,40481396,"2,908.16 ",CRNH Ltd T/A St Judes Nursing Home,14297,Peoples Services Directorate,Nursing Care - Ext Provider,G311
http://opendatacommunities.org/id/london-borough-council/sutton,London Borough of Sutton,22/12/2020,40481022,"3,612.00 ",Cross Care Services Ltd,12165,Peoples Services Directorate,Nursing Care - Ext Provider,G311
http://opendatacommunities.org/id/london-borough-council/sutton,London Borough of Sutton,22/12/2020,40481043,"3,502.08 ",Cross Care Services Ltd,12165,Peoples Services Directorate,Nursing Care - Ext Provider,G311
http://opendatacommunities.org/id/london-borough-council/sutton,London Borough of Sutton,22/12/2020,40481102,"3,611.68 ",Cross Care Services Ltd,12165,Peoples Services Directorate,Nursing Care - Ext Provider,G311
http://opendatacommunities.org/id/london-borough-council/sutton,London Borough of Sutton,22/12/2020,40481119,"3,502.24 ",Cross Care Services Ltd,12165,Peoples Services Directorate,Nursing Care - Short Term Placements,G328
http://opendatacommunities.org/id/london-borough-council/sutton,London Borough of Sutton,22/12/2020,40481154,"3,612.00 ",Cross Care Services Ltd,12165,Peoples Services Directorate,Nursing Care - Ext Provider,G311
http://opendatacommunities.org/id/london-borough-council/sutton,London Borough of Sutton,22/12/2020,40481158,"3,483.00 ",Cross Care Services Ltd,12165,Peoples Services Directorate,Nursing Care - Ext Provider,G311
http://opendatacommunities.org/id/london-borough-council/sutton,London Borough of Sutton,22/12/2020,40481203,"3,354.00 ",Cross Care Services Ltd,12165,Peoples Services Directorate,Nursing Care - Ext Provider,G311
http://opendatacommunities.org/id/london-borough-council/sutton,London Borough of Sutton,22/12/2020,40481272,"3,171.44 ",Cross Care Services Ltd,12165,Peoples Services Directorate,Nursing Care - Ext Provider,G311
http://opendatacommunities.org/id/london-borough-council/sutton,London Borough of Sutton,22/12/2020,40481356,"3,612.00 ",Cross Care Services Ltd,12165,Peoples Services Directorate,Nursing Care - Ext Provider,G311
http://opendatacommunities.org/id/london-borough-council/sutton,London Borough of Sutton,22/12/2020,40481028,"4,168.24 ",Crossways Community,11187,Peoples Services Directorate,Residential Care - Ext Provider,G310
http://opendatacommunities.org/id/london-borough-council/sutton,London Borough of Sutton,22/12/2020,40481216,"2,634.68 ",Crossways Community,11187,Peoples Services Directorate,Residential Care - Ext Provider,G310
http://opendatacommunities.org/id/london-borough-council/sutton,London Borough of Sutton,09/07/2020,6980240,"538,283.62 ",Croydon Council,11227,"Environment, Housing & Regeneration Directorate",Veolia - Contract Payment,G255
http://opendatacommunities.org/id/london-borough-council/sutton,London Borough of Sutton,07/12/2020,6982629,700.00 ,Croydon Council,11227,Peoples Services Directorate,LAC - Education,F269
http://opendatacommunities.org/id/london-borough-council/sutton,London Borough of Sutton,25/02/2019,6982666,"(70,936.08)",Croydon Council,11227,"Environment, Housing & Regeneration Directorate",Idverde - Contract Payment,G250
http://opendatacommunities.org/id/london-borough-council/sutton,London Borough of Sutton,24/10/2017,6982958,"(7,587.80)",Croydon Council,11227,"Environment, Housing & Regeneration Directorate",Idverde - Contract Payment,G250
http://opendatacommunities.org/id/london-borough-council/sutton,London Borough of Sutton,03/12/2020,1302940,"1,183.00 ",Crystaline Business Solutions Limited,35797,Peoples Services Directorate,Contract Cleaning,D806
http://opendatacommunities.org/id/london-borough-council/sutton,London Borough of Sutton,01/12/2020,6983127,646.66 ,CSL Dualcom Ltd,28014,Resources Directorate,FM - Planned Maintenance Contract - Mitie,G613
http://opendatacommunities.org/id/london-borough-council/sutton,London Borough of Sutton,22/12/2020,40481338,"7,200.00 ",CSS Ltd t/a Grove Care,19184,Peoples Services Directorate,Residential Care - Ext Provider,G310
http://opendatacommunities.org/id/london-borough-council/sutton,London Borough of Sutton,07/11/2020,6982569,"55,534.07 ",Culvers House Primary School,11252,Peoples Services Directorate,Building Works -Main Contractor,Y350
http://opendatacommunities.org/id/london-borough-council/sutton,London Borough of Sutton,17/11/2020,6982845,717.80 ,Culvers House Primary School,11252,Peoples Services Directorate,Building Works -Main Contractor,Y350
http://opendatacommunities.org/id/london-borough-council/sutton,London Borough of Sutton,28/04/2020,6982943,(764.69),Cygnet IT Services CIC,25840,Resources Directorate,Fees - Computer Software,F384
http://opendatacommunities.org/id/london-borough-council/sutton,London Borough of Sutton,11/12/2020,6982830,805.00 ,D Karapinar,26474,"Environment, Housing & Regeneration Directorate",Temporary Protection - Homeless Persons,H300
http://opendatacommunities.org/id/london-borough-council/sutton,London Borough of Sutton,12/12/2020,6983050,"1,015.20 ",Daisy Bogg Consultancy Ltd,26425,Peoples Services Directorate,Training - Course Fees,A520
http://opendatacommunities.org/id/london-borough-council/sutton,London Borough of Sutton,19/11/2020,6983072,"1,200.00 ",Dare to Differ (Kent),35914,Peoples Services Directorate,LAC - Education,F269
http://opendatacommunities.org/id/london-borough-council/sutton,London Borough of Sutton,11/08/2020,6982947,960.00 ,Dariba Design Ltd,99815,"Environment, Housing & Regeneration Directorate",Grants -Made,Y610
http://opendatacommunities.org/id/london-borough-council/sutton,London Borough of Sutton,15/12/2020,6983949,960.00 ,Dariba Design Ltd,99815,"Environment, Housing & Regeneration Directorate",Grants -Made,Y610
http://opendatacommunities.org/id/london-borough-council/sutton,London Borough of Sutton,01/01/2021,6983920,"2,839.99 ",David Rea T/A Angel Lettings,18658,"Environment, Housing & Regeneration Directorate",Temporary Protection - Homeless Persons,H300
http://opendatacommunities.org/id/london-borough-council/sutton,London Borough of Sutton,01/01/2021,6983921,"2,839.99 ",David Rea T/A Dreamlettings,11391,"Environment, Housing & Regeneration Directorate",Temporary Protection - Homeless Persons,H300
http://opendatacommunities.org/id/london-borough-council/sutton,London Borough of Sutton,20/12/2020,6983439,"1,209.00 ",David V.  Randall,29122,"Environment, Housing & Regeneration Directorate",Temporary Protection - Homeless Persons,H300
http://opendatacommunities.org/id/london-borough-council/sutton,London Borough of Sutton,01/11/2020,40475017,424.00 ,Day and Nite Services,26773,Peoples Services Directorate,Home Care,G334
http://opendatacommunities.org/id/london-borough-council/sutton,London Borough of Sutton,08/11/2020,40475018,424.00 ,Day and Nite Services,26773,Peoples Services Directorate,Home Care,G334
http://opendatacommunities.org/id/london-borough-council/sutton,London Borough of Sutton,01/11/2020,40475019,672.00 ,Day and Nite Services,26773,Peoples Services Directorate,Home Care,G334
http://opendatacommunities.org/id/london-borough-council/sutton,London Borough of Sutton,08/11/2020,40475020,672.00 ,Day and Nite Services,26773,Peoples Services Directorate,Home Care,G334
http://opendatacommunities.org/id/london-borough-council/sutton,London Borough of Sutton,01/11/2020,40475120,560.00 ,Day and Nite Services,26773,Peoples Services Directorate,Home Care,G334
http://opendatacommunities.org/id/london-borough-council/sutton,London Borough of Sutton,08/11/2020,40475121,560.00 ,Day and Nite Services,26773,Peoples Services Directorate,Home Care,G334
http://opendatacommunities.org/id/london-borough-council/sutton,London Borough of Sutton,15/11/2020,40475411,424.00 ,Day and Nite Services,26773,Peoples Services Directorate,Home Care,G334
http://opendatacommunities.org/id/london-borough-council/sutton,London Borough of Sutton,22/11/2020,40475412,424.00 ,Day and Nite Services,26773,Peoples Services Directorate,Home Care,G334
http://opendatacommunities.org/id/london-borough-council/sutton,London Borough of Sutton,15/11/2020,40475417,672.00 ,Day and Nite Services,26773,Peoples Services Directorate,Home Care,G334
http://opendatacommunities.org/id/london-borough-council/sutton,London Borough of Sutton,22/11/2020,40475418,672.00 ,Day and Nite Services,26773,Peoples Services Directorate,Home Care,G334
http://opendatacommunities.org/id/london-borough-council/sutton,London Borough of Sutton,15/11/2020,40475502,560.00 ,Day and Nite Services,26773,Peoples Services Directorate,Home Care,G334
http://opendatacommunities.org/id/london-borough-council/sutton,London Borough of Sutton,28/01/2019,40475872,504.00 ,Day and Nite Services,26773,Peoples Services Directorate,Home Care,G334
http://opendatacommunities.org/id/london-borough-council/sutton,London Borough of Sutton,18/02/2019,40475873,504.00 ,Day and Nite Services,26773,Peoples Services Directorate,Home Care,G334
http://opendatacommunities.org/id/london-borough-council/sutton,London Borough of Sutton,08/04/2019,40475874,504.00 ,Day and Nite Services,26773,Peoples Services Directorate,Home Care,G334
http://opendatacommunities.org/id/london-borough-council/sutton,London Borough of Sutton,20/05/2019,40475875,488.00 ,Day and Nite Services,26773,Peoples Services Directorate,Home Care,G334
http://opendatacommunities.org/id/london-borough-council/sutton,London Borough of Sutton,15/04/2019,40475879,504.00 ,Day and Nite Services,26773,Peoples Services Directorate,Home Care,G334
http://opendatacommunities.org/id/london-borough-council/sutton,London Borough of Sutton,06/05/2019,40475880,500.00 ,Day and Nite Services,26773,Peoples Services Directorate,Home Care,G334
http://opendatacommunities.org/id/london-borough-council/sutton,London Borough of Sutton,14/01/2019,40475884,504.00 ,Day and Nite Services,26773,Peoples Services Directorate,Home Care,G334
http://opendatacommunities.org/id/london-borough-council/sutton,London Borough of Sutton,07/01/2019,40475888,501.33 ,Day and Nite Services,26773,Peoples Services Directorate,Home Care,G334
http://opendatacommunities.org/id/london-borough-council/sutton,London Borough of Sutton,01/04/2019,40475889,504.00 ,Day and Nite Services,26773,Peoples Services Directorate,Home Care,G334
http://opendatacommunities.org/id/london-borough-council/sutton,London Borough of Sutton,29/04/2019,40475890,500.00 ,Day and Nite Services,26773,Peoples Services Directorate,Home Care,G334
http://opendatacommunities.org/id/london-borough-council/sutton,London Borough of Sutton,13/05/2019,40475891,484.00 ,Day and Nite Services,26773,Peoples Services Directorate,Home Care,G334
http://opendatacommunities.org/id/london-borough-council/sutton,London Borough of Sutton,31/12/2018,40475903,485.33 ,Day and Nite Services,26773,Peoples Services Directorate,Home Care,G334
http://opendatacommunities.org/id/london-borough-council/sutton,London Borough of Sutton,04/02/2019,40475904,504.00 ,Day and Nite Services,26773,Peoples Services Directorate,Home Care,G334
http://opendatacommunities.org/id/london-borough-council/sutton,London Borough of Sutton,11/02/2019,40475905,504.00 ,Day and Nite Services,26773,Peoples Services Directorate,Home Care,G334
http://opendatacommunities.org/id/london-borough-council/sutton,London Borough of Sutton,22/04/2019,40475906,504.00 ,Day and Nite Services,26773,Peoples Services Directorate,Home Care,G334
http://opendatacommunities.org/id/london-borough-council/sutton,London Borough of Sutton,18/03/2019,40476968,504.00 ,Day and Nite Services,26773,Peoples Services Directorate,Home Care,G334
http://opendatacommunities.org/id/london-borough-council/sutton,London Borough of Sutton,04/03/2019,40476969,504.00 ,Day and Nite Services,26773,Peoples Services Directorate,Home Care,G334
http://opendatacommunities.org/id/london-borough-council/sutton,London Borough of Sutton,25/02/2019,40476975,504.00 ,Day and Nite Services,26773,Peoples Services Directorate,Home Care,G334
http://opendatacommunities.org/id/london-borough-council/sutton,London Borough of Sutton,11/03/2019,40476976,504.00 ,Day and Nite Services,26773,Peoples Services Directorate,Home Care,G334
http://opendatacommunities.org/id/london-borough-council/sutton,London Borough of Sutton,25/03/2019,40476977,504.00 ,Day and Nite Services,26773,Peoples Services Directorate,Home Care,G334
http://opendatacommunities.org/id/london-borough-council/sutton,London Borough of Sutton,29/11/2020,40481513,424.00 ,Day and Nite Services,26773,Peoples Services Directorate,Home Care,G334
http://opendatacommunities.org/id/london-borough-council/sutton,London Borough of Sutton,06/12/2020,40481514,424.00 ,Day and Nite Services,26773,Peoples Services Directorate,Home Care,G334
http://opendatacommunities.org/id/london-borough-council/sutton,London Borough of Sutton,29/11/2020,40481520,672.00 ,Day and Nite Services,26773,Peoples Services Directorate,Home Care,G334
http://opendatacommunities.org/id/london-borough-council/sutton,London Borough of Sutton,06/12/2020,40481521,672.00 ,Day and Nite Services,26773,Peoples Services Directorate,Home Care,G334
http://opendatacommunities.org/id/london-borough-council/sutton,London Borough of Sutton,22/12/2020,1303829,420.00 ,De Stafford School,35930,Peoples Services Directorate,Payments to Schools,G065
http://opendatacommunities.org/id/london-borough-council/sutton,London Borough of Sutton,22/12/2020,1303830,840.00 ,De Stafford School,35930,Peoples Services Directorate,Payments to Schools,G065
http://opendatacommunities.org/id/london-borough-council/sutton,London Borough of Sutton,26/10/2020,6982737,875.00 ,Debigno Ltd t/a Pathway Analytics,28654,Health and Wellbeing Directorate,Provider Contract Payments,F470
http://opendatacommunities.org/id/london-borough-council/sutton,London Borough of Sutton,18/11/2020,6981501,"2,462.75 ",Definitive PSA Ltd T/A Secure24 (S24),99863,Peoples Services Directorate,Client Care/Assistance,H301
http://opendatacommunities.org/id/london-borough-council/sutton,London Borough of Sutton,16/11/2020,6983359,"1,567.50 ",Denhan Property Services,28353,"Environment, Housing & Regeneration Directorate",Bed and Breakfast Accommodation,G400
http://opendatacommunities.org/id/london-borough-council/sutton,London Borough of Sutton,16/12/2020,6983360,"1,080.00 ",Denhan Property Services,28353,"Environment, Housing & Regeneration Directorate",Bed and Breakfast Accommodation,G400
http://opendatacommunities.org/id/london-borough-council/sutton,London Borough of Sutton,16/12/2020,6983361,813.75 ,Denhan Property Services,28353,"Environment, Housing & Regeneration Directorate",Bed and Breakfast Accommodation,G400
http://opendatacommunities.org/id/london-borough-council/sutton,London Borough of Sutton,16/11/2020,6983362,"1,920.00 ",Denhan Property Services,28353,"Environment, Housing & Regeneration Directorate",Bed and Breakfast Accommodation,G400
http://opendatacommunities.org/id/london-borough-council/sutton,London Borough of Sutton,16/12/2020,6983363,"1,260.00 ",Denhan Property Services,28353,"Environment, Housing & Regeneration Directorate",Bed and Breakfast Accommodation,G400
http://opendatacommunities.org/id/london-borough-council/sutton,London Borough of Sutton,22/12/2020,40481386,"2,918.00 ",Denville Hall 2012,35324,Peoples Services Directorate,Residential Care - Ext Provider,G310
http://opendatacommunities.org/id/london-borough-council/sutton,London Borough of Sutton,25/11/2020,1303364,(740.00),Devonshire Primary School,11321,Peoples Services Directorate,Top-up Funding,G064
http://opendatacommunities.org/id/london-borough-council/sutton,London Borough of Sutton,22/12/2020,1303821,600.00 ,Devonshire Primary School,11321,Peoples Services Directorate,Payments to Schools,G065
http://opendatacommunities.org/id/london-borough-council/sutton,London Borough of Sutton,22/12/2020,1303822,546.00 ,Devonshire Primary School,11321,Peoples Services Directorate,Payments to Schools,G065
http://opendatacommunities.org/id/london-borough-council/sutton,London Borough of Sutton,04/12/2020,40482214,"2,128.28 ",Direct Care And Support Services,23268,Peoples Services Directorate,Supported Living - Ext Provider,G306
http://opendatacommunities.org/id/london-borough-council/sutton,London Borough of Sutton,04/12/2020,40482215,"3,132.80 ",Direct Care And Support Services,23268,Peoples Services Directorate,Supported Living - Ext Provider,G306
http://opendatacommunities.org/id/london-borough-council/sutton,London Borough of Sutton,04/12/2020,40482216,"1,299.40 ",Direct Care And Support Services,23268,Peoples Services Directorate,Supported Living - Ext Provider,G306
http://opendatacommunities.org/id/london-borough-council/sutton,London Borough of Sutton,04/12/2020,40482255,"7,669.20 ",Direct Care And Support Services,23268,Peoples Services Directorate,Supported Living - Ext Provider,G306
http://opendatacommunities.org/id/london-borough-council/sutton,London Borough of Sutton,04/12/2020,40482256,"1,570.80 ",Direct Care And Support Services,23268,Peoples Services Directorate,Supported Living - Ext Provider,G306
http://opendatacommunities.org/id/london-borough-council/sutton,London Borough of Sutton,04/12/2020,40482257,"3,496.00 ",Direct Care And Support Services,23268,Peoples Services Directorate,Supported Living - Ext Provider,G306
http://opendatacommunities.org/id/london-borough-council/sutton,London Borough of Sutton,04/12/2020,40482258,"2,450.00 ",Direct Care And Support Services,23268,Peoples Services Directorate,Supported Living - Ext Provider,G306
http://opendatacommunities.org/id/london-borough-council/sutton,London Borough of Sutton,04/12/2020,40482262,"4,470.88 ",Direct Care And Support Services,23268,Peoples Services Directorate,Supported Living - Ext Provider,G306
http://opendatacommunities.org/id/london-borough-council/sutton,London Borough of Sutton,04/12/2020,40482292,"2,256.24 ",Direct Care And Support Services,23268,Peoples Services Directorate,Supported Living - Ext Provider,G306
http://opendatacommunities.org/id/london-borough-council/sutton,London Borough of Sutton,24/08/2020,6980022,694.78 ,DMA Signs Limited,20534,"Environment, Housing & Regeneration Directorate",Furniture & Fittings,Y500
http://opendatacommunities.org/id/london-borough-council/sutton,London Borough of Sutton,19/12/2020,6983441,"1,000.00 ",Dr Bilikisu A Alatishe,27008,"Environment, Housing & Regeneration Directorate",Temporary Protection - Homeless Persons,H300
http://opendatacommunities.org/id/london-borough-council/sutton,London Borough of Sutton,24/11/2020,6981872,"2,800.00 ",Dr M O Oladinni,26649,Peoples Services Directorate,Fees - Other,F299
http://opendatacommunities.org/id/london-borough-council/sutton,London Borough of Sutton,26/11/2020,6982055,626.90 ,DSI Billing Services Ltd,17962,Resources Directorate,Postages - General,F350
http://opendatacommunities.org/id/london-borough-council/sutton,London Borough of Sutton,26/11/2020,6982055,626.90 ,DSI Billing Services Ltd,17962,Resources Directorate,Postages - General,F350
http://opendatacommunities.org/id/london-borough-council/sutton,London Borough of Sutton,17/12/2020,6983365,"1,891.00 ",DSI Billing Services Ltd,17962,Resources Directorate,Postages - General,F350
http://opendatacommunities.org/id/london-borough-council/sutton,London Borough of Sutton,17/12/2020,6983365,"1,891.00 ",DSI Billing Services Ltd,17962,Resources Directorate,Postages - General,F350
http://opendatacommunities.org/id/london-borough-council/sutton,London Borough of Sutton,01/11/2020,6982382,"3,535.71 ",Dunfield & Mead Ltd,28055,Peoples Services Directorate,Approved Lodgings,H323
http://opendatacommunities.org/id/london-borough-council/sutton,London Borough of Sutton,01/11/2020,6982383,"1,396.42 ",Dunfield & Mead Ltd,28055,Peoples Services Directorate,Approved Lodgings,H323
http://opendatacommunities.org/id/london-borough-council/sutton,London Borough of Sutton,01/11/2020,6982384,"1,607.14 ",Dunfield & Mead Ltd,28055,Peoples Services Directorate,Approved Lodgings,H323
http://opendatacommunities.org/id/london-borough-council/sutton,London Borough of Sutton,01/11/2020,6982385,"3,535.71 ",Dunfield & Mead Ltd,28055,Peoples Services Directorate,Approved Lodgings,H323
http://opendatacommunities.org/id/london-borough-council/sutton,London Borough of Sutton,01/11/2020,6982386,"3,535.71 ",Dunfield & Mead Ltd,28055,Peoples Services Directorate,Approved Lodgings,H323
http://opendatacommunities.org/id/london-borough-council/sutton,London Borough of Sutton,01/11/2020,6982387,"3,535.71 ",Dunfield & Mead Ltd,28055,Peoples Services Directorate,Approved Lodgings,H323
http://opendatacommunities.org/id/london-borough-council/sutton,London Borough of Sutton,01/11/2020,6982388,"1,714.28 ",Dunfield & Mead Ltd,28055,Peoples Services Directorate,Approved Lodgings,H323
http://opendatacommunities.org/id/london-borough-council/sutton,London Borough of Sutton,01/11/2020,6982389,"2,464.28 ",Dunfield & Mead Ltd,28055,Peoples Services Directorate,Approved Lodgings,H323
http://opendatacommunities.org/id/london-borough-council/sutton,London Borough of Sutton,01/11/2020,6982390,839.28 ,Dunfield & Mead Ltd,28055,Peoples Services Directorate,Approved Lodgings,H323
http://opendatacommunities.org/id/london-borough-council/sutton,London Borough of Sutton,01/11/2020,6982391,"2,678.57 ",Dunfield & Mead Ltd,28055,Peoples Services Directorate,Living Allowance,H322
http://opendatacommunities.org/id/london-borough-council/sutton,London Borough of Sutton,01/11/2020,6982392,"4,210.71 ",Dunfield & Mead Ltd,28055,Peoples Services Directorate,Living Allowance,H322
http://opendatacommunities.org/id/london-borough-council/sutton,London Borough of Sutton,01/11/2020,6982393,"4,210.71 ",Dunfield & Mead Ltd,28055,Peoples Services Directorate,Approved Lodgings,H323
http://opendatacommunities.org/id/london-borough-council/sutton,London Borough of Sutton,01/12/2020,6982394,"1,037.14 ",Dunfield & Mead Ltd,28055,Peoples Services Directorate,Approved Lodgings,H323
http://opendatacommunities.org/id/london-borough-council/sutton,London Borough of Sutton,01/12/2020,40477260,"4,532.14 ",Dunfield & Mead Ltd,28055,Peoples Services Directorate,Accommodation - Supported Living,H201
http://opendatacommunities.org/id/london-borough-council/sutton,London Borough of Sutton,01/12/2020,40477267,"4,532.14 ",Dunfield & Mead Ltd,28055,Peoples Services Directorate,Accommodation - Supported Living,H201
http://opendatacommunities.org/id/london-borough-council/sutton,London Borough of Sutton,01/12/2020,40477268,"4,532.14 ",Dunfield & Mead Ltd,28055,Peoples Services Directorate,Accommodation - Supported Living,H201
http://opendatacommunities.org/id/london-borough-council/sutton,London Borough of Sutton,01/12/2020,40477374,"3,889.28 ",Dunfield & Mead Ltd,28055,Peoples Services Directorate,Accommodation - Supported Living,H201
http://opendatacommunities.org/id/london-borough-council/sutton,London Borough of Sutton,01/12/2020,40477375,"4,210.71 ",Dunfield & Mead Ltd,28055,Peoples Services Directorate,Approved Lodgings,H323
http://opendatacommunities.org/id/london-borough-council/sutton,London Borough of Sutton,01/12/2020,40477410,518.57 ,Dunfield & Mead Ltd,28055,Peoples Services Directorate,Accommodation - Supported Living,H201
http://opendatacommunities.org/id/london-borough-council/sutton,London Borough of Sutton,22/12/2020,40481132,"3,071.92 ",Dunheved Lodge,11403,Peoples Services Directorate,Residential Care - Ext Provider,G310
http://opendatacommunities.org/id/london-borough-council/sutton,London Borough of Sutton,22/12/2020,40481132,"3,016.00 ",Dunheved Lodge,11403,Peoples Services Directorate,One to One Care,G335
http://opendatacommunities.org/id/london-borough-council/sutton,London Borough of Sutton,30/11/2020,6982435,"11,272.00 ",Dunheved Partnership Ltd,26353,"Environment, Housing & Regeneration Directorate",Bed and Breakfast Accommodation,G400
http://opendatacommunities.org/id/london-borough-council/sutton,London Borough of Sutton,20/11/2020,6983383,"4,461.77 ",Dynamic Care Ltd,29928,Peoples Services Directorate,Approved Lodgings,H323
http://opendatacommunities.org/id/london-borough-council/sutton,London Borough of Sutton,21/12/2020,6983581,578.56 ,Dynamic Care Ltd,29928,Peoples Services Directorate,Approved Lodgings,H323
http://opendatacommunities.org/id/london-borough-council/sutton,London Borough of Sutton,20/12/2020,6983582,"1,114.27 ",Dynamic Care Ltd,29928,Peoples Services Directorate,Approved Lodgings,H323
http://opendatacommunities.org/id/london-borough-council/sutton,London Borough of Sutton,20/12/2020,6983583,"1,650.00 ",Dynamic Care Ltd,29928,Peoples Services Directorate,Approved Lodgings,H323
http://opendatacommunities.org/id/london-borough-council/sutton,London Borough of Sutton,20/12/2020,6983584,"1,114.27 ",Dynamic Care Ltd,29928,Peoples Services Directorate,Approved Lodgings,H323
http://opendatacommunities.org/id/london-borough-council/sutton,London Borough of Sutton,20/12/2020,6983585,"3,428.57 ",Dynamic Care Ltd,29928,Peoples Services Directorate,Approved Lodgings,H323
http://opendatacommunities.org/id/london-borough-council/sutton,London Borough of Sutton,20/12/2020,6983585,535.71 ,Dynamic Care Ltd,29928,Peoples Services Directorate,Approved Lodgings,H323
http://opendatacommunities.org/id/london-borough-council/sutton,London Borough of Sutton,20/12/2020,6983586,"2,571.42 ",Dynamic Care Ltd,29928,Peoples Services Directorate,Approved Lodgings,H323
http://opendatacommunities.org/id/london-borough-council/sutton,London Borough of Sutton,01/12/2020,40477330,"5,389.28 ",Dynamic Care Ltd,29928,Peoples Services Directorate,Approved Lodgings,H323
http://opendatacommunities.org/id/london-borough-council/sutton,London Borough of Sutton,01/12/2020,40477332,"4,344.98 ",Dynamic Care Ltd,29928,Peoples Services Directorate,Approved Lodgings,H323
http://opendatacommunities.org/id/london-borough-council/sutton,London Borough of Sutton,01/12/2020,40477349,"4,317.99 ",Dynamic Care Ltd,29928,Peoples Services Directorate,Approved Lodgings,H323
http://opendatacommunities.org/id/london-borough-council/sutton,London Borough of Sutton,01/12/2020,40477366,431.77 ,Dynamic Care Ltd,29928,Peoples Services Directorate,Approved Lodgings,H323
http://opendatacommunities.org/id/london-borough-council/sutton,London Borough of Sutton,01/12/2020,40477411,"4,317.85 ",Dynamic Care Ltd,29928,Peoples Services Directorate,Approved Lodgings,H323
http://opendatacommunities.org/id/london-borough-council/sutton,London Borough of Sutton,03/11/2020,6981473,"1,836.00 ",Dyslexia Box Limited,35721,Peoples Services Directorate,Training Equipment,F104
http://opendatacommunities.org/id/london-borough-council/sutton,London Borough of Sutton,30/11/2020,6982368,"17,170.50 ",E Homes And Shelters,28378,"Environment, Housing & Regeneration Directorate",Bed and Breakfast Accommodation,G400
http://opendatacommunities.org/id/london-borough-council/sutton,London Borough of Sutton,07/12/2020,6982685,628.00 ,Earth Anchors Ltd,15290,"Environment, Housing & Regeneration Directorate",Furniture - Purchase,F080
http://opendatacommunities.org/id/london-borough-council/sutton,London Borough of Sutton,16/12/2020,6983274,"1,308.00 ",Earth Anchors Ltd,15290,"Environment, Housing & Regeneration Directorate",Furniture & Fittings,Y500
http://opendatacommunities.org/id/london-borough-council/sutton,London Borough of Sutton,18/12/2020,6983409,624.00 ,Earth Anchors Ltd,15290,"Environment, Housing & Regeneration Directorate",Furniture - Repairs and Maintenance,F081
http://opendatacommunities.org/id/london-borough-council/sutton,London Borough of Sutton,22/12/2020,40481063,"3,379.20 ",Eastcroft Nursing Home,11420,Peoples Services Directorate,Nursing Care - Ext Provider,G311
http://opendatacommunities.org/id/london-borough-council/sutton,London Borough of Sutton,22/12/2020,40481124,"1,419.00 ",Eastcroft Nursing Home,11420,Peoples Services Directorate,Nursing Care - Ext Provider,G311
http://opendatacommunities.org/id/london-borough-council/sutton,London Borough of Sutton,04/12/2020,6983056,747.23 ,EDF Energy (Seeboard),13999,HRA,Electricity - Anti Hypothermia Heating,D622
http://opendatacommunities.org/id/london-borough-council/sutton,London Borough of Sutton,04/12/2020,6983056,(657.27),EDF Energy (Seeboard),13999,HRA,Electricity - Anti Hypothermia Heating,D622
http://opendatacommunities.org/id/london-borough-council/sutton,London Borough of Sutton,04/12/2020,6983061,446.93 ,EDF Energy (Seeboard),13999,HRA,Electricity - Anti Hypothermia Heating,D622
http://opendatacommunities.org/id/london-borough-council/sutton,London Borough of Sutton,04/12/2020,6983077,"3,193.09 ",EDF Energy (Seeboard),13999,Resources Directorate,Electricity - General,D620
http://opendatacommunities.org/id/london-borough-council/sutton,London Borough of Sutton,01/12/2020,6983079,"4,444.77 ",EDF Energy (Seeboard),13999,Resources Directorate,Electricity - General,D620
http://opendatacommunities.org/id/london-borough-council/sutton,London Borough of Sutton,04/08/2020,6983080,"2,388.18 ",EDF Energy (Seeboard),13999,Resources Directorate,Electricity - General,D620
http://opendatacommunities.org/id/london-borough-council/sutton,London Borough of Sutton,01/12/2020,6983910,"(4,448.43)",EDF Energy (Seeboard),13999,Resources Directorate,Electricity - General,D620
http://opendatacommunities.org/id/london-borough-council/sutton,London Borough of Sutton,31/10/2020,6980974,"14,217.51 ",Eldercare,22163,HRA,Supporting People - Alarm Services,H237
http://opendatacommunities.org/id/london-borough-council/sutton,London Borough of Sutton,30/11/2020,6982568,"18,112.86 ",Eldercare,22163,Peoples Services Directorate,Equipment,H250
http://opendatacommunities.org/id/london-borough-council/sutton,London Borough of Sutton,30/11/2020,6982641,"22,088.43 ",Eldercare,22163,Peoples Services Directorate,Agency Services,G431
http://opendatacommunities.org/id/london-borough-council/sutton,London Borough of Sutton,30/11/2020,6982642,"1,325.90 ",Eldercare,22163,Peoples Services Directorate,Agency Services,G431
http://opendatacommunities.org/id/london-borough-council/sutton,London Borough of Sutton,30/11/2020,6982795,"13,758.88 ",Eldercare,22163,HRA,Supporting People - Alarm Services,H237
http://opendatacommunities.org/id/london-borough-council/sutton,London Borough of Sutton,30/11/2020,6982796,"1,974.78 ",Eldercare,22163,Peoples Services Directorate,Agency Services,G431
http://opendatacommunities.org/id/london-borough-council/sutton,London Borough of Sutton,30/11/2020,6982797,"5,723.25 ",Eldercare,22163,Peoples Services Directorate,Agency Services,G431
http://opendatacommunities.org/id/london-borough-council/sutton,London Borough of Sutton,22/12/2020,40481114,"4,484.80 ",Eleanor Nursing & Social Care Ltd,25134,Peoples Services Directorate,Residential Care - Ext Provider,G310
http://opendatacommunities.org/id/london-borough-council/sutton,London Borough of Sutton,08/11/2020,40475400,737.10 ,Elite CarePlus Ltd,26199,Peoples Services Directorate,Home Care,G334
http://opendatacommunities.org/id/london-borough-council/sutton,London Borough of Sutton,15/11/2020,40475401,737.10 ,Elite CarePlus Ltd,26199,Peoples Services Directorate,Home Care,G334
http://opendatacommunities.org/id/london-borough-council/sutton,London Borough of Sutton,22/11/2020,40475402,737.10 ,Elite CarePlus Ltd,26199,Peoples Services Directorate,Home Care,G334
http://opendatacommunities.org/id/london-borough-council/sutton,London Borough of Sutton,29/11/2020,40475403,737.10 ,Elite CarePlus Ltd,26199,Peoples Services Directorate,Home Care,G334
http://opendatacommunities.org/id/london-borough-council/sutton,London Borough of Sutton,08/11/2020,40475405,614.25 ,Elite CarePlus Ltd,26199,Peoples Services Directorate,Home Care,G334
http://opendatacommunities.org/id/london-borough-council/sutton,London Borough of Sutton,15/11/2020,40475406,614.25 ,Elite CarePlus Ltd,26199,Peoples Services Directorate,Home Care,G334
http://opendatacommunities.org/id/london-borough-council/sutton,London Borough of Sutton,22/11/2020,40475407,614.25 ,Elite CarePlus Ltd,26199,Peoples Services Directorate,Home Care,G334
http://opendatacommunities.org/id/london-borough-council/sutton,London Borough of Sutton,29/11/2020,40475408,614.25 ,Elite CarePlus Ltd,26199,Peoples Services Directorate,Home Care,G334
http://opendatacommunities.org/id/london-borough-council/sutton,London Borough of Sutton,08/11/2020,40475413,719.55 ,Elite CarePlus Ltd,26199,Peoples Services Directorate,Home Care,G334
http://opendatacommunities.org/id/london-borough-council/sutton,London Borough of Sutton,15/11/2020,40475414,719.55 ,Elite CarePlus Ltd,26199,Peoples Services Directorate,Home Care,G334
http://opendatacommunities.org/id/london-borough-council/sutton,London Borough of Sutton,22/11/2020,40475415,719.55 ,Elite CarePlus Ltd,26199,Peoples Services Directorate,Home Care,G334
http://opendatacommunities.org/id/london-borough-council/sutton,London Borough of Sutton,29/11/2020,40475416,719.55 ,Elite CarePlus Ltd,26199,Peoples Services Directorate,Home Care,G334
http://opendatacommunities.org/id/london-borough-council/sutton,London Borough of Sutton,08/11/2020,40475419,737.12 ,Elite CarePlus Ltd,26199,Peoples Services Directorate,Home Care,G334
http://opendatacommunities.org/id/london-borough-council/sutton,London Borough of Sutton,15/11/2020,40475420,737.12 ,Elite CarePlus Ltd,26199,Peoples Services Directorate,Home Care,G334
http://opendatacommunities.org/id/london-borough-council/sutton,London Borough of Sutton,22/11/2020,40475421,737.12 ,Elite CarePlus Ltd,26199,Peoples Services Directorate,Home Care,G334
http://opendatacommunities.org/id/london-borough-council/sutton,London Borough of Sutton,29/11/2020,40475422,737.12 ,Elite CarePlus Ltd,26199,Peoples Services Directorate,Home Care,G334
http://opendatacommunities.org/id/london-borough-council/sutton,London Borough of Sutton,08/11/2020,40475427,859.95 ,Elite CarePlus Ltd,26199,Peoples Services Directorate,Home Care,G334
http://opendatacommunities.org/id/london-borough-council/sutton,London Borough of Sutton,15/11/2020,40475428,859.95 ,Elite CarePlus Ltd,26199,Peoples Services Directorate,Home Care,G334
http://opendatacommunities.org/id/london-borough-council/sutton,London Borough of Sutton,22/11/2020,40475429,859.95 ,Elite CarePlus Ltd,26199,Peoples Services Directorate,Home Care,G334
http://opendatacommunities.org/id/london-borough-council/sutton,London Borough of Sutton,29/11/2020,40475430,859.95 ,Elite CarePlus Ltd,26199,Peoples Services Directorate,Home Care,G334
http://opendatacommunities.org/id/london-borough-council/sutton,London Borough of Sutton,08/11/2020,40475456,675.68 ,Elite CarePlus Ltd,26199,Peoples Services Directorate,Home Care,G334
http://opendatacommunities.org/id/london-borough-council/sutton,London Borough of Sutton,15/11/2020,40475457,675.68 ,Elite CarePlus Ltd,26199,Peoples Services Directorate,Home Care,G334
http://opendatacommunities.org/id/london-borough-council/sutton,London Borough of Sutton,22/11/2020,40475458,675.68 ,Elite CarePlus Ltd,26199,Peoples Services Directorate,Home Care,G334
http://opendatacommunities.org/id/london-borough-council/sutton,London Borough of Sutton,29/11/2020,40475459,675.68 ,Elite CarePlus Ltd,26199,Peoples Services Directorate,Home Care,G334
http://opendatacommunities.org/id/london-borough-council/sutton,London Borough of Sutton,08/11/2020,40475527,416.81 ,Elite CarePlus Ltd,26199,Peoples Services Directorate,Home Care,G334
http://opendatacommunities.org/id/london-borough-council/sutton,London Borough of Sutton,15/11/2020,40475528,416.81 ,Elite CarePlus Ltd,26199,Peoples Services Directorate,Home Care,G334
http://opendatacommunities.org/id/london-borough-council/sutton,London Borough of Sutton,22/11/2020,40475529,416.81 ,Elite CarePlus Ltd,26199,Peoples Services Directorate,Home Care,G334
http://opendatacommunities.org/id/london-borough-council/sutton,London Borough of Sutton,29/11/2020,40475530,416.81 ,Elite CarePlus Ltd,26199,Peoples Services Directorate,Home Care,G334
http://opendatacommunities.org/id/london-borough-council/sutton,London Borough of Sutton,08/11/2020,40475531,526.50 ,Elite CarePlus Ltd,26199,Peoples Services Directorate,Home Care,G334
http://opendatacommunities.org/id/london-borough-council/sutton,London Borough of Sutton,15/11/2020,40475532,526.50 ,Elite CarePlus Ltd,26199,Peoples Services Directorate,Home Care,G334
http://opendatacommunities.org/id/london-borough-council/sutton,London Borough of Sutton,22/11/2020,40475533,526.50 ,Elite CarePlus Ltd,26199,Peoples Services Directorate,Home Care,G334
http://opendatacommunities.org/id/london-borough-council/sutton,London Borough of Sutton,29/11/2020,40475534,526.50 ,Elite CarePlus Ltd,26199,Peoples Services Directorate,Home Care,G334
http://opendatacommunities.org/id/london-borough-council/sutton,London Borough of Sutton,08/11/2020,40475536,552.83 ,Elite CarePlus Ltd,26199,Peoples Services Directorate,Home Care,G334
http://opendatacommunities.org/id/london-borough-council/sutton,London Borough of Sutton,15/11/2020,40475537,552.83 ,Elite CarePlus Ltd,26199,Peoples Services Directorate,Home Care,G334
http://opendatacommunities.org/id/london-borough-council/sutton,London Borough of Sutton,22/11/2020,40475538,552.83 ,Elite CarePlus Ltd,26199,Peoples Services Directorate,Home Care,G334
http://opendatacommunities.org/id/london-borough-council/sutton,London Borough of Sutton,29/11/2020,40475539,552.83 ,Elite CarePlus Ltd,26199,Peoples Services Directorate,Home Care,G334
http://opendatacommunities.org/id/london-borough-council/sutton,London Borough of Sutton,08/11/2020,40475567,552.83 ,Elite CarePlus Ltd,26199,Peoples Services Directorate,Home Care,G334
http://opendatacommunities.org/id/london-borough-council/sutton,London Borough of Sutton,15/11/2020,40475568,552.83 ,Elite CarePlus Ltd,26199,Peoples Services Directorate,Home Care,G334
http://opendatacommunities.org/id/london-borough-council/sutton,London Borough of Sutton,22/11/2020,40475569,552.83 ,Elite CarePlus Ltd,26199,Peoples Services Directorate,Home Care,G334
http://opendatacommunities.org/id/london-borough-council/sutton,London Borough of Sutton,29/11/2020,40475570,552.83 ,Elite CarePlus Ltd,26199,Peoples Services Directorate,Home Care,G334
http://opendatacommunities.org/id/london-borough-council/sutton,London Borough of Sutton,08/11/2020,40475575,491.40 ,Elite CarePlus Ltd,26199,Peoples Services Directorate,Home Care,G334
http://opendatacommunities.org/id/london-borough-council/sutton,London Borough of Sutton,12/12/2020,6983051,"18,530.00 ",ELLEMM Consulting Ltd (Lucy McCulloch),35374,Resources Directorate,General Office Expenses,F235
http://opendatacommunities.org/id/london-borough-council/sutton,London Borough of Sutton,18/12/2020,6983765,"3,250.00 ",Ellen Atkinson Limited,35351,Peoples Services Directorate,Other Services,F340
http://opendatacommunities.org/id/london-borough-council/sutton,London Borough of Sutton,22/12/2020,40481319,"7,390.52 ",Elysium Supported Living Limited,34957,Peoples Services Directorate,Residential Care - Ext Provider,G310
http://opendatacommunities.org/id/london-borough-council/sutton,London Borough of Sutton,16/12/2020,6983245,"95,000.00 ",Encompass,29087,Resources Directorate,Grants,F473
http://opendatacommunities.org/id/london-borough-council/sutton,London Borough of Sutton,17/12/2020,6983374,"1,728.00 ",Encompass,29087,Resources Directorate,Subscriptions - General,F450
http://opendatacommunities.org/id/london-borough-council/sutton,London Borough of Sutton,17/12/2020,6983375,"2,880.00 ",Encompass,29087,Resources Directorate,Subscriptions - General,F450
http://opendatacommunities.org/id/london-borough-council/sutton,London Borough of Sutton,03/12/2020,6982545,"21,306.24 ",Energiesprong UK,35496,"Environment, Housing & Regeneration Directorate",External Fees  - Other,Y130
http://opendatacommunities.org/id/london-borough-council/sutton,London Borough of Sutton,28/10/2020,6982633,"94,251.98 ",ENGIE Regeneration Ltd,97680,"Environment, Housing & Regeneration Directorate",Building Works -Main Contractor,Y350
http://opendatacommunities.org/id/london-borough-council/sutton,London Borough of Sutton,14/10/2020,6982643,"161,402.40 ",ENGIE Regeneration Ltd,97680,"Environment, Housing & Regeneration Directorate",Building Works -Main Contractor,Y350
http://opendatacommunities.org/id/london-borough-council/sutton,London Borough of Sutton,05/08/2020,6982890,"9,706.09 ",ENGIE Regeneration Ltd,97680,"Environment, Housing & Regeneration Directorate",Building Works -Main Contractor,Y350
http://opendatacommunities.org/id/london-borough-council/sutton,London Borough of Sutton,02/12/2020,6983064,"97,989.57 ",ENGIE Regeneration Ltd,97680,"Environment, Housing & Regeneration Directorate",Building Works -Main Contractor,Y350
http://opendatacommunities.org/id/london-borough-council/sutton,London Borough of Sutton,22/12/2020,40480955,"3,764.28 ",Enriched Care Ltd,35622,Peoples Services Directorate,Supported Living - Ext Provider,G306
http://opendatacommunities.org/id/london-borough-council/sutton,London Borough of Sutton,05/02/2020,6982537,"2,922.90 ",Enviva Paediatric Care/formerlyPNL Nursing Link Ltd (Pnl),28212,Peoples Services Directorate,Homecare Core Services,G336
http://opendatacommunities.org/id/london-borough-council/sutton,London Borough of Sutton,08/12/2020,6983207,"8,732.75 ",Enviva Paediatric Care/formerlyPNL Nursing Link Ltd (Pnl),28212,Peoples Services Directorate,Homecare Core Services,G336
http://opendatacommunities.org/id/london-borough-council/sutton,London Borough of Sutton,08/12/2020,40480176,"15,067.19 ",Enviva Paediatric Care/formerlyPNL Nursing Link Ltd (Pnl),28212,Peoples Services Directorate,Provider Contract Payments,F470
http://opendatacommunities.org/id/london-borough-council/sutton,London Borough of Sutton,08/12/2020,40480190,"1,883.30 ",Enviva Paediatric Care/formerlyPNL Nursing Link Ltd (Pnl),28212,Peoples Services Directorate,Provider Contract Payments,F470
http://opendatacommunities.org/id/london-borough-council/sutton,London Borough of Sutton,08/12/2020,40480195,"3,502.80 ",Enviva Paediatric Care/formerlyPNL Nursing Link Ltd (Pnl),28212,Peoples Services Directorate,Provider Contract Payments,F470
http://opendatacommunities.org/id/london-borough-council/sutton,London Borough of Sutton,22/12/2020,40481329,"1,671.43 ",Eothen Homes Ltd,11539,Peoples Services Directorate,Residential Care - Ext Provider,G310
http://opendatacommunities.org/id/london-borough-council/sutton,London Borough of Sutton,22/12/2020,40481378,928.57 ,Eothen Homes Ltd,11539,Peoples Services Directorate,Residential Care - Ext Provider,G310
http://opendatacommunities.org/id/london-borough-council/sutton,London Borough of Sutton,19/11/2020,6982976,"25,000.00 ",EPPF European Primary Placement Facility,35911,Resources Directorate,Fees - Other,F299
http://opendatacommunities.org/id/london-borough-council/sutton,London Borough of Sutton,03/12/2020,6982661,"7,841.63 ",Epsom & St Helier Nhs Trust,11542,Health and Wellbeing Directorate,Provider Contract Payments,F470
http://opendatacommunities.org/id/london-borough-council/sutton,London Borough of Sutton,07/11/2020,6982662,"7,841.63 ",Epsom & St Helier Nhs Trust,11542,Health and Wellbeing Directorate,Provider Contract Payments,F470
http://opendatacommunities.org/id/london-borough-council/sutton,London Borough of Sutton,07/11/2020,6982663,"88,672.00 ",Epsom & St Helier Nhs Trust,11542,Health and Wellbeing Directorate,Provider Contract Payments,F470
http://opendatacommunities.org/id/london-borough-council/sutton,London Borough of Sutton,15/10/2020,6982664,"27,705.50 ",Epsom & St Helier Nhs Trust,11542,"Environment, Housing & Regeneration Directorate",Agency Services,G431
http://opendatacommunities.org/id/london-borough-council/sutton,London Borough of Sutton,21/10/2020,6982667,"3,309.50 ",Epsom & St Helier Nhs Trust,11542,Peoples Services Directorate,Fees - Other,F299
http://opendatacommunities.org/id/london-borough-council/sutton,London Borough of Sutton,05/11/2020,40477383,"3,954.94 ",Ethelbert Specialist Homes Ltd,11560,Peoples Services Directorate,Foster Parents,G326
http://opendatacommunities.org/id/london-borough-council/sutton,London Borough of Sutton,25/11/2020,6981963,"1,085.00 ",Euro Hotels (Croydon Court) Ltd,21414,Peoples Services Directorate,Client Care/Assistance,H301
http://opendatacommunities.org/id/london-borough-council/sutton,London Borough of Sutton,30/11/2020,6982414,"14,994.00 ",Euro Hotels (Croydon Court) Ltd,21414,"Environment, Housing & Regeneration Directorate",Bed and Breakfast Accommodation,G400
http://opendatacommunities.org/id/london-borough-council/sutton,London Borough of Sutton,30/11/2020,6982416,665.00 ,Euro Hotels (Croydon Court) Ltd,21414,Peoples Services Directorate,Client Care/Assistance,H301
http://opendatacommunities.org/id/london-borough-council/sutton,London Borough of Sutton,30/11/2020,6982355,"1,050.00 ",Euro Hotels (Gilroy Court) Ltd,25822,Peoples Services Directorate,C.C.A Rent & Utilities,H211
http://opendatacommunities.org/id/london-borough-council/sutton,London Borough of Sutton,30/11/2020,6982429,"12,024.00 ",Euro Hotels (Gilroy Court) Ltd,25822,"Environment, Housing & Regeneration Directorate",Bed and Breakfast Accommodation,G400
http://opendatacommunities.org/id/london-borough-council/sutton,London Borough of Sutton,30/11/2020,6982539,"3,210.00 ",Euro Hotels (Gilroy Court) Ltd,25822,"Environment, Housing & Regeneration Directorate",Bed and Breakfast Accommodation,G400
http://opendatacommunities.org/id/london-borough-council/sutton,London Borough of Sutton,30/11/2020,6982449,"26,905.00 ",Euro Hotels (Thornton Heath) Ltd,10030,"Environment, Housing & Regeneration Directorate",Bed and Breakfast Accommodation,G400
http://opendatacommunities.org/id/london-borough-council/sutton,London Borough of Sutton,01/12/2020,1303401,"17,683.46 ",Exceptional Ideas Ltd,35472,Peoples Services Directorate,Independent Schools,G325
http://opendatacommunities.org/id/london-borough-council/sutton,London Borough of Sutton,31/08/2020,6983125,"1,170.00 ",Experian Limited,11588,"Environment, Housing & Regeneration Directorate",Other Services,F340
http://opendatacommunities.org/id/london-borough-council/sutton,London Borough of Sutton,10/12/2020,6982946,500.00 ,F L Beadle & Sons Ltd,97197,"Environment, Housing & Regeneration Directorate",Equipment including Meters,D520
http://opendatacommunities.org/id/london-borough-council/sutton,London Borough of Sutton,10/12/2020,6982946,488.00 ,F L Beadle & Sons Ltd,97197,"Environment, Housing & Regeneration Directorate",Equipment including Meters,D520
http://opendatacommunities.org/id/london-borough-council/sutton,London Borough of Sutton,15/12/2020,6983154,"15,606.25 ",F M Conway Limited,97060,"Environment, Housing & Regeneration Directorate",Roads & Sewers Etc-Main Contract,Y300
http://opendatacommunities.org/id/london-borough-council/sutton,London Borough of Sutton,15/12/2020,6983155,"30,984.66 ",F M Conway Limited,97060,"Environment, Housing & Regeneration Directorate",Roads & Sewers Etc-Main Contract,Y300
http://opendatacommunities.org/id/london-borough-council/sutton,London Borough of Sutton,28/11/2020,40477407,"5,571.43 ",Family First Fostering,27926,Peoples Services Directorate,Foster Parents,G326
http://opendatacommunities.org/id/london-borough-council/sutton,London Borough of Sutton,30/11/2020,40477388,"6,085.80 ",Family Fostering,34259,Peoples Services Directorate,Foster Parents,G326
http://opendatacommunities.org/id/london-borough-council/sutton,London Borough of Sutton,22/12/2020,40481099,"3,502.24 ",Family Star Ltd,19653,Peoples Services Directorate,Nursing Care - Ext Provider,G311
http://opendatacommunities.org/id/london-borough-council/sutton,London Borough of Sutton,22/12/2020,40481127,"3,538.56 ",Family Star Ltd,19653,Peoples Services Directorate,Nursing Care - Ext Provider,G311
http://opendatacommunities.org/id/london-borough-council/sutton,London Borough of Sutton,22/12/2020,40481145,"3,555.32 ",Family Star Ltd,19653,Peoples Services Directorate,Nursing Care - Ext Provider,G311
http://opendatacommunities.org/id/london-borough-council/sutton,London Borough of Sutton,22/12/2020,40481211,"3,545.32 ",Family Star Ltd,19653,Peoples Services Directorate,Nursing Care - Ext Provider,G311
http://opendatacommunities.org/id/london-borough-council/sutton,London Borough of Sutton,01/12/2020,6982600,"7,223.00 ",Fern Court London Limited,26961,"Environment, Housing & Regeneration Directorate",Bed and Breakfast Accommodation,G400
http://opendatacommunities.org/id/london-borough-council/sutton,London Borough of Sutton,01/12/2020,6982523,"2,366.46 ",Fierce Neutral Ltd,16535,"Environment, Housing & Regeneration Directorate",Bed and Breakfast Accommodation,G400
http://opendatacommunities.org/id/london-borough-council/sutton,London Borough of Sutton,01/10/2020,6983305,"2,587.78 ",Financial Data Management PLC,28773,Resources Directorate,Printing - General,F215
http://opendatacommunities.org/id/london-borough-council/sutton,London Borough of Sutton,01/10/2020,6983306,"10,173.58 ",Financial Data Management PLC,28773,Resources Directorate,Printing - General,F215
http://opendatacommunities.org/id/london-borough-council/sutton,London Borough of Sutton,02/10/2020,6983308,535.00 ,Financial Data Management PLC,28773,Resources Directorate,Printing - General,F215
http://opendatacommunities.org/id/london-borough-council/sutton,London Borough of Sutton,23/10/2020,6983309,"1,109.19 ",Financial Data Management PLC,28773,Resources Directorate,Printing - General,F215
http://opendatacommunities.org/id/london-borough-council/sutton,London Borough of Sutton,30/10/2020,6983310,"2,911.48 ",Financial Data Management PLC,28773,Resources Directorate,Postage Central Recharge,F351
http://opendatacommunities.org/id/london-borough-council/sutton,London Borough of Sutton,30/10/2020,6983311,645.00 ,Financial Data Management PLC,28773,Resources Directorate,Printing - General,F215
http://opendatacommunities.org/id/london-borough-council/sutton,London Borough of Sutton,22/12/2020,40481012,"3,520.52 ",Fircroft Homes,11660,Peoples Services Directorate,Residential Care - Ext Provider,G310
http://opendatacommunities.org/id/london-borough-council/sutton,London Borough of Sutton,01/11/2020,40474884,"1,184.79 ",Fitzroy,11657,Peoples Services Directorate,Day Care,G337
http://opendatacommunities.org/id/london-borough-council/sutton,London Borough of Sutton,22/12/2020,40481406,"3,848.28 ",Fitzroy,11657,Peoples Services Directorate,Residential Care - Ext Provider,G310
http://opendatacommunities.org/id/london-borough-council/sutton,London Borough of Sutton,04/12/2020,6982876,"6,570.00 ",Flashbay Electronics Europe Limited,36920,Health and Wellbeing Directorate,Advertising/Publicity (non Staff),F240
http://opendatacommunities.org/id/london-borough-council/sutton,London Borough of Sutton,21/12/2020,6983470,"6,570.00 ",Flashbay Electronics Europe Limited,36920,Health and Wellbeing Directorate,Advertising/Publicity (non Staff),F240
http://opendatacommunities.org/id/london-borough-council/sutton,London Borough of Sutton,08/12/2020,1303645,880.00 ,Fleet Tutors,18973,Peoples Services Directorate,Independent Schools,G325
http://opendatacommunities.org/id/london-borough-council/sutton,London Borough of Sutton,08/12/2020,1303647,"2,730.00 ",Fleet Tutors,18973,Peoples Services Directorate,Independent Schools,G325
http://opendatacommunities.org/id/london-borough-council/sutton,London Borough of Sutton,08/12/2020,1303648,"1,230.00 ",Fleet Tutors,18973,Peoples Services Directorate,Independent Schools,G325
http://opendatacommunities.org/id/london-borough-council/sutton,London Borough of Sutton,22/12/2020,40481121,"7,200.00 ",Florence Avenue Care Home Ltd,26881,Peoples Services Directorate,Residential Care - Ext Provider,G310
http://opendatacommunities.org/id/london-borough-council/sutton,London Borough of Sutton,02/12/2020,40477329,"4,050.00 ",Flying Colours Foster Care Ltd,24309,Peoples Services Directorate,Foster Parents,G326
http://opendatacommunities.org/id/london-borough-council/sutton,London Borough of Sutton,01/10/2020,40477293,"3,509.70 ",Foster Care Associates Ltd,11729,Peoples Services Directorate,Foster Parents,G326
http://opendatacommunities.org/id/london-borough-council/sutton,London Borough of Sutton,01/10/2020,40477378,"3,509.70 ",Foster Care Associates Ltd,11729,Peoples Services Directorate,Foster Parents,G326
http://opendatacommunities.org/id/london-borough-council/sutton,London Borough of Sutton,01/11/2020,40477373,"5,959.17 ",Foster Care UK Ltd,30348,Peoples Services Directorate,Foster Parents,G326
http://opendatacommunities.org/id/london-borough-council/sutton,London Borough of Sutton,30/11/2020,40477258,"3,003.94 ",Fostering For You,24993,Peoples Services Directorate,Foster Parents,G326
http://opendatacommunities.org/id/london-borough-council/sutton,London Borough of Sutton,30/11/2020,40477322,"3,937.50 ",Fostering For You,24993,Peoples Services Directorate,Foster Parents,G326
http://opendatacommunities.org/id/london-borough-council/sutton,London Borough of Sutton,30/11/2020,40477323,"3,129.00 ",Fostering For You,24993,Peoples Services Directorate,Foster Parents,G326
http://opendatacommunities.org/id/london-borough-council/sutton,London Borough of Sutton,30/11/2020,40477372,"3,129.00 ",Fostering For You,24993,Peoples Services Directorate,Foster Parents,G326
http://opendatacommunities.org/id/london-borough-council/sutton,London Borough of Sutton,30/11/2020,40477409,"3,214.29 ",Fostering For You,24993,Peoples Services Directorate,Foster Parents,G326
http://opendatacommunities.org/id/london-borough-council/sutton,London Borough of Sutton,30/11/2020,40481951,"3,129.00 ",Fostering For You,24993,Peoples Services Directorate,Foster Parents,G326
http://opendatacommunities.org/id/london-borough-council/sutton,London Borough of Sutton,30/11/2020,40481952,"3,192.86 ",Fostering For You,24993,Peoples Services Directorate,Foster Parents,G326
http://opendatacommunities.org/id/london-borough-council/sutton,London Borough of Sutton,30/11/2020,40477275,"3,309.30 ",Fostering Support Group (FSG),27514,Peoples Services Directorate,Foster Parents,G326
http://opendatacommunities.org/id/london-borough-council/sutton,London Borough of Sutton,30/11/2020,40477276,"4,256.70 ",Fostering Support Group (FSG),27514,Peoples Services Directorate,Foster Parents,G326
http://opendatacommunities.org/id/london-borough-council/sutton,London Borough of Sutton,30/11/2020,40477340,"5,558.40 ",Fostering Support Group (FSG),27514,Peoples Services Directorate,Foster Parents,G326
http://opendatacommunities.org/id/london-borough-council/sutton,London Borough of Sutton,30/11/2020,40477377,"3,309.30 ",Fostering Support Group (FSG),27514,Peoples Services Directorate,Foster Parents,G326
http://opendatacommunities.org/id/london-borough-council/sutton,London Borough of Sutton,30/11/2020,40477405,"6,618.90 ",Fostering Support Group (FSG),27514,Peoples Services Directorate,Foster Parents,G326
http://opendatacommunities.org/id/london-borough-council/sutton,London Borough of Sutton,22/12/2020,40481123,"2,600.00 ",Foxley Lodge,16555,Peoples Services Directorate,Residential Care - Ext Provider,G310
http://opendatacommunities.org/id/london-borough-council/sutton,London Borough of Sutton,14/12/2020,6983091,815.00 ,Frank Ayeni,34385,"Environment, Housing & Regeneration Directorate",Temporary Protection - Homeless Persons,H300
http://opendatacommunities.org/id/london-borough-council/sutton,London Borough of Sutton,17/12/2020,1303913,537.70 ,REDACTED - PERSONAL DATA,34929,Peoples Services Directorate,Approved Lodgings,H323
http://opendatacommunities.org/id/london-borough-council/sutton,London Borough of Sutton,30/11/2020,1303396,"1,152.00 ",Fresh Start In Education Ltd,28509,Peoples Services Directorate,Independent Schools,G325
http://opendatacommunities.org/id/london-borough-council/sutton,London Borough of Sutton,30/11/2020,1303397,"4,536.00 ",Fresh Start In Education Ltd,28509,Peoples Services Directorate,Independent Schools,G325
http://opendatacommunities.org/id/london-borough-council/sutton,London Borough of Sutton,30/11/2020,1303398,"14,400.00 ",Fresh Start In Education Ltd,28509,Peoples Services Directorate,Independent Schools,G325
http://opendatacommunities.org/id/london-borough-council/sutton,London Borough of Sutton,30/11/2020,1303399,"6,888.00 ",Fresh Start In Education Ltd,28509,Peoples Services Directorate,Independent Schools,G325
http://opendatacommunities.org/id/london-borough-council/sutton,London Borough of Sutton,30/11/2020,1303400,"3,690.00 ",Fresh Start In Education Ltd,28509,Peoples Services Directorate,Independent Schools,G325
http://opendatacommunities.org/id/london-borough-council/sutton,London Borough of Sutton,30/11/2020,1303643,"1,230.00 ",Fresh Start In Education Ltd,28509,Peoples Services Directorate,Independent Schools,G325
http://opendatacommunities.org/id/london-borough-council/sutton,London Borough of Sutton,22/12/2020,40481182,"3,212.00 ",Friends Of The Elderly,11766,Peoples Services Directorate,Residential Care - Ext Provider,G310
http://opendatacommunities.org/id/london-borough-council/sutton,London Borough of Sutton,22/12/2020,40481273,"3,212.00 ",Friends Of The Elderly,11766,Peoples Services Directorate,Residential Care - Ext Provider,G310
http://opendatacommunities.org/id/london-borough-council/sutton,London Borough of Sutton,03/12/2020,40475311,"4,438.40 ",Frontier Support Services,28792,Peoples Services Directorate,Supported Living - Ext Provider,G306
http://opendatacommunities.org/id/london-borough-council/sutton,London Borough of Sutton,03/12/2020,40475315,"5,723.20 ",Frontier Support Services,28792,Peoples Services Directorate,Supported Living - Ext Provider,G306
